Workbook

Sheet Category I
A1: List Services Provided (Labor category, and Skill Class) (Items in Red are meant as examples. Add more lines as needed or attach a .pdf, must mimic this format) | B1: LABOR Emergent Not To Exceed Hourly Rate | C1: LABOR Non- Emergent Not To Exceed Hourly Rate | D1: Materials and Supplies Description | E1: Unit | F1: Cost | G1: % Rate Increase 2nd year | H1: % Rate Increase 3rd year | I1: % Rate Increase 4th year | J1: % Rate Increase 5th year | K1: % Rate Increase 6th year | L1: % Rate Increase 7th year
A2: Category I- Vegetative Debris
A4: Region 1- States of MT, WY, ID, OR, WA, MO, KS, CO, NE, SD, ND
A5: Vegetative Debris Removal from Public Roads, Streets and ROWS And Hauling to Debris Management Site (Vegetative)
A6: Hauling Distance 0-15 miles | E6: Cubic Yard (CY) | F6: $9.82 | G6: 1.00% | H6: 2.00% | I6: 2.00% | J6: 2.00% | K6: 3.00% | L6: 3.00%
A7: Hauling Distance 16-30 miles | E7: CY | F7: $10.42 | G7: 1.00% | H7: 2.00% | I7: 2.00% | J7: 2.00% | K7: 3.00% | L7: 3.00%
A8: Hauling Distance 31-60 miles | E8: CY | F8: $12.98 | G8: 1.00% | H8: 2.00% | I8: 2.00% | J8: 2.00% | K8: 3.00% | L8: 3.00%
A10: Personnel and Equipment- Hourly
A11: Project Manager | B11: $100.00 | C11: $80.00 | E11: Each / Per HR | G11: 1.00% | H11: 2.00% | I11: 2.00% | J11: 2.00% | K11: 3.00% | L11: 3.00%
A12: Supervisor | B12: $90.00 | C12: $75.00 | E12: Each / Per HR | G12: 1.00% | H12: 2.00% | I12: 2.00% | J12: 2.00% | K12: 3.00% | L12: 3.00%
A13: Equipment Operator | B13: $70.00 | C13: $55.00 | E13: Each / Per HR | G13: 1.00% | H13: 2.00% | I13: 2.00% | J13: 2.00% | K13: 3.00% | L13: 3.00%
A14: Sawman with saw | B14: $65.00 | C14: $55.00 | E14: Each / Per HR | G14: 1.00% | H14: 2.00% | I14: 2.00% | J14: 2.00% | K14: 3.00% | L14: 3.00%
A15: Laborer | B15: $60.00 | C15: $50.00 | E15: Each / Per HR | G15: 1.00% | H15: 2.00% | I15: 2.00% | J15: 2.00% | K15: 3.00% | L15: 3.00%
A16: Traffic Control | B16: $50.00 | C16: $40.00 | E16: Each / Per HR | G16: 1.00% | H16: 2.00% | I16: 2.00% | J16: 2.00% | K16: 3.00% | L16: 3.00%
A17: 30-50 CY Self Loading Truck | B17: $250.00 | C17: $225.00 | E17: Each / Per HR | G17: 1.00% | H17: 2.00% | I17: 2.00% | J17: 2.00% | K17: 3.00% | L17: 3.00%
A18: Bobcat | B18: $140.00 | C18: $120.00 | E18: Each / Per HR | G18: 1.00% | H18: 2.00% | I18: 2.00% | J18: 2.00% | K18: 3.00% | L18: 3.00%
A19: Front End Loader- Rubber Tired | B19: $225.00 | C19: $195.00 | E19: Each / Per HR | G19: 1.00% | H19: 2.00% | I19: 2.00% | J19: 2.00% | K19: 3.00% | L19: 3.00%
A20: Dozer-CAT D-4 | B20: $185.00 | C20: $165.00 | E20: Each / Per HR | G20: 1.00% | H20: 2.00% | I20: 2.00% | J20: 2.00% | K20: 3.00% | L20: 3.00%
A21: Traffic Control Signs and Flags | B21: $50.00 | C21: $45.00 | E21: Each / Per HR | G21: 1.00% | H21: 2.00% | I21: 2.00% | J21: 2.00% | K21: 3.00% | L21: 3.00%
A23: Vegetative Debris Removal from Public Roads, Streets and ROWS And Hauling to a Final Disposal Sites
A24: Hauling Distance 0-15 miles | E24: Cubic Yard (CY) | F24: =+F6+1 -> $10.82 | G24: 1.00% | H24: 2.00% | I24: 2.00% | J24: 2.00% | K24: 3.00% | L24: 3.00%
A25: Hauling Distance 16-30 miles | E25: CY | F25: =+F7+1 -> $11.42 | G25: 1.00% | H25: 2.00% | I25: 2.00% | J25: 2.00% | K25: 3.00% | L25: 3.00%
A26: Hauling Distance 31-60 miles | E26: CY | F26: =+F8+1 -> $13.98 | G26: 1.00% | H26: 2.00% | I26: 2.00% | J26: 2.00% | K26: 3.00% | L26: 3.00%
A28: Vegetative Debris Management and Reduction at Debris Management Site
A29: Site Management | E29: CY | F29: $1.86 | G29: 1.00% | H29: 2.00% | I29: 2.00% | J29: 2.00% | K29: 3.00% | L29: 3.00%
A30: Mechanical (chipping or grinding) | E30: CY | F30: $4.24 | G30: 1.00% | H30: 2.00% | I30: 2.00% | J30: 2.00% | K30: 3.00% | L30: 3.00%
A31: Air Curtain Incineration | E31: CY | F31: $3.24 | G31: 1.00% | H31: 2.00% | I31: 2.00% | J31: 2.00% | K31: 3.00% | L31: 3.00%
A32: Open Burning | E32: CY | F32: $2.28 | G32: 1.00% | H32: 2.00% | I32: 2.00% | J32: 2.00% | K32: 3.00% | L32: 3.00%
A33: Compaction | E33: CY | F33: $1.32 | G33: 1.00% | H33: 2.00% | I33: 2.00% | J33: 2.00% | K33: 3.00% | L33: 3.00%
A35: Final Disposal of Reduced Chips
A36: Hauling Distance 0-15 miles | E36: CY | F36: $4.42 | G36: 1.00% | H36: 2.00% | I36: 2.00% | J36: 2.00% | K36: 3.00% | L36: 3.00%
A37: Hauling Distance 16-30 miles | E37: CY | F37: $5.98 | G37: 1.00% | H37: 2.00% | I37: 2.00% | J37: 2.00% | K37: 3.00% | L37: 3.00%
A38: Hauling Distance 31-60 miles | E38: CY | F38: $7.98 | G38: 1.00% | H38: 2.00% | I38: 2.00% | J38: 2.00% | K38: 3.00% | L38: 3.00%
A40: Testing of Ash and Disposal at Landfill
A41: Hauling Distance 0-15 miles | E41: CY | F41: $5.92 | G41: 1.00% | H41: 2.00% | I41: 2.00% | J41: 2.00% | K41: 3.00% | L41: 3.00%
A42: Hauling Distance 16-30 miles | E42: CY | F42: $7.42 | G42: 1.00% | H42: 2.00% | I42: 2.00% | J42: 2.00% | K42: 3.00% | L42: 3.00%
A43: Hauling Distance 31-60 miles | E43: CY | F43: $9.42 | G43: 1.00% | H43: 2.00% | I43: 2.00% | J43: 2.00% | K43: 3.00% | L43: 3.00%
A45: Leaning Trees and Hanging Limbs- Resulting debris to be placed on ROW and treated as regular vegetative debris
A46: Trees 0-6" in Diameter | E46: Each Tree | F46: $75.00 | G46: 1.00% | H46: 2.00% | I46: 2.00% | J46: 2.00% | K46: 3.00% | L46: 3.00%
A47: Trees 6.1to 12" in Diameter | E47: Each Tree | F47: $195.00 | G47: 1.00% | H47: 2.00% | I47: 2.00% | J47: 2.00% | K47: 3.00% | L47: 3.00%
A48: Trees 12.1 to 24" in Diameter | E48: Each Tree | F48: $295.00 | G48: 1.00% | H48: 2.00% | I48: 2.00% | J48: 2.00% | K48: 3.00% | L48: 3.00%
A49: Trees 24.1 to 36" in Diameter | E49: Each Tree | F49: $450.00 | G49: 1.00% | H49: 2.00% | I49: 2.00% | J49: 2.00% | K49: 3.00% | L49: 3.00%
A50: Trees 36.1 to 48" in Diameter | E50: Each Tree | F50: $650.00 | G50: 1.00% | H50: 2.00% | I50: 2.00% | J50: 2.00% | K50: 3.00% | L50: 3.00%
A51: Trees 48.1 to 72" in Diameter | E51: Each Tree | F51: $750.00 | G51: 1.00% | H51: 2.00% | I51: 2.00% | J51: 2.00% | K51: 3.00% | L51: 3.00%
A52: Trees >72" in Diameter | E52: Each Tree | F52: $950.00 | G52: 1.00% | H52: 2.00% | I52: 2.00% | J52: 2.00% | K52: 3.00% | L52: 3.00%
A53: Hanging Limbs | E53: Each Tree | F53: $92.50 | G53: 1.00% | H53: 2.00% | I53: 2.00% | J53: 2.00% | K53: 3.00% | L53: 3.00%
A55: Removal and Disposal of Stumps, including backfilling of stump hole
A56: Stumps < 24" | E56: Cubic Yard | F56: $22.86 | G56: 1.00% | H56: 2.00% | I56: 2.00% | J56: 2.00% | K56: 3.00% | L56: 3.00%
A57: Stumps 24-36" | E57: Each Stump | F57: $250.00 | G57: 1.00% | H57: 2.00% | I57: 2.00% | J57: 2.00% | K57: 3.00% | L57: 3.00%
A58: Stumps 36-48" | E58: Each Stump | F58: $450.00 | G58: 1.00% | H58: 2.00% | I58: 2.00% | J58: 2.00% | K58: 3.00% | L58: 3.00%
A59: Stumps 48-72" | E59: Each Stump | F59: $650.00 | G59: 1.00% | H59: 2.00% | I59: 2.00% | J59: 2.00% | K59: 3.00% | L59: 3.00%
A60: Stumps >72" | E60: Each Stump | F60: $850.00 | G60: 1.00% | H60: 2.00% | I60: 2.00% | J60: 2.00% | K60: 3.00% | L60: 3.00%
A62: Region 2- States ofIL, IA, MN, WI, LA, MS
A63: Personnel and Equipment- Hourly
A64: Project Manager | B64: $100.00 | C64: $80.00 | E64: Each / Per HR | G64: 1.00% | H64: 2.00% | I64: 2.00% | J64: 2.00% | K64: 3.00% | L64: 3.00%
A65: Supervisor | B65: $90.00 | C65: $75.00 | E65: Each / Per HR | G65: 1.00% | H65: 2.00% | I65: 2.00% | J65: 2.00% | K65: 3.00% | L65: 3.00%
A66: Equipment Operator | B66: $70.00 | C66: $55.00 | E66: Each / Per HR | G66: 1.00% | H66: 2.00% | I66: 2.00% | J66: 2.00% | K66: 3.00% | L66: 3.00%
A67: Sawman with saw | B67: $65.00 | C67: $55.00 | E67: Each / Per HR | G67: 1.00% | H67: 2.00% | I67: 2.00% | J67: 2.00% | K67: 3.00% | L67: 3.00%
A68: Laborer | B68: $60.00 | C68: $50.00 | E68: Each / Per HR | G68: 1.00% | H68: 2.00% | I68: 2.00% | J68: 2.00% | K68: 3.00% | L68: 3.00%
A69: Traffic Control | B69: $50.00 | C69: $40.00 | E69: Each / Per HR | G69: 1.00% | H69: 2.00% | I69: 2.00% | J69: 2.00% | K69: 3.00% | L69: 3.00%
A70: 30-50 CY Self Loading Truck | B70: $250.00 | C70: $225.00 | E70: Each / Per HR | G70: 1.00% | H70: 2.00% | I70: 2.00% | J70: 2.00% | K70: 3.00% | L70: 3.00%
A71: Bobcat | B71: $140.00 | C71: $120.00 | E71: Each / Per HR | G71: 1.00% | H71: 2.00% | I71: 2.00% | J71: 2.00% | K71: 3.00% | L71: 3.00%
A72: Front End Loader- Rubber Tired | B72: $225.00 | C72: $195.00 | E72: Each / Per HR | G72: 1.00% | H72: 2.00% | I72: 2.00% | J72: 2.00% | K72: 3.00% | L72: 3.00%
A73: Dozer-CAT D-4 | B73: $185.00 | C73: $165.00 | E73: Each / Per HR | G73: 1.00% | H73: 2.00% | I73: 2.00% | J73: 2.00% | K73: 3.00% | L73: 3.00%
A74: Traffic Control Signs and Flags | B74: $50.00 | C74: $45.00 | E74: Each / Per HR | G74: 1.00% | H74: 2.00% | I74: 2.00% | J74: 2.00% | K74: 3.00% | L74: 3.00%
A76: Vegetative Debris Removal from Public Roads, Streets and ROWS And Hauling to Debris Management Site (Vegetative)
A77: Hauling Distance 0-15 miles | E77: Cubic Yard (CY) | F77: $9.82 | G77: 1.00% | H77: 2.00% | I77: 2.00% | J77: 2.00% | K77: 3.00% | L77: 3.00%
A78: Hauling Distance 16-30 miles | E78: CY | F78: $10.42 | G78: 1.00% | H78: 2.00% | I78: 2.00% | J78: 2.00% | K78: 3.00% | L78: 3.00%
A79: Hauling Distance 31-60 miles | E79: CY | F79: $12.98 | G79: 1.00% | H79: 2.00% | I79: 2.00% | J79: 2.00% | K79: 3.00% | L79: 3.00%
A81: Vegetative Debris Removal from Public Roads, Streets and ROWS And Hauling to a Final Disposal Sites
A82: Hauling Distance 0-15 miles | E82: Cubic Yard (CY) | F82: =+F77+1 -> $10.82 | G82: 1.00% | H82: 2.00% | I82: 2.00% | J82: 2.00% | K82: 3.00% | L82: 3.00%
A83: Hauling Distance 16-30 miles | E83: CY | F83: =+F78+1 -> $11.42 | G83: 1.00% | H83: 2.00% | I83: 2.00% | J83: 2.00% | K83: 3.00% | L83: 3.00%
A84: Hauling Distance 31-60 miles | E84: CY | F84: =+F79+1 -> $13.98 | G84: 1.00% | H84: 2.00% | I84: 2.00% | J84: 2.00% | K84: 3.00% | L84: 3.00%
A86: Vegetative Debris Management and Reduction at Debris Management Site
A87: Site Management | E87: CY | F87: $1.86 | G87: 1.00% | H87: 2.00% | I87: 2.00% | J87: 2.00% | K87: 3.00% | L87: 3.00%
A88: Mechanical (chipping or grinding) | E88: CY | F88: $4.24 | G88: 1.00% | H88: 2.00% | I88: 2.00% | J88: 2.00% | K88: 3.00% | L88: 3.00%
A89: Air Curtain Incineration | E89: CY | F89: $3.24 | G89: 1.00% | H89: 2.00% | I89: 2.00% | J89: 2.00% | K89: 3.00% | L89: 3.00%
A90: Open Burning | E90: CY | F90: $2.28 | G90: 1.00% | H90: 2.00% | I90: 2.00% | J90: 2.00% | K90: 3.00% | L90: 3.00%
A91: Compaction | E91: CY | F91: $1.32 | G91: 1.00% | H91: 2.00% | I91: 2.00% | J91: 2.00% | K91: 3.00% | L91: 3.00%
A93: Final Disposal of Reduced Chips
A94: Hauling Distance 0-15 miles | E94: CY | F94: $4.42 | G94: 1.00% | H94: 2.00% | I94: 2.00% | J94: 2.00% | K94: 3.00% | L94: 3.00%
A95: Hauling Distance 16-30 miles | E95: CY | F95: $5.98 | G95: 1.00% | H95: 2.00% | I95: 2.00% | J95: 2.00% | K95: 3.00% | L95: 3.00%
A96: Hauling Distance 31-60 miles | E96: CY | F96: $7.98 | G96: 1.00% | H96: 2.00% | I96: 2.00% | J96: 2.00% | K96: 3.00% | L96: 3.00%
A98: Testing of Ash and Disposal at Landfill
A99: Hauling Distance 0-15 miles | E99: CY | F99: $5.92 | G99: 1.00% | H99: 2.00% | I99: 2.00% | J99: 2.00% | K99: 3.00% | L99: 3.00%
A100: Hauling Distance 16-30 miles | E100: CY | F100: $7.42 | G100: 1.00% | H100: 2.00% | I100: 2.00% | J100: 2.00% | K100: 3.00% | L100: 3.00%
A101: Hauling Distance 31-60 miles | E101: CY | F101: $9.42 | G101: 1.00% | H101: 2.00% | I101: 2.00% | J101: 2.00% | K101: 3.00% | L101: 3.00%
A103: Leaning Trees and Hanging Limbs- Resulting debris to be placed on ROW and treated as regular vegetative debris
A104: Trees 0-6" in Diameter | E104: Each Tree | F104: $75.00 | G104: 1.00% | H104: 2.00% | I104: 2.00% | J104: 2.00% | K104: 3.00% | L104: 3.00%
A105: Trees 6.1to 12" in Diameter | E105: Each Tree | F105: $195.00 | G105: 1.00% | H105: 2.00% | I105: 2.00% | J105: 2.00% | K105: 3.00% | L105: 3.00%
A106: Trees 12.1 to 24" in Diameter | E106: Each Tree | F106: $295.00 | G106: 1.00% | H106: 2.00% | I106: 2.00% | J106: 2.00% | K106: 3.00% | L106: 3.00%
A107: Trees 24.1 to 36" in Diameter | E107: Each Tree | F107: $450.00 | G107: 1.00% | H107: 2.00% | I107: 2.00% | J107: 2.00% | K107: 3.00% | L107: 3.00%
A108: Trees 36.1 to 48" in Diameter | E108: Each Tree | F108: $650.00 | G108: 1.00% | H108: 2.00% | I108: 2.00% | J108: 2.00% | K108: 3.00% | L108: 3.00%
A109: Trees 48.1 to 72" in Diameter | E109: Each Tree | F109: $750.00 | G109: 1.00% | H109: 2.00% | I109: 2.00% | J109: 2.00% | K109: 3.00% | L109: 3.00%
A110: Trees >72" in Diameter | E110: Each Tree | F110: $950.00 | G110: 1.00% | H110: 2.00% | I110: 2.00% | J110: 2.00% | K110: 3.00% | L110: 3.00%
A111: Hanging Limbs | E111: Each Tree | F111: $92.50
A113: Removal and Disposal of Stumps, including backfilling of stump hole | G113: 1.00% | H113: 2.00% | I113: 2.00% | J113: 2.00% | K113: 3.00% | L113: 3.00%
A114: Stumps < 24" | E114: Cubic Yard | F114: $22.86 | G114: 1.00% | H114: 2.00% | I114: 2.00% | J114: 2.00% | K114: 3.00% | L114: 3.00%
A115: Stumps 24-36" | E115: Each Stump | F115: $250.00 | G115: 1.00% | H115: 2.00% | I115: 2.00% | J115: 2.00% | K115: 3.00% | L115: 3.00%
A116: Stumps 36-48" | E116: Each Stump | F116: $450.00 | G116: 1.00% | H116: 2.00% | I116: 2.00% | J116: 2.00% | K116: 3.00% | L116: 3.00%
A117: Stumps 48-72" | E117: Each Stump | F117: $650.00 | G117: 1.00% | H117: 2.00% | I117: 2.00% | J117: 2.00% | K117: 3.00% | L117: 3.00%
A118: Stumps >72" | E118: Each Stump | F118: $850.00 | G118: 1.00% | H118: 2.00% | I118: 2.00% | J118: 2.00% | K118: 3.00% | L118: 3.00%
A120: Region 3- States of MI, IN, TN, KY, OH, WV
A121: Personnel and Equipment- Hourly
A122: Project Manager | B122: $100.00 | C122: $80.00 | E122: Each / Per HR | G122: 1.00% | H122: 2.00% | I122: 2.00% | J122: 2.00% | K122: 3.00% | L122: 3.00%
A123: Supervisor | B123: $90.00 | C123: $75.00 | E123: Each / Per HR | G123: 1.00% | H123: 2.00% | I123: 2.00% | J123: 2.00% | K123: 3.00% | L123: 3.00%
A124: Equipment Operator | B124: $70.00 | C124: $55.00 | E124: Each / Per HR | G124: 1.00% | H124: 2.00% | I124: 2.00% | J124: 2.00% | K124: 3.00% | L124: 3.00%
A125: Sawman with saw | B125: $65.00 | C125: $55.00 | E125: Each / Per HR | G125: 1.00% | H125: 2.00% | I125: 2.00% | J125: 2.00% | K125: 3.00% | L125: 3.00%
A126: Laborer | B126: $60.00 | C126: $50.00 | E126: Each / Per HR | G126: 1.00% | H126: 2.00% | I126: 2.00% | J126: 2.00% | K126: 3.00% | L126: 3.00%
A127: Traffic Control | B127: $50.00 | C127: $40.00 | E127: Each / Per HR | G127: 1.00% | H127: 2.00% | I127: 2.00% | J127: 2.00% | K127: 3.00% | L127: 3.00%
A128: 30-50 CY Self Loading Truck | B128: $250.00 | C128: $225.00 | E128: Each / Per HR | G128: 1.00% | H128: 2.00% | I128: 2.00% | J128: 2.00% | K128: 3.00% | L128: 3.00%
A129: Bobcat | B129: $140.00 | C129: $120.00 | E129: Each / Per HR | G129: 1.00% | H129: 2.00% | I129: 2.00% | J129: 2.00% | K129: 3.00% | L129: 3.00%
A130: Front End Loader- Rubber Tired | B130: $225.00 | C130: $195.00 | E130: Each / Per HR | G130: 1.00% | H130: 2.00% | I130: 2.00% | J130: 2.00% | K130: 3.00% | L130: 3.00%
A131: Dozer-CAT D-4 | B131: $185.00 | C131: $165.00 | E131: Each / Per HR | G131: 1.00% | H131: 2.00% | I131: 2.00% | J131: 2.00% | K131: 3.00% | L131: 3.00%
A132: Traffic Control Signs and Flags | B132: $50.00 | C132: $45.00 | E132: Each / Per HR | G132: 1.00% | H132: 2.00% | I132: 2.00% | J132: 2.00% | K132: 3.00% | L132: 3.00%
A134: Vegetative Debris Removal from Public Roads, Streets and ROWS And Hauling to Debris Management Site (Vegetative)
A135: Hauling Distance 0-15 miles | E135: Cubic Yard (CY) | F135: $9.82 | G135: 1.00% | H135: 2.00% | I135: 2.00% | J135: 2.00% | K135: 3.00% | L135: 3.00%
A136: Hauling Distance 16-30 miles | E136: CY | F136: $10.42 | G136: 1.00% | H136: 2.00% | I136: 2.00% | J136: 2.00% | K136: 3.00% | L136: 3.00%
A137: Hauling Distance 31-60 miles | E137: CY | F137: $12.98 | G137: 1.00% | H137: 2.00% | I137: 2.00% | J137: 2.00% | K137: 3.00% | L137: 3.00%
A139: Vegetative Debris Removal from Public Roads, Streets and ROWS And Hauling to a Final Disposal Sites
A140: Hauling Distance 0-15 miles | E140: Cubic Yard (CY) | F140: =+F135+1 -> $10.82 | G140: 1.00% | H140: 2.00% | I140: 2.00% | J140: 2.00% | K140: 3.00% | L140: 3.00%
A141: Hauling Distance 16-30 miles | E141: CY | F141: =+F136+1 -> $11.42 | G141: 1.00% | H141: 2.00% | I141: 2.00% | J141: 2.00% | K141: 3.00% | L141: 3.00%
A142: Hauling Distance 31-60 miles | E142: CY | F142: =+F137+1 -> $13.98 | G142: 1.00% | H142: 2.00% | I142: 2.00% | J142: 2.00% | K142: 3.00% | L142: 3.00%
A144: Vegetative Debris Management and Reduction at Debris Management Site
A145: Site Management | E145: CY | F145: $1.86 | G145: 1.00% | H145: 2.00% | I145: 2.00% | J145: 2.00% | K145: 3.00% | L145: 3.00%
A146: Mechanical (chipping or grinding) | E146: CY | F146: $4.24 | G146: 1.00% | H146: 2.00% | I146: 2.00% | J146: 2.00% | K146: 3.00% | L146: 3.00%
A147: Air Curtain Incineration | E147: CY | F147: $3.24 | G147: 1.00% | H147: 2.00% | I147: 2.00% | J147: 2.00% | K147: 3.00% | L147: 3.00%
A148: Open Burning | E148: CY | F148: $2.28 | G148: 1.00% | H148: 2.00% | I148: 2.00% | J148: 2.00% | K148: 3.00% | L148: 3.00%
A149: Compaction | E149: CY | F149: $1.32 | G149: 1.00% | H149: 2.00% | I149: 2.00% | J149: 2.00% | K149: 3.00% | L149: 3.00%
A151: Final Disposal of Reduced Chips
A152: Hauling Distance 0-15 miles | E152: CY | F152: $4.42 | G152: 1.00% | H152: 2.00% | I152: 2.00% | J152: 2.00% | K152: 3.00% | L152: 3.00%
A153: Hauling Distance 16-30 miles | E153: CY | F153: $5.98 | G153: 1.00% | H153: 2.00% | I153: 2.00% | J153: 2.00% | K153: 3.00% | L153: 3.00%
A154: Hauling Distance 31-60 miles | E154: CY | F154: $7.98 | G154: 1.00% | H154: 2.00% | I154: 2.00% | J154: 2.00% | K154: 3.00% | L154: 3.00%
A156: Testing of Ash and Disposal at Landfill
A157: Hauling Distance 0-15 miles | E157: CY | F157: $5.92 | G157: 1.00% | H157: 2.00% | I157: 2.00% | J157: 2.00% | K157: 3.00% | L157: 3.00%
A158: Hauling Distance 16-30 miles | E158: CY | F158: $7.42 | G158: 1.00% | H158: 2.00% | I158: 2.00% | J158: 2.00% | K158: 3.00% | L158: 3.00%
A159: Hauling Distance 31-60 miles | E159: CY | F159: $9.42 | G159: 1.00% | H159: 2.00% | I159: 2.00% | J159: 2.00% | K159: 3.00% | L159: 3.00%
A161: Leaning Trees and Hanging Limbs- Resulting debris to be placed on ROW and treated as regular vegetative debris
A162: Trees 0-6" in Diameter | E162: Each Tree | F162: $75.00 | G162: 1.00% | H162: 2.00% | I162: 2.00% | J162: 2.00% | K162: 3.00% | L162: 3.00%
A163: Trees 6.1to 12" in Diameter | E163: Each Tree | F163: $195.00 | G163: 1.00% | H163: 2.00% | I163: 2.00% | J163: 2.00% | K163: 3.00% | L163: 3.00%
A164: Trees 12.1 to 24" in Diameter | E164: Each Tree | F164: $295.00 | G164: 1.00% | H164: 2.00% | I164: 2.00% | J164: 2.00% | K164: 3.00% | L164: 3.00%
A165: Trees 24.1 to 36" in Diameter | E165: Each Tree | F165: $450.00 | G165: 1.00% | H165: 2.00% | I165: 2.00% | J165: 2.00% | K165: 3.00% | L165: 3.00%
A166: Trees 36.1 to 48" in Diameter | E166: Each Tree | F166: $650.00 | G166: 1.00% | H166: 2.00% | I166: 2.00% | J166: 2.00% | K166: 3.00% | L166: 3.00%
A167: Trees 48.1 to 72" in Diameter | E167: Each Tree | F167: $750.00 | G167: 1.00% | H167: 2.00% | I167: 2.00% | J167: 2.00% | K167: 3.00% | L167: 3.00%
A168: Trees >72" in Diameter | E168: Each Tree | F168: $950.00 | G168: 1.00% | H168: 2.00% | I168: 2.00% | J168: 2.00% | K168: 3.00% | L168: 3.00%
A169: Hanging Limbs | E169: Each Tree | F169: $92.50 | G169: 1.00% | H169: 2.00% | I169: 2.00% | J169: 2.00% | K169: 3.00% | L169: 3.00%
A171: Removal and Disposal of Stumps, including backfilling of stump hole
A172: Stumps < 24" | E172: Cubic Yard | F172: $22.86 | G172: 1.00% | H172: 2.00% | I172: 2.00% | J172: 2.00% | K172: 3.00% | L172: 3.00%
A173: Stumps 24-36" | E173: Each Stump | F173: $250.00 | G173: 1.00% | H173: 2.00% | I173: 2.00% | J173: 2.00% | K173: 3.00% | L173: 3.00%
A174: Stumps 36-48" | E174: Each Stump | F174: $450.00 | G174: 1.00% | H174: 2.00% | I174: 2.00% | J174: 2.00% | K174: 3.00% | L174: 3.00%
A175: Stumps 48-72" | E175: Each Stump | F175: $650.00 | G175: 1.00% | H175: 2.00% | I175: 2.00% | J175: 2.00% | K175: 3.00% | L175: 3.00%
A176: Stumps >72" | E176: Each Stump | F176: $850.00 | G176: 1.00% | H176: 2.00% | I176: 2.00% | J176: 2.00% | K176: 3.00% | L176: 3.00%
A178: Region 4- States of ME, VT, NH, MA, CT, NY, DE, MD, DC, PA, VA, RI
A179: Personnel and Equipment- Hourly
A180: Project Manager | B180: =+B122+50 -> $150.00 | C180: =+C122+50 -> $130.00 | E180: Each / Per HR | G180: 1.00% | H180: 2.00% | I180: 2.00% | J180: 2.00% | K180: 3.00% | L180: 3.00%
A181: Supervisor | B181: =+B123+50 -> $140.00 | C181: $125.00 | E181: Each / Per HR | G181: 1.00% | H181: 2.00% | I181: 2.00% | J181: 2.00% | K181: 3.00% | L181: 3.00%
A182: Equipment Operator | B182: $120.00 | C182: $105.00 | E182: Each / Per HR | G182: 1.00% | H182: 2.00% | I182: 2.00% | J182: 2.00% | K182: 3.00% | L182: 3.00%
A183: Sawman with saw | B183: $115.00 | C183: $105.00 | E183: Each / Per HR | G183: 1.00% | H183: 2.00% | I183: 2.00% | J183: 2.00% | K183: 3.00% | L183: 3.00%
A184: Laborer | B184: $110.00 | C184: $100.00 | E184: Each / Per HR | G184: 1.00% | H184: 2.00% | I184: 2.00% | J184: 2.00% | K184: 3.00% | L184: 3.00%
A185: Traffic Control | B185: $100.00 | C185: $90.00 | E185: Each / Per HR | G185: 1.00% | H185: 2.00% | I185: 2.00% | J185: 2.00% | K185: 3.00% | L185: 3.00%
A186: 30-50 CY Self Loading Truck | B186: $300.00 | C186: $275.00 | E186: Each / Per HR | G186: 1.00% | H186: 2.00% | I186: 2.00% | J186: 2.00% | K186: 3.00% | L186: 3.00%
A187: Bobcat | B187: $190.00 | C187: $170.00 | E187: Each / Per HR | G187: 1.00% | H187: 2.00% | I187: 2.00% | J187: 2.00% | K187: 3.00% | L187: 3.00%
A188: Front End Loader- Rubber Tired | B188: $275.00 | C188: $245.00 | E188: Each / Per HR | G188: 1.00% | H188: 2.00% | I188: 2.00% | J188: 2.00% | K188: 3.00% | L188: 3.00%
A189: Dozer-CAT D-4 | B189: $235.00 | C189: $215.00 | E189: Each / Per HR | G189: 1.00% | H189: 2.00% | I189: 2.00% | J189: 2.00% | K189: 3.00% | L189: 3.00%
A190: Traffic Control Signs and Flags | B190: $75.00 | C190: $65.00 | E190: Each / Per HR | G190: 1.00% | H190: 2.00% | I190: 2.00% | J190: 2.00% | K190: 3.00% | L190: 3.00%
A192: Vegetative Debris Removal from Public Roads, Streets and ROWS And Hauling to Debris Management Site (Vegetative)
A193: Hauling Distance 0-15 miles | E193: Cubic Yard (CY) | F193: $16.82 | G193: 1.00% | H193: 2.00% | I193: 2.00% | J193: 2.00% | K193: 3.00% | L193: 3.00%
A194: Hauling Distance 16-30 miles | E194: CY | F194: $17.42 | G194: 1.00% | H194: 2.00% | I194: 2.00% | J194: 2.00% | K194: 3.00% | L194: 3.00%
A195: Hauling Distance 31-60 miles | E195: CY | F195: $19.98 | G195: 1.00% | H195: 2.00% | I195: 2.00% | J195: 2.00% | K195: 3.00% | L195: 3.00%
A197: Vegetative Debris Removal from Public Roads, Streets and ROWS And Hauling to a Final Disposal Sites
A198: Hauling Distance 0-15 miles | E198: Cubic Yard (CY) | F198: =+F193+3 -> $19.82 | G198: 1.00% | H198: 2.00% | I198: 2.00% | J198: 2.00% | K198: 3.00% | L198: 3.00%
A199: Hauling Distance 16-30 miles | E199: CY | F199: =+F194+3 -> $20.42 | G199: 1.00% | H199: 2.00% | I199: 2.00% | J199: 2.00% | K199: 3.00% | L199: 3.00%
A200: Hauling Distance 31-60 miles | E200: CY | F200: $22.98 | G200: 1.00% | H200: 2.00% | I200: 2.00% | J200: 2.00% | K200: 3.00% | L200: 3.00%
A202: Vegetative Debris Management and Reduction at Debris Management Site
A203: Site Management | E203: CY | F203: $3.66 | G203: 1.00% | H203: 2.00% | I203: 2.00% | J203: 2.00% | K203: 3.00% | L203: 3.00%
A204: Mechanical (chipping or grinding) | E204: CY | F204: $5.98 | G204: 1.00% | H204: 2.00% | I204: 2.00% | J204: 2.00% | K204: 3.00% | L204: 3.00%
A205: Air Curtain Incineration | E205: CY | F205: $4.98 | G205: 1.00% | H205: 2.00% | I205: 2.00% | J205: 2.00% | K205: 3.00% | L205: 3.00%
A206: Open Burning | E206: CY | F206: $3.98 | G206: 1.00% | H206: 2.00% | I206: 2.00% | J206: 2.00% | K206: 3.00% | L206: 3.00%
A207: Compaction | E207: CY | F207: $3.42 | G207: 1.00% | H207: 2.00% | I207: 2.00% | J207: 2.00% | K207: 3.00% | L207: 3.00%
A209: Final Disposal of Reduced Chips
A210: Hauling Distance 0-15 miles | E210: CY | F210: $6.62 | G210: 1.00% | H210: 2.00% | I210: 2.00% | J210: 2.00% | K210: 3.00% | L210: 3.00%
A211: Hauling Distance 16-30 miles | E211: CY | F211: $8.22 | G211: 1.00% | H211: 2.00% | I211: 2.00% | J211: 2.00% | K211: 3.00% | L211: 3.00%
A212: Hauling Distance 31-60 miles | E212: CY | F212: $10.22 | G212: 1.00% | H212: 2.00% | I212: 2.00% | J212: 2.00% | K212: 3.00% | L212: 3.00%
A214: Testing of Ash and Disposal at Landfill
A215: Hauling Distance 0-15 miles | E215: CY | F215: $8.72 | G215: 1.00% | H215: 2.00% | I215: 2.00% | J215: 2.00% | K215: 3.00% | L215: 3.00%
A216: Hauling Distance 16-30 miles | E216: CY | F216: $10.22 | G216: 1.00% | H216: 2.00% | I216: 2.00% | J216: 2.00% | K216: 3.00% | L216: 3.00%
A217: Hauling Distance 31-60 miles | E217: CY | F217: $13.22 | G217: 1.00% | H217: 2.00% | I217: 2.00% | J217: 2.00% | K217: 3.00% | L217: 3.00%
A219: Leaning Trees and Hanging Limbs- Resulting debris to be placed on ROW and treated as regular vegetative debris
A220: Trees 0-6" in Diameter | E220: Each Tree | F220: $175.00 | G220: 1.00% | H220: 2.00% | I220: 2.00% | J220: 2.00% | K220: 3.00% | L220: 3.00%
A221: Trees 6.1to 12" in Diameter | E221: Each Tree | F221: $350.00 | G221: 1.00% | H221: 2.00% | I221: 2.00% | J221: 2.00% | K221: 3.00% | L221: 3.00%
A222: Trees 12.1 to 24" in Diameter | E222: Each Tree | F222: $450.00 | G222: 1.00% | H222: 2.00% | I222: 2.00% | J222: 2.00% | K222: 3.00% | L222: 3.00%
A223: Trees 24.1 to 36" in Diameter | E223: Each Tree | F223: $650.00 | G223: 1.00% | H223: 2.00% | I223: 2.00% | J223: 2.00% | K223: 3.00% | L223: 3.00%
A224: Trees 36.1 to 48" in Diameter | E224: Each Tree | F224: $850.00 | G224: 1.00% | H224: 2.00% | I224: 2.00% | J224: 2.00% | K224: 3.00% | L224: 3.00%
A225: Trees 48.1 to 72" in Diameter | E225: Each Tree | F225: $1,050.00 | G225: 1.00% | H225: 2.00% | I225: 2.00% | J225: 2.00% | K225: 3.00% | L225: 3.00%
A226: Trees >72" in Diameter | E226: Each Tree | F226: $1,250.00 | G226: 1.00% | H226: 2.00% | I226: 2.00% | J226: 2.00% | K226: 3.00% | L226: 3.00%
A227: Hanging Limbs | E227: Each Tree | F227: $162.50 | G227: 1.00% | H227: 2.00% | I227: 2.00% | J227: 2.00% | K227: 3.00% | L227: 3.00%
A229: Removal and Disposal of Stumps, including backfilling of stump hole
A230: Stumps < 24" | E230: Cubic Yard | F230: $42.86 | G230: 1.00% | H230: 2.00% | I230: 2.00% | J230: 2.00% | K230: 3.00% | L230: 3.00%
A231: Stumps 24-36" | E231: Each Stump | F231: $450.00 | G231: 1.00% | H231: 2.00% | I231: 2.00% | J231: 2.00% | K231: 3.00% | L231: 3.00%
A232: Stumps 36-48" | E232: Each Stump | F232: $650.00 | G232: 1.00% | H232: 2.00% | I232: 2.00% | J232: 2.00% | K232: 3.00% | L232: 3.00%
... 203 more rows

Sheet Category II
A1: List Services Provided (Labor category, and Skill Class) (Items in Red are meant as examples. Add more lines as needed or attach a .pdf, must mimic this format) | B1: LABOR Emergent Not To Exceed Hourly Rate | C1: LABOR Non- Emergent Not To Exceed Hourly Rate | D1: Materials and Supplies Description | E1: Unit | F1: Material Cost Per Hour | G1: % Rate Increase 2nd year | H1: % Rate Increase 3rd year | I1: % Rate Increase 4th year | J1: % Rate Increase 5th year | K1: % Rate Increase 6th year | L1: % Rate Increase 7th year
A2: Category II- Construction and Demolition (C&D) Debris
A4: Region 1- States of MT, WY, ID, OR, WA, MO, KS, CO, NE, SD, ND
A5: Personnel and Equipment- Hourly
A6: Project Manager | B6: $100.00 | C6: $80.00 | E6: Each / Per HR | G6: 1.00% | H6: 2.00% | I6: 2.00% | J6: 2.00% | K6: 3.00% | L6: 3.00%
A7: Supervisor | B7: $90.00 | C7: $75.00 | E7: Each / Per HR | G7: 1.00% | H7: 2.00% | I7: 2.00% | J7: 2.00% | K7: 3.00% | L7: 3.00%
A8: Equipment Operator | B8: $70.00 | C8: $55.00 | E8: Each / Per HR | G8: 1.00% | H8: 2.00% | I8: 2.00% | J8: 2.00% | K8: 3.00% | L8: 3.00%
A9: Sawman with saw | B9: $65.00 | C9: $55.00 | E9: Each / Per HR | G9: 1.00% | H9: 2.00% | I9: 2.00% | J9: 2.00% | K9: 3.00% | L9: 3.00%
A10: Laborer | B10: $60.00 | C10: $50.00 | E10: Each / Per HR | G10: 1.00% | H10: 2.00% | I10: 2.00% | J10: 2.00% | K10: 3.00% | L10: 3.00%
A11: Traffic Control | B11: $50.00 | C11: $40.00 | E11: Each / Per HR | G11: 1.00% | H11: 2.00% | I11: 2.00% | J11: 2.00% | K11: 3.00% | L11: 3.00%
A12: 30-50 CY Self Loading Truck | B12: $250.00 | C12: $225.00 | E12: Each / Per HR | G12: 1.00% | H12: 2.00% | I12: 2.00% | J12: 2.00% | K12: 3.00% | L12: 3.00%
A13: Bobcat | B13: $140.00 | C13: $120.00 | E13: Each / Per HR | G13: 1.00% | H13: 2.00% | I13: 2.00% | J13: 2.00% | K13: 3.00% | L13: 3.00%
A14: Front End Loader- Rubber Tired | B14: $225.00 | C14: $195.00 | E14: Each / Per HR | G14: 1.00% | H14: 2.00% | I14: 2.00% | J14: 2.00% | K14: 3.00% | L14: 3.00%
A15: Dozer-CAT D-4 | B15: $185.00 | C15: $165.00 | E15: Each / Per HR | G15: 1.00% | H15: 2.00% | I15: 2.00% | J15: 2.00% | K15: 3.00% | L15: 3.00%
A16: Traffic Control Signs and Flags | B16: $50.00 | C16: $45.00 | E16: Each / Per HR | G16: 1.00% | H16: 2.00% | I16: 2.00% | J16: 2.00% | K16: 3.00% | L16: 3.00%
A18: C&D Debris Removal from Public Roads, Streets and ROWS And Hauling to Debris Management Site (Vegetative)
A19: Hauling Distance 0-15 miles | E19: Cubic Yard (CY) | F19: $9.95 | G19: 1.00% | H19: 2.00% | I19: 2.00% | J19: 2.00% | K19: 3.00% | L19: 3.00%
A20: Hauling Distance 16-30 miles | E20: CY | F20: $10.92 | G20: 1.00% | H20: 2.00% | I20: 2.00% | J20: 2.00% | K20: 3.00% | L20: 3.00%
A21: Hauling Distance 31-60 miles | E21: CY | F21: $13.42 | G21: 1.00% | H21: 2.00% | I21: 2.00% | J21: 2.00% | K21: 3.00% | L21: 3.00%
A23: C&D Debris Removal from Public Roads, Streets and ROWS And Hauling to a Final Disposal Sites
A24: Hauling Distance 0-15 miles | E24: Cubic Yard (CY) | F24: =+F19+1 -> $10.95 | G24: 1.00% | H24: 2.00% | I24: 2.00% | J24: 2.00% | K24: 3.00% | L24: 3.00%
A25: Hauling Distance 16-30 miles | E25: CY | F25: =+F20+1 -> $11.92 | G25: 1.00% | H25: 2.00% | I25: 2.00% | J25: 2.00% | K25: 3.00% | L25: 3.00%
A26: Hauling Distance 31-60 miles | E26: CY | F26: =+F21+1 -> $14.42 | G26: 1.00% | H26: 2.00% | I26: 2.00% | J26: 2.00% | K26: 3.00% | L26: 3.00%
A28: C&D Debris Management and Reduction at Debris Management Site
A29: Site Management | E29: CY | F29: $1.86 | G29: 1.00% | H29: 2.00% | I29: 2.00% | J29: 2.00% | K29: 3.00% | L29: 3.00%
A30: Mechanical (chipping or grinding) | E30: CY | F30: $5.24 | G30: 1.00% | H30: 2.00% | I30: 2.00% | J30: 2.00% | K30: 3.00% | L30: 3.00%
A31: Compaction | E31: CY | F31: $1.32 | G31: 1.00% | H31: 2.00% | I31: 2.00% | J31: 2.00% | K31: 3.00% | L31: 3.00%
A33: Final Disposal of Reduced C&D Debris
A34: Hauling Distance 0-15 miles | E34: CY | F34: $4.42 | G34: 1.00% | H34: 2.00% | I34: 2.00% | J34: 2.00% | K34: 3.00% | L34: 3.00%
A35: Hauling Distance 16-30 miles | E35: CY | F35: $5.98 | G35: 1.00% | H35: 2.00% | I35: 2.00% | J35: 2.00% | K35: 3.00% | L35: 3.00%
A36: Hauling Distance 31-60 miles | E36: CY | F36: $8.98 | G36: 1.00% | H36: 2.00% | I36: 2.00% | J36: 2.00% | K36: 3.00% | L36: 3.00%
A38: Region 2- States ofIL, IA, MN, WI, LA, MS
A39: Personnel and Equipment- Hourly
A40: Project Manager | B40: $100.00 | C40: $80.00 | E40: Each / Per HR | G40: 1.00% | H40: 2.00% | I40: 2.00% | J40: 2.00% | K40: 3.00% | L40: 3.00%
A41: Supervisor | B41: $90.00 | C41: $75.00 | E41: Each / Per HR | G41: 1.00% | H41: 2.00% | I41: 2.00% | J41: 2.00% | K41: 3.00% | L41: 3.00%
A42: Equipment Operator | B42: $70.00 | C42: $55.00 | E42: Each / Per HR | G42: 1.00% | H42: 2.00% | I42: 2.00% | J42: 2.00% | K42: 3.00% | L42: 3.00%
A43: Sawman with saw | B43: $65.00 | C43: $55.00 | E43: Each / Per HR | G43: 1.00% | H43: 2.00% | I43: 2.00% | J43: 2.00% | K43: 3.00% | L43: 3.00%
A44: Laborer | B44: $60.00 | C44: $50.00 | E44: Each / Per HR | G44: 1.00% | H44: 2.00% | I44: 2.00% | J44: 2.00% | K44: 3.00% | L44: 3.00%
A45: Traffic Control | B45: $50.00 | C45: $40.00 | E45: Each / Per HR | G45: 1.00% | H45: 2.00% | I45: 2.00% | J45: 2.00% | K45: 3.00% | L45: 3.00%
A46: 30-50 CY Self Loading Truck | B46: $250.00 | C46: $225.00 | E46: Each / Per HR | G46: 1.00% | H46: 2.00% | I46: 2.00% | J46: 2.00% | K46: 3.00% | L46: 3.00%
A47: Bobcat | B47: $140.00 | C47: $120.00 | E47: Each / Per HR | G47: 1.00% | H47: 2.00% | I47: 2.00% | J47: 2.00% | K47: 3.00% | L47: 3.00%
A48: Front End Loader- Rubber Tired | B48: $225.00 | C48: $195.00 | E48: Each / Per HR | G48: 1.00% | H48: 2.00% | I48: 2.00% | J48: 2.00% | K48: 3.00% | L48: 3.00%
A49: Dozer-CAT D-4 | B49: $185.00 | C49: $165.00 | E49: Each / Per HR | G49: 1.00% | H49: 2.00% | I49: 2.00% | J49: 2.00% | K49: 3.00% | L49: 3.00%
A50: Traffic Control Signs and Flags | B50: $50.00 | C50: $45.00 | E50: Each / Per HR | G50: 1.00% | H50: 2.00% | I50: 2.00% | J50: 2.00% | K50: 3.00% | L50: 3.00%
A52: C&D Debris Removal from Public Roads, Streets and ROWS And Hauling to Debris Management Site (Vegetative)
A53: Hauling Distance 0-15 miles | E53: Cubic Yard (CY) | F53: $9.95 | G53: 1.00% | H53: 2.00% | I53: 2.00% | J53: 2.00% | K53: 3.00% | L53: 3.00%
A54: Hauling Distance 16-30 miles | E54: CY | F54: $10.92 | G54: 1.00% | H54: 2.00% | I54: 2.00% | J54: 2.00% | K54: 3.00% | L54: 3.00%
A55: Hauling Distance 31-60 miles | E55: CY | F55: $13.42 | G55: 1.00% | H55: 2.00% | I55: 2.00% | J55: 2.00% | K55: 3.00% | L55: 3.00%
A57: C&D Debris Removal from Public Roads, Streets and ROWS And Hauling to a Final Disposal Sites
A58: Hauling Distance 0-15 miles | E58: Cubic Yard (CY) | F58: =+F53+1 -> $10.95 | G58: 1.00% | H58: 2.00% | I58: 2.00% | J58: 2.00% | K58: 3.00% | L58: 3.00%
A59: Hauling Distance 16-30 miles | E59: CY | F59: =+F54+1 -> $11.92 | G59: 1.00% | H59: 2.00% | I59: 2.00% | J59: 2.00% | K59: 3.00% | L59: 3.00%
A60: Hauling Distance 31-60 miles | E60: CY | F60: =+F55+1 -> $14.42 | G60: 1.00% | H60: 2.00% | I60: 2.00% | J60: 2.00% | K60: 3.00% | L60: 3.00%
A62: C&D Debris Management and Reduction at Debris Management Site
A63: Site Management | E63: CY | F63: $1.86 | G63: 1.00% | H63: 2.00% | I63: 2.00% | J63: 2.00% | K63: 3.00% | L63: 3.00%
A64: Mechanical (chipping or grinding) | E64: CY | F64: $5.24 | G64: 1.00% | H64: 2.00% | I64: 2.00% | J64: 2.00% | K64: 3.00% | L64: 3.00%
A65: Compaction | E65: CY | F65: $1.32 | G65: 1.00% | H65: 2.00% | I65: 2.00% | J65: 2.00% | K65: 3.00% | L65: 3.00%
A67: Final Disposal of Reduced C&D Debris
A68: Hauling Distance 0-15 miles | E68: CY | F68: $4.42 | G68: 1.00% | H68: 2.00% | I68: 2.00% | J68: 2.00% | K68: 3.00% | L68: 3.00%
A69: Hauling Distance 16-30 miles | E69: CY | F69: $5.98 | G69: 1.00% | H69: 2.00% | I69: 2.00% | J69: 2.00% | K69: 3.00% | L69: 3.00%
A70: Hauling Distance 31-60 miles | E70: CY | F70: $8.98 | G70: 1.00% | H70: 2.00% | I70: 2.00% | J70: 2.00% | K70: 3.00% | L70: 3.00%
A72: Region 3- States of MI, IN, TN, KY, OH, WV
A73: Personnel and Equipment- Hourly
A74: Project Manager | B74: $100.00 | C74: $80.00 | E74: Each / Per HR | G74: 1.00% | H74: 2.00% | I74: 2.00% | J74: 2.00% | K74: 3.00% | L74: 3.00%
A75: Supervisor | B75: $90.00 | C75: $75.00 | E75: Each / Per HR | G75: 1.00% | H75: 2.00% | I75: 2.00% | J75: 2.00% | K75: 3.00% | L75: 3.00%
A76: Equipment Operator | B76: $70.00 | C76: $55.00 | E76: Each / Per HR | G76: 1.00% | H76: 2.00% | I76: 2.00% | J76: 2.00% | K76: 3.00% | L76: 3.00%
A77: Sawman with saw | B77: $65.00 | C77: $55.00 | E77: Each / Per HR | G77: 1.00% | H77: 2.00% | I77: 2.00% | J77: 2.00% | K77: 3.00% | L77: 3.00%
A78: Laborer | B78: $60.00 | C78: $50.00 | E78: Each / Per HR | G78: 1.00% | H78: 2.00% | I78: 2.00% | J78: 2.00% | K78: 3.00% | L78: 3.00%
A79: Traffic Control | B79: $50.00 | C79: $40.00 | E79: Each / Per HR | G79: 1.00% | H79: 2.00% | I79: 2.00% | J79: 2.00% | K79: 3.00% | L79: 3.00%
A80: 30-50 CY Self Loading Truck | B80: $250.00 | C80: $225.00 | E80: Each / Per HR | G80: 1.00% | H80: 2.00% | I80: 2.00% | J80: 2.00% | K80: 3.00% | L80: 3.00%
A81: Bobcat | B81: $140.00 | C81: $120.00 | E81: Each / Per HR | G81: 1.00% | H81: 2.00% | I81: 2.00% | J81: 2.00% | K81: 3.00% | L81: 3.00%
A82: Front End Loader- Rubber Tired | B82: $225.00 | C82: $195.00 | E82: Each / Per HR | G82: 1.00% | H82: 2.00% | I82: 2.00% | J82: 2.00% | K82: 3.00% | L82: 3.00%
A83: Dozer-CAT D-4 | B83: $185.00 | C83: $165.00 | E83: Each / Per HR | G83: 1.00% | H83: 2.00% | I83: 2.00% | J83: 2.00% | K83: 3.00% | L83: 3.00%
A84: Traffic Control Signs and Flags | B84: $50.00 | C84: $45.00 | E84: Each / Per HR | G84: 1.00% | H84: 2.00% | I84: 2.00% | J84: 2.00% | K84: 3.00% | L84: 3.00%
A86: C&D Debris Removal from Public Roads, Streets and ROWS And Hauling to Debris Management Site (Vegetative)
A87: Hauling Distance 0-15 miles | E87: Cubic Yard (CY) | F87: $9.95 | G87: 1.00% | H87: 2.00% | I87: 2.00% | J87: 2.00% | K87: 3.00% | L87: 3.00%
A88: Hauling Distance 16-30 miles | E88: CY | F88: $10.92 | G88: 1.00% | H88: 2.00% | I88: 2.00% | J88: 2.00% | K88: 3.00% | L88: 3.00%
A89: Hauling Distance 31-60 miles | E89: CY | F89: $13.42 | G89: 1.00% | H89: 2.00% | I89: 2.00% | J89: 2.00% | K89: 3.00% | L89: 3.00%
A91: C&D Debris Removal from Public Roads, Streets and ROWS And Hauling to a Final Disposal Sites
A92: Hauling Distance 0-15 miles | E92: Cubic Yard (CY) | F92: $10.95 | G92: 1.00% | H92: 2.00% | I92: 2.00% | J92: 2.00% | K92: 3.00% | L92: 3.00%
A93: Hauling Distance 16-30 miles | E93: CY | F93: $11.92 | G93: 1.00% | H93: 2.00% | I93: 2.00% | J93: 2.00% | K93: 3.00% | L93: 3.00%
A94: Hauling Distance 31-60 miles | E94: CY | F94: $14.42 | G94: 1.00% | H94: 2.00% | I94: 2.00% | J94: 2.00% | K94: 3.00% | L94: 3.00%
F95: 0
A96: C&D Debris Management and Reduction at Debris Management Site | F96: 0
A97: Site Management | E97: CY | F97: $1.86 | G97: 1.00% | H97: 2.00% | I97: 2.00% | J97: 2.00% | K97: 3.00% | L97: 3.00%
A98: Mechanical (chipping or grinding) | E98: CY | F98: $5.24 | G98: 1.00% | H98: 2.00% | I98: 2.00% | J98: 2.00% | K98: 3.00% | L98: 3.00%
A99: Compaction | E99: CY | F99: $1.32 | G99: 1.00% | H99: 2.00% | I99: 2.00% | J99: 2.00% | K99: 3.00% | L99: 3.00%
A101: Final Disposal of Reduced C&D Debris
A102: Hauling Distance 0-15 miles | E102: CY | F102: $4.42 | G102: 1.00% | H102: 2.00% | I102: 2.00% | J102: 2.00% | K102: 3.00% | L102: 3.00%
A103: Hauling Distance 16-30 miles | E103: CY | F103: $5.98 | G103: 1.00% | H103: 2.00% | I103: 2.00% | J103: 2.00% | K103: 3.00% | L103: 3.00%
A104: Hauling Distance 31-60 miles | E104: CY | F104: $8.98 | G104: 1.00% | H104: 2.00% | I104: 2.00% | J104: 2.00% | K104: 3.00% | L104: 3.00%
A106: Region 4- States of ME, VT, NH, MA, CT, NY, DE, MD, DC, PA, VA, RI
A107: Personnel and Equipment- Hourly
A108: Project Manager | B108: $150.00 | C108: $130.00 | E108: Each / Per HR | G108: 1.00% | H108: 2.00% | I108: 2.00% | J108: 2.00% | K108: 3.00% | L108: 3.00%
A109: Supervisor | B109: $140.00 | C109: $125.00 | E109: Each / Per HR | G109: 1.00% | H109: 2.00% | I109: 2.00% | J109: 2.00% | K109: 3.00% | L109: 3.00%
A110: Equipment Operator | B110: $120.00 | C110: $105.00 | E110: Each / Per HR | G110: 1.00% | H110: 2.00% | I110: 2.00% | J110: 2.00% | K110: 3.00% | L110: 3.00%
A111: Sawman with saw | B111: $115.00 | C111: $105.00 | E111: Each / Per HR | G111: 1.00% | H111: 2.00% | I111: 2.00% | J111: 2.00% | K111: 3.00% | L111: 3.00%
A112: Laborer | B112: $110.00 | C112: $100.00 | E112: Each / Per HR | G112: 1.00% | H112: 2.00% | I112: 2.00% | J112: 2.00% | K112: 3.00% | L112: 3.00%
A113: Traffic Control | B113: $100.00 | C113: $90.00 | E113: Each / Per HR | G113: 1.00% | H113: 2.00% | I113: 2.00% | J113: 2.00% | K113: 3.00% | L113: 3.00%
A114: 30-50 CY Self Loading Truck | B114: $300.00 | C114: $275.00 | E114: Each / Per HR | G114: 1.00% | H114: 2.00% | I114: 2.00% | J114: 2.00% | K114: 3.00% | L114: 3.00%
A115: Bobcat | B115: $190.00 | C115: $170.00 | E115: Each / Per HR | G115: 1.00% | H115: 2.00% | I115: 2.00% | J115: 2.00% | K115: 3.00% | L115: 3.00%
A116: Front End Loader- Rubber Tired | B116: $275.00 | C116: $245.00 | E116: Each / Per HR | G116: 1.00% | H116: 2.00% | I116: 2.00% | J116: 2.00% | K116: 3.00% | L116: 3.00%
A117: Dozer-CAT D-4 | B117: $235.00 | C117: $215.00 | E117: Each / Per HR | G117: 1.00% | H117: 2.00% | I117: 2.00% | J117: 2.00% | K117: 3.00% | L117: 3.00%
A118: Traffic Control Signs and Flags | B118: $75.00 | C118: $65.00 | E118: Each / Per HR | G118: 1.00% | H118: 2.00% | I118: 2.00% | J118: 2.00% | K118: 3.00% | L118: 3.00%
A120: C&D Debris Removal from Public Roads, Streets and ROWS And Hauling to Final Disposal
A121: Hauling Distance 0-15 miles | E121: Cubic Yard (CY) | F121: $16.92 | G121: 1.00% | H121: 2.00% | I121: 2.00% | J121: 2.00% | K121: 3.00% | L121: 3.00%
A122: Hauling Distance 16-30 miles | E122: CY | F122: $17.92 | G122: 1.00% | H122: 2.00% | I122: 2.00% | J122: 2.00% | K122: 3.00% | L122: 3.00%
A123: Hauling Distance 31-60 miles | E123: CY | F123: $20.92 | G123: 1.00% | H123: 2.00% | I123: 2.00% | J123: 2.00% | K123: 3.00% | L123: 3.00%
A125: C&D Debris Removal from Public Roads, Streets and ROWS And Hauling to a Final Disposal Sites
A126: Hauling Distance 0-15 miles | E126: Cubic Yard (CY) | F126: $17.92 | G126: 1.00% | H126: 2.00% | I126: 2.00% | J126: 2.00% | K126: 3.00% | L126: 3.00%
A127: Hauling Distance 16-30 miles | E127: CY | F127: $18.92 | G127: 1.00% | H127: 2.00% | I127: 2.00% | J127: 2.00% | K127: 3.00% | L127: 3.00%
A128: Hauling Distance 31-60 miles | E128: CY | F128: $21.92 | G128: 1.00% | H128: 2.00% | I128: 2.00% | J128: 2.00% | K128: 3.00% | L128: 3.00%
A130: C&D Debris Management and Reduction at Debris Management Site
A131: Site Management | E131: CY | F131: $3.66 | G131: 1.00% | H131: 2.00% | I131: 2.00% | J131: 2.00% | K131: 3.00% | L131: 3.00%
A132: Mechanical (chipping or grinding) | E132: CY | F132: $7.24 | G132: 1.00% | H132: 2.00% | I132: 2.00% | J132: 2.00% | K132: 3.00% | L132: 3.00%
A133: Compaction | E133: CY | F133: $2.68 | G133: 1.00% | H133: 2.00% | I133: 2.00% | J133: 2.00% | K133: 3.00% | L133: 3.00%
A135: Final Disposal of Reduced C&D Debris
A136: Hauling Distance 0-15 miles | E136: CY | F136: $9.42 | G136: 1.00% | H136: 2.00% | I136: 2.00% | J136: 2.00% | K136: 3.00% | L136: 3.00%
A137: Hauling Distance 16-30 miles | E137: CY | F137: $10.98 | G137: 1.00% | H137: 2.00% | I137: 2.00% | J137: 2.00% | K137: 3.00% | L137: 3.00%
A138: Hauling Distance 31-60 miles | E138: CY | F138: $13.98 | G138: 1.00% | H138: 2.00% | I138: 2.00% | J138: 2.00% | K138: 3.00% | L138: 3.00%
A140: Region 5 States of CA, NV, NM, AZ, UT
A141: Personnel and Equipment- Hourly
A142: Project Manager | B142: $185.00 | C142: $165.00 | E142: Each / Per HR | G142: 1.00% | H142: 2.00% | I142: 2.00% | J142: 2.00% | K142: 3.00% | L142: 3.00%
A143: Supervisor | B143: $175.00 | C143: $160.00 | E143: Each / Per HR | G143: 1.00% | H143: 2.00% | I143: 2.00% | J143: 2.00% | K143: 3.00% | L143: 3.00%
A144: Equipment Operator | B144: $155.00 | C144: $140.00 | E144: Each / Per HR | G144: 1.00% | H144: 2.00% | I144: 2.00% | J144: 2.00% | K144: 3.00% | L144: 3.00%
A145: Sawman with saw | B145: $150.00 | C145: $140.00 | E145: Each / Per HR | G145: 1.00% | H145: 2.00% | I145: 2.00% | J145: 2.00% | K145: 3.00% | L145: 3.00%
A146: Laborer | B146: $145.00 | C146: $135.00 | E146: Each / Per HR | G146: 1.00% | H146: 2.00% | I146: 2.00% | J146: 2.00% | K146: 3.00% | L146: 3.00%
A147: Traffic Control | B147: $135.00 | C147: $125.00 | E147: Each / Per HR | G147: 1.00% | H147: 2.00% | I147: 2.00% | J147: 2.00% | K147: 3.00% | L147: 3.00%
A148: 30-50 CY Self Loading Truck | B148: $335.00 | C148: $310.00 | E148: Each / Per HR | G148: 1.00% | H148: 2.00% | I148: 2.00% | J148: 2.00% | K148: 3.00% | L148: 3.00%
A149: Bobcat | B149: $225.00 | C149: $205.00 | E149: Each / Per HR | G149: 1.00% | H149: 2.00% | I149: 2.00% | J149: 2.00% | K149: 3.00% | L149: 3.00%
A150: Front End Loader- Rubber Tired | B150: $310.00 | C150: $280.00 | E150: Each / Per HR | G150: 1.00% | H150: 2.00% | I150: 2.00% | J150: 2.00% | K150: 3.00% | L150: 3.00%
A151: Dozer-CAT D-4 | B151: $270.00 | C151: $250.00 | E151: Each / Per HR | G151: 1.00% | H151: 2.00% | I151: 2.00% | J151: 2.00% | K151: 3.00% | L151: 3.00%
A152: Traffic Control Signs and Flags | B152: $100.00 | C152: $90.00 | E152: Each / Per HR | G152: 1.00% | H152: 2.00% | I152: 2.00% | J152: 2.00% | K152: 3.00% | L152: 3.00%
A154: C&D Debris Removal from Public Roads, Streets and ROWS And Hauling to Debris Management Site
A155: Hauling Distance 0-15 miles | E155: Cubic Yard (CY) | F155: $21.92 | G155: 1.00% | H155: 2.00% | I155: 2.00% | J155: 2.00% | K155: 3.00% | L155: 3.00%
A156: Hauling Distance 16-30 miles | E156: CY | F156: $22.92 | G156: 1.00% | H156: 2.00% | I156: 2.00% | J156: 2.00% | K156: 3.00% | L156: 3.00%
A157: Hauling Distance 31-60 miles | E157: CY | F157: $25.92 | G157: 1.00% | H157: 2.00% | I157: 2.00% | J157: 2.00% | K157: 3.00% | L157: 3.00%
A159: C&D Debris Removal from Public Roads, Streets and ROWS And Hauling to a Final Disposal Sites
A160: Hauling Distance 0-15 miles | E160: Cubic Yard (CY) | F160: =+F126+5 -> $22.92 | G160: 1.00% | H160: 2.00% | I160: 2.00% | J160: 2.00% | K160: 3.00% | L160: 3.00%
A161: Hauling Distance 16-30 miles | E161: CY | F161: $23.92 | G161: 1.00% | H161: 2.00% | I161: 2.00% | J161: 2.00% | K161: 3.00% | L161: 3.00%
A162: Hauling Distance 31-60 miles | E162: CY | F162: $26.92 | G162: 1.00% | H162: 2.00% | I162: 2.00% | J162: 2.00% | K162: 3.00% | L162: 3.00%
A164: C&D Debris Management and Reduction at Debris Management Site
A165: Site Management | E165: CY | F165: $4.66 | G165: 1.00% | H165: 2.00% | I165: 2.00% | J165: 2.00% | K165: 3.00% | L165: 3.00%
A166: Mechanical (chipping or grinding) | E166: CY | F166: $8.24 | G166: 1.00% | H166: 2.00% | I166: 2.00% | J166: 2.00% | K166: 3.00% | L166: 3.00%
A167: Compaction | E167: CY | F167: $3.68 | G167: 1.00% | H167: 2.00% | I167: 2.00% | J167: 2.00% | K167: 3.00% | L167: 3.00%
A169: Final Disposal of Reduced C&D Debris
A170: Hauling Distance 0-15 miles | E170: CY | F170: =+F136+4 -> $13.42 | G170: 1.00% | H170: 2.00% | I170: 2.00% | J170: 2.00% | K170: 3.00% | L170: 3.00%
A171: Hauling Distance 16-30 miles | E171: CY | F171: =+F137+4 -> $14.98 | G171: 1.00% | H171: 2.00% | I171: 2.00% | J171: 2.00% | K171: 3.00% | L171: 3.00%
A172: Hauling Distance 31-60 miles | E172: CY | F172: $17.98 | G172: 1.00% | H172: 2.00% | I172: 2.00% | J172: 2.00% | K172: 3.00% | L172: 3.00%
A174: Region 6 - States of TX, AR, OK
A175: Personnel and Equipment- Hourly
A176: Project Manager | B176: $100.00 | C176: $80.00 | E176: Each / Per HR | G176: 1.00% | H176: 2.00% | I176: 2.00% | J176: 2.00% | K176: 3.00% | L176: 3.00%
A177: Supervisor | B177: $90.00 | C177: $75.00 | E177: Each / Per HR | G177: 1.00% | H177: 2.00% | I177: 2.00% | J177: 2.00% | K177: 3.00% | L177: 3.00%
A178: Equipment Operator | B178: $70.00 | C178: $55.00 | E178: Each / Per HR | G178: 1.00% | H178: 2.00% | I178: 2.00% | J178: 2.00% | K178: 3.00% | L178: 3.00%
A179: Sawman with saw | B179: $65.00 | C179: $55.00 | E179: Each / Per HR | G179: 1.00% | H179: 2.00% | I179: 2.00% | J179: 2.00% | K179: 3.00% | L179: 3.00%
A180: Laborer | B180: $60.00 | C180: $50.00 | E180: Each / Per HR | G180: 1.00% | H180: 2.00% | I180: 2.00% | J180: 2.00% | K180: 3.00% | L180: 3.00%
A181: Traffic Control | B181: $50.00 | C181: $40.00 | E181: Each / Per HR | G181: 1.00% | H181: 2.00% | I181: 2.00% | J181: 2.00% | K181: 3.00% | L181: 3.00%
A182: 30-50 CY Self Loading Truck | B182: $250.00 | C182: $225.00 | E182: Each / Per HR | G182: 1.00% | H182: 2.00% | I182: 2.00% | J182: 2.00% | K182: 3.00% | L182: 3.00%
A183: Bobcat | B183: $140.00 | C183: $120.00 | E183: Each / Per HR | G183: 1.00% | H183: 2.00% | I183: 2.00% | J183: 2.00% | K183: 3.00% | L183: 3.00%
A184: Front End Loader- Rubber Tired | B184: $225.00 | C184: $195.00 | E184: Each / Per HR | G184: 1.00% | H184: 2.00% | I184: 2.00% | J184: 2.00% | K184: 3.00% | L184: 3.00%
A185: Dozer-CAT D-4 | B185: $185.00 | C185: $165.00 | E185: Each / Per HR | G185: 1.00% | H185: 2.00% | I185: 2.00% | J185: 2.00% | K185: 3.00% | L185: 3.00%
A186: Traffic Control Signs and Flags | B186: $50.00 | C186: $45.00 | E186: Each / Per HR | G186: 1.00% | H186: 2.00% | I186: 2.00% | J186: 2.00% | K186: 3.00% | L186: 3.00%
A188: C&D Debris Removal from Public Roads, Streets and ROWS And Hauling to Debris Management Site
A189: Hauling Distance 0-15 miles | E189: Cubic Yard (CY) | F189: =+F19 -> $9.95 | G189: 1.00% | H189: 2.00% | I189: 2.00% | J189: 2.00% | K189: 3.00% | L189: 3.00%
A190: Hauling Distance 16-30 miles | E190: CY | F190: =+F20 -> $10.92 | G190: 1.00% | H190: 2.00% | I190: 2.00% | J190: 2.00% | K190: 3.00% | L190: 3.00%
A191: Hauling Distance 31-60 miles | E191: CY | F191: $13.42 | G191: 1.00% | H191: 2.00% | I191: 2.00% | J191: 2.00% | K191: 3.00% | L191: 3.00%
A193: C&D Debris Removal from Public Roads, Streets and ROWS And Hauling to a Final Disposal Sites
A194: Hauling Distance 0-15 miles | E194: Cubic Yard (CY) | F194: $10.95 | G194: 1.00% | H194: 2.00% | I194: 2.00% | J194: 2.00% | K194: 3.00% | L194: 3.00%
A195: Hauling Distance 16-30 miles | E195: CY | F195: $11.92 | G195: 1.00% | H195: 2.00% | I195: 2.00% | J195: 2.00% | K195: 3.00% | L195: 3.00%
A196: Hauling Distance 31-60 miles | E196: CY | F196: $14.42 | G196: 1.00% | H196: 2.00% | I196: 2.00% | J196: 2.00% | K196: 3.00% | L196: 3.00%
A198: C&D Debris Management and Reduction at Debris Management Site
A199: Site Management | E199: CY | F199: $1.86 | G199: 1.00% | H199: 2.00% | I199: 2.00% | J199: 2.00% | K199: 3.00% | L199: 3.00%
A200: Mechanical (chipping or grinding) | E200: CY | F200: $5.24 | G200: 1.00% | H200: 2.00% | I200: 2.00% | J200: 2.00% | K200: 3.00% | L200: 3.00%
A201: Compaction | E201: CY | F201: $1.32 | G201: 1.00% | H201: 2.00% | I201: 2.00% | J201: 2.00% | K201: 3.00% | L201: 3.00%
A203: Final Disposal of Reduced C&D Debris
A204: Hauling Distance 0-15 miles | E204: CY | F204: $4.42 | G204: 1.00% | H204: 2.00% | I204: 2.00% | J204: 2.00% | K204: 3.00% | L204: 3.00%
A205: Hauling Distance 16-30 miles | E205: CY | F205: $5.98 | G205: 1.00% | H205: 2.00% | I205: 2.00% | J205: 2.00% | K205: 3.00% | L205: 3.00%
A206: Hauling Distance 31-60 miles | E206: CY | F206: $8.98 | G206: 1.00% | H206: 2.00% | I206: 2.00% | J206: 2.00% | K206: 3.00% | L206: 3.00%
A208: Region 7- States of NC, SC, GA, AL, FL
A209: Personnel and Equipment- Hourly
A210: Project Manager | B210: $100.00 | C210: $80.00 | E210: Each / Per HR | G210: 1.00% | H210: 2.00% | I210: 2.00% | J210: 2.00% | K210: 3.00% | L210: 3.00%
A211: Supervisor | B211: $90.00 | C211: $75.00 | E211: Each / Per HR | G211: 1.00% | H211: 2.00% | I211: 2.00% | J211: 2.00% | K211: 3.00% | L211: 3.00%
A212: Equipment Operator | B212: $70.00 | C212: $55.00 | E212: Each / Per HR | G212: 1.00% | H212: 2.00% | I212: 2.00% | J212: 2.00% | K212: 3.00% | L212: 3.00%
A213: Sawman with saw | B213: $65.00 | C213: $55.00 | E213: Each / Per HR | G213: 1.00% | H213: 2.00% | I213: 2.00% | J213: 2.00% | K213: 3.00% | L213: 3.00%
A214: Laborer | B214: $60.00 | C214: $50.00 | E214: Each / Per HR | G214: 1.00% | H214: 2.00% | I214: 2.00% | J214: 2.00% | K214: 3.00% | L214: 3.00%
A215: Traffic Control | B215: $50.00 | C215: $40.00 | E215: Each / Per HR | G215: 1.00% | H215: 2.00% | I215: 2.00% | J215: 2.00% | K215: 3.00% | L215: 3.00%
A216: 30-50 CY Self Loading Truck | B216: $250.00 | C216: $225.00 | E216: Each / Per HR | G216: 1.00% | H216: 2.00% | I216: 2.00% | J216: 2.00% | K216: 3.00% | L216: 3.00%
A217: Bobcat | B217: $140.00 | C217: $120.00 | E217: Each / Per HR | G217: 1.00% | H217: 2.00% | I217: 2.00% | J217: 2.00% | K217: 3.00% | L217: 3.00%
A218: Front End Loader- Rubber Tired | B218: $225.00 | C218: $195.00 | E218: Each / Per HR | G218: 1.00% | H218: 2.00% | I218: 2.00% | J218: 2.00% | K218: 3.00% | L218: 3.00%
A219: Dozer-CAT D-4 | B219: $185.00 | C219: $165.00 | E219: Each / Per HR | G219: 1.00% | H219: 2.00% | I219: 2.00% | J219: 2.00% | K219: 3.00% | L219: 3.00%
A220: Traffic Control Signs and Flags | B220: $50.00 | C220: $45.00 | E220: Each / Per HR | G220: 1.00% | H220: 2.00% | I220: 2.00% | J220: 2.00% | K220: 3.00% | L220: 3.00%
A221: Mechanical (chipping or grinding) | E221: CY | F221: $5.24 | G221: 1.00% | H221: 2.00% | I221: 2.00% | J221: 2.00% | K221: 3.00% | L221: 3.00%
A222: Compaction | E222: CY | F222: $1.32 | G222: 1.00% | H222: 2.00% | I222: 2.00% | J222: 2.00% | K222: 3.00% | L222: 3.00%
A224: Final Disposal of Reduced C&D Debris
A225: Hauling Distance 0-15 miles | E225: CY | F225: $4.42 | G225: 1.00% | H225: 2.00% | I225: 2.00% | J225: 2.00% | K225: 3.00% | L225: 3.00%
A226: Hauling Distance 16-30 miles | E226: CY | F226: $5.98 | G226: 1.00% | H226: 2.00% | I226: 2.00% | J226: 2.00% | K226: 3.00% | L226: 3.00%
A227: Hauling Distance 31-60 miles | E227: CY | F227: $8.98 | G227: 1.00% | H227: 2.00% | I227: 2.00% | J227: 2.00% | K227: 3.00% | L227: 3.00%
A229: C&D Debris Removal from Public Roads, Streets and ROWS And Hauling to Debris Management Site
A230: Hauling Distance 0-15 miles | E230: Cubic Yard (CY) | F230: $10.95 | G230: 1.00% | H230: 2.00% | I230: 2.00% | J230: 2.00% | K230: 3.00% | L230: 3.00%
A231: Hauling Distance 16-30 miles | E231: CY | F231: $11.92 | G231: 1.00% | H231: 2.00% | I231: 2.00% | J231: 2.00% | K231: 3.00% | L231: 3.00%
A232: Hauling Distance 31-60 miles | E232: CY | F232: $14.42 | G232: 1.00% | H232: 2.00% | I232: 2.00% | J232: 2.00% | K232: 3.00% | L232: 3.00%
... 38 more rows

Sheet Catagory III
A1: List Services Provided (Labor category, and Skill Class) (Items in Red are meant as examples. Add more lines as needed or attach a .pdf, must mimic this format) | B1: LABOR Emergent Not To Exceed Hourly Rate | C1: LABOR Non- Emergent Not To Exceed Hourly Rate | D1: Materials and Supplies Description | E1: Unit | F1: Cost | G1: % Rate Increase 2nd year | H1: % Rate Increase 3rd year | I1: % Rate Increase 4th year | J1: % Rate Increase 5th year | K1: % Rate Increase 6th year | L1: % Rate Increase 7th year
A2: Category III - Hazardous Waste
A3: Region 1- States of MT, WY, ID, OR, WA, MO, KS, CO, NE, SD, ND
A4: Hazardous Waste Removal from Public Roads, Streets and ROWS And Hauling to Debris Management Site or Final Disposal
A5: Liquids
A6: Hauling Distance 0-15 miles | E6: Gallon | F6: $24.95 | G6: 1.00% | H6: 2.00% | I6: 2.00% | J6: 2.00% | K6: 3.00% | L6: 3.00%
A7: Hauling Distance 16-30 miles | E7: Gallon | F7: $25.95 | G7: 1.00% | H7: 2.00% | I7: 2.00% | J7: 2.00% | K7: 3.00% | L7: 3.00%
A8: Hauling Distance 31-60 miles | E8: Gallon | F8: $28.95 | G8: 1.00% | H8: 2.00% | I8: 2.00% | J8: 2.00% | K8: 3.00% | L8: 3.00%
A10: Hazardous Waste Removal from Public Roads, Streets and ROWS And Hauling to Debris Management Site or Final Disposal
A11: Solids
A12: Hauling Distance 0-15 miles | E12: Pound | F12: $16.95 | G12: 1.00% | H12: 2.00% | I12: 2.00% | J12: 2.00% | K12: 3.00% | L12: 3.00%
A13: Hauling Distance 16-30 miles | E13: Pound | F13: $17.95 | G13: 1.00% | H13: 2.00% | I13: 2.00% | J13: 2.00% | K13: 3.00% | L13: 3.00%
A14: Hauling Distance 31-60 miles | E14: Pound | F14: $19.95 | G14: 1.00% | H14: 2.00% | I14: 2.00% | J14: 2.00% | K14: 3.00% | L14: 3.00%
A16: Hazardeous Waste Debris Management Site
A17: Hazardeous Waste Contamination Area Construction | E17: Square Foot | F17: $16.50 | G17: 1.00% | H17: 2.00% | I17: 2.00% | J17: 2.00% | K17: 3.00% | L17: 3.00%
A18: Site Management | E18: SF/Day | F18: $3.98 | G18: 1.00% | H18: 2.00% | I18: 2.00% | J18: 2.00% | K18: 3.00% | L18: 3.00%
A20: Final Disposal of Hazardous Waste
A21: Hauling Distance 0-15 miles | E21: Gal/LB | F21: $8.42 | G21: 1.00% | H21: 2.00% | I21: 2.00% | J21: 2.00% | K21: 3.00% | L21: 3.00%
A22: Hauling Distance 16-30 miles | E22: Gal/LB | F22: $9.98 | G22: 1.00% | H22: 2.00% | I22: 2.00% | J22: 2.00% | K22: 3.00% | L22: 3.00%
A23: Hauling Distance 31-60 miles | E23: Gal/LB | F23: $12.98 | G23: 1.00% | H23: 2.00% | I23: 2.00% | J23: 2.00% | K23: 3.00% | L23: 3.00%
A25: Region 2- States of IL, IA, MN, WI, LA, MS
A26: Hazardous Waste Removal from Public Roads, Streets and ROWS And Hauling to Debris Management Site or Final Disposal
A27: Liquids
A28: Hauling Distance 0-15 miles | E28: Gallon | F28: $24.95 | G28: 1.00% | H28: 2.00% | I28: 2.00% | J28: 2.00% | K28: 3.00% | L28: 3.00%
A29: Hauling Distance 16-30 miles | E29: Gallon | F29: $25.95 | G29: 1.00% | H29: 2.00% | I29: 2.00% | J29: 2.00% | K29: 3.00% | L29: 3.00%
A30: Hauling Distance 31-60 miles | E30: Gallon | F30: $28.95 | G30: 1.00% | H30: 2.00% | I30: 2.00% | J30: 2.00% | K30: 3.00% | L30: 3.00%
A32: Hazardous Waste Removal from Public Roads, Streets and ROWS And Hauling to Debris Management Site or Final Disposal
A33: Solids
A34: Hauling Distance 0-15 miles | E34: Pound | F34: $16.95 | G34: 1.00% | H34: 2.00% | I34: 2.00% | J34: 2.00% | K34: 3.00% | L34: 3.00%
A35: Hauling Distance 16-30 miles | E35: Pound | F35: $17.95 | G35: 1.00% | H35: 2.00% | I35: 2.00% | J35: 2.00% | K35: 3.00% | L35: 3.00%
A36: Hauling Distance 31-60 miles | E36: Pound | F36: $19.95 | G36: 1.00% | H36: 2.00% | I36: 2.00% | J36: 2.00% | K36: 3.00% | L36: 3.00%
A38: Hazardeous Waste Debris Management Site
A39: Hazardeous Waste Contamination Area Construction | E39: Square Foot | F39: $16.50 | G39: 1.00% | H39: 2.00% | I39: 2.00% | J39: 2.00% | K39: 3.00% | L39: 3.00%
A40: Site Management | E40: SF/Day | F40: $3.98 | G40: 1.00% | H40: 2.00% | I40: 2.00% | J40: 2.00% | K40: 3.00% | L40: 3.00%
A42: Final Disposal of Hazardous Waste
A43: Hauling Distance 0-15 miles | E43: Gal/LB | F43: $8.42 | G43: 1.00% | H43: 2.00% | I43: 2.00% | J43: 2.00% | K43: 3.00% | L43: 3.00%
A44: Hauling Distance 16-30 miles | E44: Gal/LB | F44: $9.98 | G44: 1.00% | H44: 2.00% | I44: 2.00% | J44: 2.00% | K44: 3.00% | L44: 3.00%
A45: Hauling Distance 31-60 miles | E45: Gal/LB | F45: $12.98 | G45: 1.00% | H45: 2.00% | I45: 2.00% | J45: 2.00% | K45: 3.00% | L45: 3.00%
A47: Region 3- States of MI, IN, TN, KY, OH, WV
A48: Hazardous Waste Removal from Public Roads, Streets and ROWS And Hauling to Debris Management Site or Final Disposal
A49: Liquids
A50: Hauling Distance 0-15 miles | E50: Gallon | F50: $24.95 | G50: 1.00% | H50: 2.00% | I50: 2.00% | J50: 2.00% | K50: 3.00% | L50: 3.00%
A51: Hauling Distance 16-30 miles | E51: Gallon | F51: $25.95 | G51: 1.00% | H51: 2.00% | I51: 2.00% | J51: 2.00% | K51: 3.00% | L51: 3.00%
A52: Hauling Distance 31-60 miles | E52: Gallon | F52: $28.95 | G52: 1.00% | H52: 2.00% | I52: 2.00% | J52: 2.00% | K52: 3.00% | L52: 3.00%
A54: Hazardous Waste Removal from Public Roads, Streets and ROWS And Hauling to Debris Management Site or Final Disposal
A55: Solids
A56: Hauling Distance 0-15 miles | E56: Pound | F56: $16.95 | G56: 1.00% | H56: 2.00% | I56: 2.00% | J56: 2.00% | K56: 3.00% | L56: 3.00%
A57: Hauling Distance 16-30 miles | E57: Pound | F57: $17.95 | G57: 1.00% | H57: 2.00% | I57: 2.00% | J57: 2.00% | K57: 3.00% | L57: 3.00%
A58: Hauling Distance 31-60 miles | E58: Pound | F58: $19.95 | G58: 1.00% | H58: 2.00% | I58: 2.00% | J58: 2.00% | K58: 3.00% | L58: 3.00%
A60: Hazardeous Waste Debris Management Site
A61: Hazardeous Waste Contamination Area Construction | E61: Square Foot | F61: $16.50 | G61: 1.00% | H61: 2.00% | I61: 2.00% | J61: 2.00% | K61: 3.00% | L61: 3.00%
A62: Site Management | E62: SF/Day | F62: $3.98 | G62: 1.00% | H62: 2.00% | I62: 2.00% | J62: 2.00% | K62: 3.00% | L62: 3.00%
A64: Final Disposal of Hazardous Waste
A65: Hauling Distance 0-15 miles | E65: Gal/LB | F65: $8.42 | G65: 1.00% | H65: 2.00% | I65: 2.00% | J65: 2.00% | K65: 3.00% | L65: 3.00%
A66: Hauling Distance 16-30 miles | E66: Gal/LB | F66: $9.98 | G66: 1.00% | H66: 2.00% | I66: 2.00% | J66: 2.00% | K66: 3.00% | L66: 3.00%
A67: Hauling Distance 31-60 miles | E67: Gal/LB | F67: $12.98 | G67: 1.00% | H67: 2.00% | I67: 2.00% | J67: 2.00% | K67: 3.00% | L67: 3.00%
A69: Region 4- States of ME, VT, NH, MA, CT, NY, DE, MD, DC, PA, VA, RI
A70: Hazardous Waste Removal from Public Roads, Streets and ROWS And Hauling to Debris Management Site or Final Disposal
A71: Liquids
A72: Hauling Distance 0-15 miles | E72: Gallon | F72: $34.95 | G72: 1.00% | H72: 2.00% | I72: 2.00% | J72: 2.00% | K72: 3.00% | L72: 3.00%
A73: Hauling Distance 16-30 miles | E73: Gallon | F73: $35.95 | G73: 1.00% | H73: 2.00% | I73: 2.00% | J73: 2.00% | K73: 3.00% | L73: 3.00%
A74: Hauling Distance 31-60 miles | E74: Gallon | F74: $38.95 | G74: 1.00% | H74: 2.00% | I74: 2.00% | J74: 2.00% | K74: 3.00% | L74: 3.00%
A76: Hazardous Waste Removal from Public Roads, Streets and ROWS And Hauling to Debris Management Site or Final Disposal
A77: Solids
A78: Hauling Distance 0-15 miles | E78: Pound | F78: $26.95 | G78: 1.00% | H78: 2.00% | I78: 2.00% | J78: 2.00% | K78: 3.00% | L78: 3.00%
A79: Hauling Distance 16-30 miles | E79: Pound | F79: $27.95 | G79: 1.00% | H79: 2.00% | I79: 2.00% | J79: 2.00% | K79: 3.00% | L79: 3.00%
A80: Hauling Distance 31-60 miles | E80: Pound | F80: $29.95 | G80: 1.00% | H80: 2.00% | I80: 2.00% | J80: 2.00% | K80: 3.00% | L80: 3.00%
A82: Hazardeous Waste Debris Management Site
A83: Hazardeous Waste Contamination Area Construction | E83: Square Foot | F83: $24.50 | G83: 1.00% | H83: 2.00% | I83: 2.00% | J83: 2.00% | K83: 3.00% | L83: 3.00%
A84: Site Management | E84: SF/Day | F84: $6.98 | G84: 1.00% | H84: 2.00% | I84: 2.00% | J84: 2.00% | K84: 3.00% | L84: 3.00%
A86: Final Disposal of Hazardous Waste
A87: Hauling Distance 0-15 miles | E87: Gal/LB | F87: $11.42 | G87: 1.00% | H87: 2.00% | I87: 2.00% | J87: 2.00% | K87: 3.00% | L87: 3.00%
A88: Hauling Distance 16-30 miles | E88: Gal/LB | F88: $12.42 | G88: 1.00% | H88: 2.00% | I88: 2.00% | J88: 2.00% | K88: 3.00% | L88: 3.00%
A89: Hauling Distance 31-60 miles | E89: Gal/LB | F89: $15.42 | G89: 1.00% | H89: 2.00% | I89: 2.00% | J89: 2.00% | K89: 3.00% | L89: 3.00%
A91: Region 5 States of CA, NV, NM, AZ, UT
A92: Hazardous Waste Removal from Public Roads, Streets and ROWS And Hauling to Debris Management Site or Final Disposal
A93: Liquids
A94: Hauling Distance 0-15 miles | E94: Gallon | F94: =+F72+5 -> $39.95 | G94: 1.00% | H94: 2.00% | I94: 2.00% | J94: 2.00% | K94: 3.00% | L94: 3.00%
A95: Hauling Distance 16-30 miles | E95: Gallon | F95: =+F73+5 -> $40.95 | G95: 1.00% | H95: 2.00% | I95: 2.00% | J95: 2.00% | K95: 3.00% | L95: 3.00%
A96: Hauling Distance 31-60 miles | E96: Gallon | F96: $43.95 | G96: 1.00% | H96: 2.00% | I96: 2.00% | J96: 2.00% | K96: 3.00% | L96: 3.00%
A98: Hazardous Waste Removal from Public Roads, Streets and ROWS And Hauling to Debris Management Site or Final Disposal
A99: Solids
A100: Hauling Distance 0-15 miles | E100: Pound | F100: $31.95 | G100: 1.00% | H100: 2.00% | I100: 2.00% | J100: 2.00% | K100: 3.00% | L100: 3.00%
A101: Hauling Distance 16-30 miles | E101: Pound | F101: $32.95 | G101: 1.00% | H101: 2.00% | I101: 2.00% | J101: 2.00% | K101: 3.00% | L101: 3.00%
A102: Hauling Distance 31-60 miles | E102: Pound | F102: $34.95 | G102: 1.00% | H102: 2.00% | I102: 2.00% | J102: 2.00% | K102: 3.00% | L102: 3.00%
A104: Hazardeous Waste Debris Management Site
A105: Hazardeous Waste Contamination Area Construction | E105: Square Foot | F105: $22.50 | G105: 1.00% | H105: 2.00% | I105: 2.00% | J105: 2.00% | K105: 3.00% | L105: 3.00%
A106: Site Management | E106: SF/Day | F106: $9.98 | G106: 1.00% | H106: 2.00% | I106: 2.00% | J106: 2.00% | K106: 3.00% | L106: 3.00%
A108: Final Disposal of Hazardous Waste
A109: Hauling Distance 0-15 miles | E109: Gal/LB | F109: =+F87+4 -> $15.42 | G109: 1.00% | H109: 2.00% | I109: 2.00% | J109: 2.00% | K109: 3.00% | L109: 3.00%
A110: Hauling Distance 16-30 miles | E110: Gal/LB | F110: =+F88+4 -> $16.42 | G110: 1.00% | H110: 2.00% | I110: 2.00% | J110: 2.00% | K110: 3.00% | L110: 3.00%
A111: Hauling Distance 31-60 miles | E111: Gal/LB | F111: $19.42 | G111: 1.00% | H111: 2.00% | I111: 2.00% | J111: 2.00% | K111: 3.00% | L111: 3.00%
A113: Region 6 - States of TX, AR, OK
A114: Hazardous Waste Removal from Public Roads, Streets and ROWS And Hauling to Debris Management Site or Final Disposal
A115: Liquids
A116: Hauling Distance 0-15 miles | E116: Gallon | F116: $24.95 | G116: 1.00% | H116: 2.00% | I116: 2.00% | J116: 2.00% | K116: 3.00% | L116: 3.00%
A117: Hauling Distance 16-30 miles | E117: Gallon | F117: $25.95 | G117: 1.00% | H117: 2.00% | I117: 2.00% | J117: 2.00% | K117: 3.00% | L117: 3.00%
A118: Hauling Distance 31-60 miles | E118: Gallon | F118: $28.95 | G118: 1.00% | H118: 2.00% | I118: 2.00% | J118: 2.00% | K118: 3.00% | L118: 3.00%
A120: Hazardous Waste Removal from Public Roads, Streets and ROWS And Hauling to Debris Management Site or Final Disposal
A121: Solids
A122: Hauling Distance 0-15 miles | E122: Pound | F122: $16.95 | G122: 1.00% | H122: 2.00% | I122: 2.00% | J122: 2.00% | K122: 3.00% | L122: 3.00%
A123: Hauling Distance 16-30 miles | E123: Pound | F123: $17.95 | G123: 1.00% | H123: 2.00% | I123: 2.00% | J123: 2.00% | K123: 3.00% | L123: 3.00%
A124: Hauling Distance 31-60 miles | E124: Pound | F124: $19.95 | G124: 1.00% | H124: 2.00% | I124: 2.00% | J124: 2.00% | K124: 3.00% | L124: 3.00%
A126: Hazardeous Waste Debris Management Site
A127: Hazardeous Waste Contamination Area Construction | E127: Square Foot | F127: $16.50 | G127: 1.00% | H127: 2.00% | I127: 2.00% | J127: 2.00% | K127: 3.00% | L127: 3.00%
A128: Site Management | E128: SF/Day | F128: $3.98 | G128: 1.00% | H128: 2.00% | I128: 2.00% | J128: 2.00% | K128: 3.00% | L128: 3.00%
A130: Final Disposal of Hazardous Waste
A131: Hauling Distance 0-15 miles | E131: Gal/LB | F131: $8.42 | G131: 1.00% | H131: 2.00% | I131: 2.00% | J131: 2.00% | K131: 3.00% | L131: 3.00%
A132: Hauling Distance 16-30 miles | E132: Gal/LB | F132: $9.98 | G132: 1.00% | H132: 2.00% | I132: 2.00% | J132: 2.00% | K132: 3.00% | L132: 3.00%
A133: Hauling Distance 31-60 miles | E133: Gal/LB | F133: $12.98 | G133: 1.00% | H133: 2.00% | I133: 2.00% | J133: 2.00% | K133: 3.00% | L133: 3.00%
A135: Region 7- States of NC, SC, GA, AL, FL
A136: Hazardous Waste Removal from Public Roads, Streets and ROWS And Hauling to Debris Management Site or Final Disposal
A137: Liquids
A138: Hauling Distance 0-15 miles | E138: Gallon | F138: $24.95 | G138: 1.00% | H138: 2.00% | I138: 2.00% | J138: 2.00% | K138: 3.00% | L138: 3.00%
A139: Hauling Distance 16-30 miles | E139: Gallon | F139: $25.95 | G139: 1.00% | H139: 2.00% | I139: 2.00% | J139: 2.00% | K139: 3.00% | L139: 3.00%
A140: Hauling Distance 31-60 miles | E140: Gallon | F140: $28.95 | G140: 1.00% | H140: 2.00% | I140: 2.00% | J140: 2.00% | K140: 3.00% | L140: 3.00%
A142: Hazardous Waste Removal from Public Roads, Streets and ROWS And Hauling to Debris Management Site or Final Disposal
A143: Solids
A144: Hauling Distance 0-15 miles | E144: Pound | F144: $16.95 | G144: 1.00% | H144: 2.00% | I144: 2.00% | J144: 2.00% | K144: 3.00% | L144: 3.00%
A145: Hauling Distance 16-30 miles | E145: Pound | F145: $17.95 | G145: 1.00% | H145: 2.00% | I145: 2.00% | J145: 2.00% | K145: 3.00% | L145: 3.00%
A146: Hauling Distance 31-60 miles | E146: Pound | F146: $19.95 | G146: 1.00% | H146: 2.00% | I146: 2.00% | J146: 2.00% | K146: 3.00% | L146: 3.00%
A148: Hazardeous Waste Debris Management Site
A149: Hazardeous Waste Contamination Area Construction | E149: Square Foot | F149: $16.50 | G149: 1.00% | H149: 2.00% | I149: 2.00% | J149: 2.00% | K149: 3.00% | L149: 3.00%
A150: Site Management | E150: SF/Day | F150: $3.98 | G150: 1.00% | H150: 2.00% | I150: 2.00% | J150: 2.00% | K150: 3.00% | L150: 3.00%
A152: Final Disposal of Hazardous Waste
A153: Hauling Distance 0-15 miles | E153: Gal/LB | F153: $8.42 | G153: 1.00% | H153: 2.00% | I153: 2.00% | J153: 2.00% | K153: 3.00% | L153: 3.00%
A154: Hauling Distance 16-30 miles | E154: Gal/LB | F154: $9.98 | G154: 1.00% | H154: 2.00% | I154: 2.00% | J154: 2.00% | K154: 3.00% | L154: 3.00%
A155: Hauling Distance 31-60 miles | E155: Gal/LB | F155: $12.98 | G155: 1.00% | H155: 2.00% | I155: 2.00% | J155: 2.00% | K155: 3.00% | L155: 3.00%
A157: Region 8- States of HI, AK
A158: Hazardous Waste Removal from Public Roads, Streets and ROWS And Hauling to Debris Management Site or Final Disposal
A159: Liquids
A160: Hauling Distance 0-15 miles | E160: Gallon | F160: =+F94 -> $39.95 | G160: 1.00% | H160: 2.00% | I160: 2.00% | J160: 2.00% | K160: 3.00% | L160: 3.00%
A161: Hauling Distance 16-30 miles | E161: Gallon | F161: =+F95 -> $40.95 | G161: 1.00% | H161: 2.00% | I161: 2.00% | J161: 2.00% | K161: 3.00% | L161: 3.00%
A162: Hauling Distance 31-60 miles | E162: Gallon | F162: $43.95 | G162: 1.00% | H162: 2.00% | I162: 2.00% | J162: 2.00% | K162: 3.00% | L162: 3.00%
A164: Hazardous Waste Removal from Public Roads, Streets and ROWS And Hauling to Debris Management Site or Final Disposal
A165: Solids
A166: Hauling Distance 0-15 miles | E166: Pound | F166: $31.95 | G166: 1.00% | H166: 2.00% | I166: 2.00% | J166: 2.00% | K166: 3.00% | L166: 3.00%
A167: Hauling Distance 16-30 miles | E167: Pound | F167: $32.95 | G167: 1.00% | H167: 2.00% | I167: 2.00% | J167: 2.00% | K167: 3.00% | L167: 3.00%
A168: Hauling Distance 31-60 miles | E168: Pound | F168: $34.95 | G168: 1.00% | H168: 2.00% | I168: 2.00% | J168: 2.00% | K168: 3.00% | L168: 3.00%
A170: Hazardeous Waste Debris Management Site
A171: Hazardeous Waste Contamination Area Construction | E171: Square Foot | F171: $22.50 | G171: 1.00% | H171: 2.00% | I171: 2.00% | J171: 2.00% | K171: 3.00% | L171: 3.00%
A172: Site Management | E172: SF/Day | F172: $9.98 | G172: 1.00% | H172: 2.00% | I172: 2.00% | J172: 2.00% | K172: 3.00% | L172: 3.00%
A174: Final Disposal of Hazardous Waste
A175: Hauling Distance 0-15 miles | E175: Gal/LB | F175: $15.42 | G175: 1.00% | H175: 2.00% | I175: 2.00% | J175: 2.00% | K175: 3.00% | L175: 3.00%
A176: Hauling Distance 16-30 miles | E176: Gal/LB | F176: $16.42 | G176: 1.00% | H176: 2.00% | I176: 2.00% | J176: 2.00% | K176: 3.00% | L176: 3.00%
A177: Hauling Distance 31-60 miles | E177: Gal/LB | F177: $19.98 | G177: 1.00% | H177: 2.00% | I177: 2.00% | J177: 2.00% | K177: 3.00% | L177: 3.00%
A179: NOTE: Tipping/Disposal fees to be billed as a direct pass through cost with no mark up

Sheet Catagory IV
A1: List Services Provided (Labor category, and Skill Class) (Items in Red are meant as examples. Add more lines as needed or attach a .pdf, must mimic this format) | B1: LABOR Emergent Not To Exceed Hourly Rate | C1: LABOR Non- Emergent Not To Exceed Hourly Rate | D1: Materials and Supplies Description | E1: Unit | F1: Cost | G1: % Rate Increase 2nd year | H1: % Rate Increase 3rd year | I1: % Rate Increase 4th year | J1: % Rate Increase 5th year | K1: % Rate Increase 6th year | L1: % Rate Increase 7th year
A2: Category IV- Household Hazardous Waste Removal and Disposal
A4: Region 1- States of MT, WY, ID, OR, WA, MO, KS, CO, NE, SD, ND
A5: Hosehold Hazardous Waste Removal from Public Roads, Streets and ROWS And Hauling to Debris Management Site
A6: Liquids
A7: Hauling Distance 0-15 miles | E7: Gallon | F7: $14.95 | G7: 1.00% | H7: 2.00% | I7: 2.00% | J7: 2.00% | K7: 3.00% | L7: 3.00%
A8: Hauling Distance 16-30 miles | E8: Gallon | F8: $15.98 | G8: 1.00% | H8: 2.00% | I8: 2.00% | J8: 2.00% | K8: 3.00% | L8: 3.00%
A9: Hauling Distance 31-60 miles | E9: Gallon | F9: $18.95 | G9: 1.00% | H9: 2.00% | I9: 2.00% | J9: 2.00% | K9: 3.00% | L9: 3.00%
A11: Hazardous Waste Removal from Public Roads, Streets and ROWS And Hauling to Final Disposal
A12: Solids
A13: Hauling Distance 0-15 miles | E13: Pound | F13: $9.95 | G13: 1.00% | H13: 2.00% | I13: 2.00% | J13: 2.00% | K13: 3.00% | L13: 3.00%
A14: Hauling Distance 16-30 miles | E14: Pound | F14: $10.95 | G14: 1.00% | H14: 2.00% | I14: 2.00% | J14: 2.00% | K14: 3.00% | L14: 3.00%
A15: Hauling Distance 31-60 miles | E15: Pound | F15: $13.95 | G15: 1.00% | H15: 2.00% | I15: 2.00% | J15: 2.00% | K15: 3.00% | L15: 3.00%
A17: Household Hazardeous Waste Management Debris Management Site
A18: Hazardeous Waste Contamination Area Construction | E18: Square Foot | F18: $16.50 | G18: 1.00% | H18: 2.00% | I18: 2.00% | J18: 2.00% | K18: 3.00% | L18: 3.00%
A19: Site Management | E19: SF/Day | F19: $3.98 | G19: 1.00% | H19: 2.00% | I19: 2.00% | J19: 2.00% | K19: 3.00% | L19: 3.00%
A21: Final Disposal of Household Hazardous Waste
A22: Hauling Distance 0-15 miles | E22: Gal/LB | F22: $8.42 | G22: 1.00% | H22: 2.00% | I22: 2.00% | J22: 2.00% | K22: 3.00% | L22: 3.00%
A23: Hauling Distance 16-30 miles | E23: Gal/LB | F23: $9.98 | G23: 1.00% | H23: 2.00% | I23: 2.00% | J23: 2.00% | K23: 3.00% | L23: 3.00%
A24: Hauling Distance 31-60 miles | E24: Gal/LB | F24: $12.98 | G24: 1.00% | H24: 2.00% | I24: 2.00% | J24: 2.00% | K24: 3.00% | L24: 3.00%
A26: Region 2- States of IL, IA, MN, WI, LA, MS
A27: Hosehold Hazardous Waste Removal from Public Roads, Streets and ROWS And Hauling to Debris Management Site | N27: NOTE: Tipping/Disposal fees to be billed as a direct pass through cost with no mark up
A28: Liquids
A29: Hauling Distance 0-15 miles | E29: Gallon | F29: $14.95 | G29: 1.00% | H29: 2.00% | I29: 2.00% | J29: 2.00% | K29: 3.00% | L29: 3.00%
A30: Hauling Distance 16-30 miles | E30: Gallon | F30: $15.98 | G30: 1.00% | H30: 2.00% | I30: 2.00% | J30: 2.00% | K30: 3.00% | L30: 3.00%
A31: Hauling Distance 31-60 miles | E31: Gallon | F31: $18.95 | G31: 1.00% | H31: 2.00% | I31: 2.00% | J31: 2.00% | K31: 3.00% | L31: 3.00%
A33: Hazardous Waste Removal from Public Roads, Streets and ROWS And Hauling to Final Disposal
A34: Solids
A35: Hauling Distance 0-15 miles | E35: Pound | F35: $9.95 | G35: 1.00% | H35: 2.00% | I35: 2.00% | J35: 2.00% | K35: 3.00% | L35: 3.00%
A36: Hauling Distance 16-30 miles | E36: Pound | F36: $10.95 | G36: 1.00% | H36: 2.00% | I36: 2.00% | J36: 2.00% | K36: 3.00% | L36: 3.00%
A37: Hauling Distance 31-60 miles | E37: Pound | F37: $13.95 | G37: 1.00% | H37: 2.00% | I37: 2.00% | J37: 2.00% | K37: 3.00% | L37: 3.00%
A39: Household Hazardeous Waste Management Debris Management Site
A40: Hazardeous Waste Contamination Area Construction | E40: Square Foot | F40: $16.50 | G40: 1.00% | H40: 2.00% | I40: 2.00% | J40: 2.00% | K40: 3.00% | L40: 3.00%
A41: Site Management | E41: SF/Day | F41: $3.98 | G41: 1.00% | H41: 2.00% | I41: 2.00% | J41: 2.00% | K41: 3.00% | L41: 3.00%
A43: Final Disposal of Household Hazardous Waste
A44: Hauling Distance 0-15 miles | E44: Gal/LB | F44: $8.42 | G44: 1.00% | H44: 2.00% | I44: 2.00% | J44: 2.00% | K44: 3.00% | L44: 3.00%
A45: Hauling Distance 16-30 miles | E45: Gal/LB | F45: $9.98 | G45: 1.00% | H45: 2.00% | I45: 2.00% | J45: 2.00% | K45: 3.00% | L45: 3.00%
A46: Hauling Distance 31-60 miles | E46: Gal/LB | F46: $12.98 | G46: 1.00% | H46: 2.00% | I46: 2.00% | J46: 2.00% | K46: 3.00% | L46: 3.00%
A48: Region 3- States of MI, IN, TN, KY, OH, WV
A49: Hosehold Hazardous Waste Removal from Public Roads, Streets and ROWS And Hauling to Debris Management Site
A50: Liquids
A51: Hauling Distance 0-15 miles | E51: Gallon | F51: $14.95 | G51: 1.00% | H51: 2.00% | I51: 2.00% | J51: 2.00% | K51: 3.00% | L51: 3.00%
A52: Hauling Distance 16-30 miles | E52: Gallon | F52: $15.98 | G52: 1.00% | H52: 2.00% | I52: 2.00% | J52: 2.00% | K52: 3.00% | L52: 3.00%
A53: Hauling Distance 31-60 miles | E53: Gallon | F53: $18.95 | G53: 1.00% | H53: 2.00% | I53: 2.00% | J53: 2.00% | K53: 3.00% | L53: 3.00%
A55: Hazardous Waste Removal from Public Roads, Streets and ROWS And Hauling to Final Disposal
A56: Solids
A57: Hauling Distance 0-15 miles | E57: Pound | F57: $9.95 | G57: 1.00% | H57: 2.00% | I57: 2.00% | J57: 2.00% | K57: 3.00% | L57: 3.00%
A58: Hauling Distance 16-30 miles | E58: Pound | F58: $10.95 | G58: 1.00% | H58: 2.00% | I58: 2.00% | J58: 2.00% | K58: 3.00% | L58: 3.00%
A59: Hauling Distance 31-60 miles | E59: Pound | F59: $13.95 | G59: 1.00% | H59: 2.00% | I59: 2.00% | J59: 2.00% | K59: 3.00% | L59: 3.00%
A61: Household Hazardeous Waste Management Debris Management Site
A62: Hazardeous Waste Contamination Area Construction | E62: Square Foot | F62: $16.50 | G62: 1.00% | H62: 2.00% | I62: 2.00% | J62: 2.00% | K62: 3.00% | L62: 3.00%
A63: Site Management | E63: SF/Day | F63: $3.98 | G63: 1.00% | H63: 2.00% | I63: 2.00% | J63: 2.00% | K63: 3.00% | L63: 3.00%
A65: Final Disposal of Household Hazardous Waste
A66: Hauling Distance 0-15 miles | E66: Gal/LB | F66: $8.42 | G66: 1.00% | H66: 2.00% | I66: 2.00% | J66: 2.00% | K66: 3.00% | L66: 3.00%
A67: Hauling Distance 16-30 miles | E67: Gal/LB | F67: $9.98 | G67: 1.00% | H67: 2.00% | I67: 2.00% | J67: 2.00% | K67: 3.00% | L67: 3.00%
A68: Hauling Distance 31-60 miles | E68: Gal/LB | F68: $12.98 | G68: 1.00% | H68: 2.00% | I68: 2.00% | J68: 2.00% | K68: 3.00% | L68: 3.00%
A70: Region 4- States of ME, VT, NH, MA, CT, NY, DE, MD, DC, PA, VA, RI
A71: Hosehold Hazardous Waste Removal from Public Roads, Streets and ROWS And Hauling to Debris Management Site
A72: Liquids
A73: Hauling Distance 0-15 miles | E73: Gallon | F73: $18.95 | G73: 1.00% | H73: 2.00% | I73: 2.00% | J73: 2.00% | K73: 3.00% | L73: 3.00%
A74: Hauling Distance 16-30 miles | E74: Gallon | F74: $19.95 | G74: 1.00% | H74: 2.00% | I74: 2.00% | J74: 2.00% | K74: 3.00% | L74: 3.00%
A75: Hauling Distance 31-60 miles | E75: Gallon | F75: $22.90 | G75: 1.00% | H75: 2.00% | I75: 2.00% | J75: 2.00% | K75: 3.00% | L75: 3.00%
A77: Hazardous Waste Removal from Public Roads, Streets and ROWS And Hauling to Final Disposal
A78: Solids
A79: Hauling Distance 0-15 miles | E79: Pound | F79: $14.95 | G79: 1.00% | H79: 2.00% | I79: 2.00% | J79: 2.00% | K79: 3.00% | L79: 3.00%
A80: Hauling Distance 16-30 miles | E80: Pound | F80: $15.95 | G80: 1.00% | H80: 2.00% | I80: 2.00% | J80: 2.00% | K80: 3.00% | L80: 3.00%
A81: Hauling Distance 31-60 miles | E81: Pound | F81: $18.95 | G81: 1.00% | H81: 2.00% | I81: 2.00% | J81: 2.00% | K81: 3.00% | L81: 3.00%
A83: Household Hazardeous Waste Management Debris Management Site
A84: Hazardeous Waste Contamination Area Construction | E84: Square Foot | F84: $22.50 | G84: 1.00% | H84: 2.00% | I84: 2.00% | J84: 2.00% | K84: 3.00% | L84: 3.00%
A85: Site Management | E85: SF/Day | F85: $5.98 | G85: 1.00% | H85: 2.00% | I85: 2.00% | J85: 2.00% | K85: 3.00% | L85: 3.00%
A87: Final Disposal of Household Hazardous Waste
A88: Hauling Distance 0-15 miles | E88: Gal/LB | F88: $12.42 | G88: 1.00% | H88: 2.00% | I88: 2.00% | J88: 2.00% | K88: 3.00% | L88: 3.00%
A89: Hauling Distance 16-30 miles | E89: Gal/LB | F89: $13.42 | G89: 1.00% | H89: 2.00% | I89: 2.00% | J89: 2.00% | K89: 3.00% | L89: 3.00%
A90: Hauling Distance 31-60 miles | E90: Gal/LB | F90: $16.42 | G90: 1.00% | H90: 2.00% | I90: 2.00% | J90: 2.00% | K90: 3.00% | L90: 3.00%
A92: Region 5 States of CA, NV, NM, AZ, UT
A93: Hosehold Hazardous Waste Removal from Public Roads, Streets and ROWS And Hauling to Debris Management Site
A94: Liquids
A95: Hauling Distance 0-15 miles | E95: Gallon | F95: $23.95 | G95: 1.00% | H95: 2.00% | I95: 2.00% | J95: 2.00% | K95: 3.00% | L95: 3.00%
A96: Hauling Distance 16-30 miles | E96: Gallon | F96: $24.95 | G96: 1.00% | H96: 2.00% | I96: 2.00% | J96: 2.00% | K96: 3.00% | L96: 3.00%
A97: Hauling Distance 31-60 miles | E97: Gallon | F97: $27.95 | G97: 1.00% | H97: 2.00% | I97: 2.00% | J97: 2.00% | K97: 3.00% | L97: 3.00%
A99: Hazardous Waste Removal from Public Roads, Streets and ROWS And Hauling to Final Disposal
A100: Solids
A101: Hauling Distance 0-15 miles | E101: Pound | F101: $19.95 | G101: 1.00% | H101: 2.00% | I101: 2.00% | J101: 2.00% | K101: 3.00% | L101: 3.00%
A102: Hauling Distance 16-30 miles | E102: Pound | F102: $20.95 | G102: 1.00% | H102: 2.00% | I102: 2.00% | J102: 2.00% | K102: 3.00% | L102: 3.00%
A103: Hauling Distance 31-60 miles | E103: Pound | F103: $23.95 | G103: 1.00% | H103: 2.00% | I103: 2.00% | J103: 2.00% | K103: 3.00% | L103: 3.00%
A105: Household Hazardeous Waste Management Debris Management Site
A106: Hazardeous Waste Contamination Area Construction | E106: Square Foot | F106: $26.50 | G106: 1.00% | H106: 2.00% | I106: 2.00% | J106: 2.00% | K106: 3.00% | L106: 3.00%
A107: Site Management | E107: SF/Day | F107: $7.98 | G107: 1.00% | H107: 2.00% | I107: 2.00% | J107: 2.00% | K107: 3.00% | L107: 3.00%
A109: Final Disposal of Household Hazardous Waste
A110: Hauling Distance 0-15 miles | E110: Gal/LB | F110: $17.52 | G110: 1.00% | H110: 2.00% | I110: 2.00% | J110: 2.00% | K110: 3.00% | L110: 3.00%
A111: Hauling Distance 16-30 miles | E111: Gal/LB | F111: $18.42 | G111: 1.00% | H111: 2.00% | I111: 2.00% | J111: 2.00% | K111: 3.00% | L111: 3.00%
A112: Hauling Distance 31-60 miles | E112: Gal/LB | F112: $21.42 | G112: 1.00% | H112: 2.00% | I112: 2.00% | J112: 2.00% | K112: 3.00% | L112: 3.00%
A114: Region 6 - States of TX, AR, OK
A115: Hosehold Hazardous Waste Removal from Public Roads, Streets and ROWS And Hauling to Debris Management Site
A116: Liquids
A117: Hauling Distance 0-15 miles | E117: Gallon | F117: $14.95 | G117: 1.00% | H117: 2.00% | I117: 2.00% | J117: 2.00% | K117: 3.00% | L117: 3.00%
A118: Hauling Distance 16-30 miles | E118: Gallon | F118: $15.98 | G118: 1.00% | H118: 2.00% | I118: 2.00% | J118: 2.00% | K118: 3.00% | L118: 3.00%
A119: Hauling Distance 31-60 miles | E119: Gallon | F119: $18.95 | G119: 1.00% | H119: 2.00% | I119: 2.00% | J119: 2.00% | K119: 3.00% | L119: 3.00%
A121: Hazardous Waste Removal from Public Roads, Streets and ROWS And Hauling to Final Disposal
A122: Solids
A123: Hauling Distance 0-15 miles | E123: Pound | F123: $9.95 | G123: 1.00% | H123: 2.00% | I123: 2.00% | J123: 2.00% | K123: 3.00% | L123: 3.00%
A124: Hauling Distance 16-30 miles | E124: Pound | F124: $10.95 | G124: 1.00% | H124: 2.00% | I124: 2.00% | J124: 2.00% | K124: 3.00% | L124: 3.00%
A125: Hauling Distance 31-60 miles | E125: Pound | F125: $13.95 | G125: 1.00% | H125: 2.00% | I125: 2.00% | J125: 2.00% | K125: 3.00% | L125: 3.00%
A127: Household Hazardeous Waste Management Debris Management Site
A128: Hazardeous Waste Contamination Area Construction | E128: Square Foot | F128: $16.50 | G128: 1.00% | H128: 2.00% | I128: 2.00% | J128: 2.00% | K128: 3.00% | L128: 3.00%
A129: Site Management | E129: SF/Day | F129: $3.98 | G129: 1.00% | H129: 2.00% | I129: 2.00% | J129: 2.00% | K129: 3.00% | L129: 3.00%
A131: Final Disposal of Household Hazardous Waste
A132: Hauling Distance 0-15 miles | E132: Gal/LB | F132: $8.42 | G132: 1.00% | H132: 2.00% | I132: 2.00% | J132: 2.00% | K132: 3.00% | L132: 3.00%
A133: Hauling Distance 16-30 miles | E133: Gal/LB | F133: $9.98 | G133: 1.00% | H133: 2.00% | I133: 2.00% | J133: 2.00% | K133: 3.00% | L133: 3.00%
A134: Hauling Distance 31-60 miles | E134: Gal/LB | F134: $12.98 | G134: 1.00% | H134: 2.00% | I134: 2.00% | J134: 2.00% | K134: 3.00% | L134: 3.00%
A136: Region 7- States of NC, SC, GA, AL, FL
A137: Hosehold Hazardous Waste Removal from Public Roads, Streets and ROWS And Hauling to Debris Management Site
A138: Liquids
A139: Hauling Distance 0-15 miles | E139: Gallon | F139: $14.95 | G139: 1.00% | H139: 2.00% | I139: 2.00% | J139: 2.00% | K139: 3.00% | L139: 3.00%
A140: Hauling Distance 16-30 miles | E140: Gallon | F140: $15.98 | G140: 1.00% | H140: 2.00% | I140: 2.00% | J140: 2.00% | K140: 3.00% | L140: 3.00%
A141: Hauling Distance 31-60 miles | E141: Gallon | F141: $18.95 | G141: 1.00% | H141: 2.00% | I141: 2.00% | J141: 2.00% | K141: 3.00% | L141: 3.00%
A143: Hazardous Waste Removal from Public Roads, Streets and ROWS And Hauling to Final Disposal
A144: Solids
A145: Hauling Distance 0-15 miles | E145: Pound | F145: $9.95 | G145: 1.00% | H145: 2.00% | I145: 2.00% | J145: 2.00% | K145: 3.00% | L145: 3.00%
A146: Hauling Distance 16-30 miles | E146: Pound | F146: $10.95 | G146: 1.00% | H146: 2.00% | I146: 2.00% | J146: 2.00% | K146: 3.00% | L146: 3.00%
A147: Hauling Distance 31-60 miles | E147: Pound | F147: $13.95 | G147: 1.00% | H147: 2.00% | I147: 2.00% | J147: 2.00% | K147: 3.00% | L147: 3.00%
A149: Household Hazardeous Waste Management Debris Management Site
A150: Hazardeous Waste Contamination Area Construction | E150: Square Foot | F150: $16.50 | G150: 1.00% | H150: 2.00% | I150: 2.00% | J150: 2.00% | K150: 3.00% | L150: 3.00%
A151: Site Management | E151: SF/Day | F151: $3.98 | G151: 1.00% | H151: 2.00% | I151: 2.00% | J151: 2.00% | K151: 3.00% | L151: 3.00%
A153: Final Disposal of Household Hazardous Waste
A154: Hauling Distance 0-15 miles | E154: Gal/LB | F154: $8.42 | G154: 1.00% | H154: 2.00% | I154: 2.00% | J154: 2.00% | K154: 3.00% | L154: 3.00%
A155: Hauling Distance 16-30 miles | E155: Gal/LB | F155: $9.98 | G155: 1.00% | H155: 2.00% | I155: 2.00% | J155: 2.00% | K155: 3.00% | L155: 3.00%
A156: Hauling Distance 31-60 miles | E156: Gal/LB | F156: $12.98 | G156: 1.00% | H156: 2.00% | I156: 2.00% | J156: 2.00% | K156: 3.00% | L156: 3.00%
A158: Region 8- States of HI, AK
A159: Hosehold Hazardous Waste Removal from Public Roads, Streets and ROWS And Hauling to Debris Management Site
A160: Liquids
A161: Hauling Distance 0-15 miles | E161: Gallon | F161: $23.95 | G161: 1.00% | H161: 2.00% | I161: 2.00% | J161: 2.00% | K161: 3.00% | L161: 3.00%
A162: Hauling Distance 16-30 miles | E162: Gallon | F162: $24.95 | G162: 1.00% | H162: 2.00% | I162: 2.00% | J162: 2.00% | K162: 3.00% | L162: 3.00%
A163: Hauling Distance 31-60 miles | E163: Gallon | F163: $27.95 | G163: 1.00% | H163: 2.00% | I163: 2.00% | J163: 2.00% | K163: 3.00% | L163: 3.00%
A165: Hazardous Waste Removal from Public Roads, Streets and ROWS And Hauling to Final Disposal
A166: Solids
A167: Hauling Distance 0-15 miles | E167: Pound | F167: $19.95 | G167: 1.00% | H167: 2.00% | I167: 2.00% | J167: 2.00% | K167: 3.00% | L167: 3.00%
A168: Hauling Distance 16-30 miles | E168: Pound | F168: $20.95 | G168: 1.00% | H168: 2.00% | I168: 2.00% | J168: 2.00% | K168: 3.00% | L168: 3.00%
A169: Hauling Distance 31-60 miles | E169: Pound | F169: $23.95 | G169: 1.00% | H169: 2.00% | I169: 2.00% | J169: 2.00% | K169: 3.00% | L169: 3.00%
A171: Household Hazardeous Waste Management Debris Management Site
A172: Hazardeous Waste Contamination Area Construction | E172: Square Foot | F172: $26.50 | G172: 1.00% | H172: 2.00% | I172: 2.00% | J172: 2.00% | K172: 3.00% | L172: 3.00%
A173: Site Management | E173: SF/Day | F173: $7.98 | G173: 1.00% | H173: 2.00% | I173: 2.00% | J173: 2.00% | K173: 3.00% | L173: 3.00%
A175: Final Disposal of Household Hazardous Waste
A176: Hauling Distance 0-15 miles | E176: Gal/LB | F176: $17.52 | G176: 1.00% | H176: 2.00% | I176: 2.00% | J176: 2.00% | K176: 3.00% | L176: 3.00%
A177: Hauling Distance 16-30 miles | E177: Gal/LB | F177: $18.42 | G177: 1.00% | H177: 2.00% | I177: 2.00% | J177: 2.00% | K177: 3.00% | L177: 3.00%
A178: Hauling Distance 31-60 miles | E178: Gal/LB | F178: $21.42 | G178: 1.00% | H178: 2.00% | I178: 2.00% | J178: 2.00% | K178: 3.00% | L178: 3.00%

Sheet Catagory V
A1: List Services Provided (Labor category, and Skill Class) (Items in Red are meant as examples. Add more lines as needed or attach a .pdf, must mimic this format) | B1: LABOR Emergent Not To Exceed Hourly Rate | C1: LABOR Non- Emergent Not To Exceed Hourly Rate | D1: Materials and Supplies Description | E1: Unit | F1: Cost | G1: % Rate Increase 2nd year | H1: % Rate Increase 3rd year | I1: % Rate Increase 4th year | J1: % Rate Increase 5th year | K1: % Rate Increase 6th year | L1: % Rate Increase 7th year
A2: Category V- Electronic Waste
A4: Region 1- States of MT, WY, ID, OR, WA, MO, KS, CO, NE, SD, ND
A5: Electronic Waste Removalal and Disposal from Public Roads, Streets and ROWS And Hauling to Debris Management Site
A6: Hauling Distance 0-15 miles | E6: Each | F6: $35.00 | G6: 1.00% | H6: 2.00% | I6: 2.00% | J6: 2.00% | K6: 3.00% | L6: 3.00%
A7: Hauling Distance 16-30 miles | E7: Each | F7: $37.50 | G7: 1.00% | H7: 2.00% | I7: 2.00% | J7: 2.00% | K7: 3.00% | L7: 3.00%
A8: Hauling Distance 31-60 miles | E8: Each | F8: $40.00 | G8: 1.00% | H8: 2.00% | I8: 2.00% | J8: 2.00% | K8: 3.00% | L8: 3.00%
A10: Region 2- States of IL, IA, MN, WI, LA, MS
A11: Electronic Waste Removalal and Disposal from Public Roads, Streets and ROWS And Hauling to Debris Management Site
A12: Hauling Distance 0-15 miles | E12: Each | F12: $35.00 | G12: 1.00% | H12: 2.00% | I12: 2.00% | J12: 2.00% | K12: 3.00% | L12: 3.00%
A13: Hauling Distance 16-30 miles | E13: Each | F13: $37.50 | G13: 1.00% | H13: 2.00% | I13: 2.00% | J13: 2.00% | K13: 3.00% | L13: 3.00%
A14: Hauling Distance 31-60 miles | E14: Each | F14: $40.00 | G14: 1.00% | H14: 2.00% | I14: 2.00% | J14: 2.00% | K14: 3.00% | L14: 3.00%
A16: Region 3- States of MI, IN, TN, KY, OH, WV
A17: Electronic Waste Removalal and Disposal from Public Roads, Streets and ROWS And Hauling to Debris Management Site
A18: Hauling Distance 0-15 miles | E18: Each | F18: $35.00 | G18: 1.00% | H18: 2.00% | I18: 2.00% | J18: 2.00% | K18: 3.00% | L18: 3.00%
A19: Hauling Distance 16-30 miles | E19: Each | F19: $37.50 | G19: 1.00% | H19: 2.00% | I19: 2.00% | J19: 2.00% | K19: 3.00% | L19: 3.00%
A20: Hauling Distance 31-60 miles | E20: Each | F20: $40.00 | G20: 1.00% | H20: 2.00% | I20: 2.00% | J20: 2.00% | K20: 3.00% | L20: 3.00%
A22: Region 4- States of ME, VT, NH, MA, CT, NY, DE, MD, DC, PA, VA, RI
A23: Electronic Waste Removalal and Disposal from Public Roads, Streets and ROWS And Hauling to Debris Management Site
A24: Hauling Distance 0-15 miles | E24: Each | F24: =+F18+7 -> $42.00 | G24: 1.00% | H24: 2.00% | I24: 2.00% | J24: 2.00% | K24: 3.00% | L24: 3.00%
A25: Hauling Distance 16-30 miles | E25: Each | F25: =+F19+7 -> $44.50 | G25: 1.00% | H25: 2.00% | I25: 2.00% | J25: 2.00% | K25: 3.00% | L25: 3.00%
A26: Hauling Distance 31-60 miles | E26: Each | F26: $47.00 | G26: 1.00% | H26: 2.00% | I26: 2.00% | J26: 2.00% | K26: 3.00% | L26: 3.00%
A28: Region 5 States of CA, NV, NM, AZ, UT
A29: Electronic Waste Removalal and Disposal from Public Roads, Streets and ROWS And Hauling to Debris Management Site
A30: Hauling Distance 0-15 miles | E30: Each | F30: =+F24+4 -> $46.00 | G30: 1.00% | H30: 2.00% | I30: 2.00% | J30: 2.00% | K30: 3.00% | L30: 3.00%
A31: Hauling Distance 16-30 miles | E31: Each | F31: =+F25+4 -> $48.50 | G31: 1.00% | H31: 2.00% | I31: 2.00% | J31: 2.00% | K31: 3.00% | L31: 3.00%
A32: Hauling Distance 31-60 miles | E32: Each | F32: $51.00 | G32: 1.00% | H32: 2.00% | I32: 2.00% | J32: 2.00% | K32: 3.00% | L32: 3.00%
A34: Region 6 - States of TX, AR, OK
A35: Electronic Waste Removalal and Disposal from Public Roads, Streets and ROWS And Hauling to Debris Management Site
A36: Hauling Distance 0-15 miles | E36: Each | F36: $35.00 | G36: 1.00% | H36: 2.00% | I36: 2.00% | J36: 2.00% | K36: 3.00% | L36: 3.00%
A37: Hauling Distance 16-30 miles | E37: Each | F37: $37.50 | G37: 1.00% | H37: 2.00% | I37: 2.00% | J37: 2.00% | K37: 3.00% | L37: 3.00%
A38: Hauling Distance 31-60 miles | E38: Each | F38: $40.00 | G38: 1.00% | H38: 2.00% | I38: 2.00% | J38: 2.00% | K38: 3.00% | L38: 3.00%
A40: Region 7- States of NC, SC, GA, AL, FL
A41: Electronic Waste Removalal and Disposal from Public Roads, Streets and ROWS And Hauling to Debris Management Site
A42: Hauling Distance 0-15 miles | E42: Each | F42: $35.00 | G42: 1.00% | H42: 2.00% | I42: 2.00% | J42: 2.00% | K42: 3.00% | L42: 3.00%
A43: Hauling Distance 16-30 miles | E43: Each | F43: $37.50 | G43: 1.00% | H43: 2.00% | I43: 2.00% | J43: 2.00% | K43: 3.00% | L43: 3.00%
A44: Hauling Distance 31-60 miles | E44: Each | F44: $40.00 | G44: 1.00% | H44: 2.00% | I44: 2.00% | J44: 2.00% | K44: 3.00% | L44: 3.00%
A46: Region 8- States of HI, AK
A47: Electronic Waste Removalal and Disposal from Public Roads, Streets and ROWS And Hauling to Debris Management Site
A48: Hauling Distance 0-15 miles | E48: Each | F48: =+F30 -> $46.00 | G48: 1.00% | H48: 2.00% | I48: 2.00% | J48: 2.00% | K48: 3.00% | L48: 3.00%
A49: Hauling Distance 16-30 miles | E49: Each | F49: =+F31 -> $48.50 | G49: 1.00% | H49: 2.00% | I49: 2.00% | J49: 2.00% | K49: 3.00% | L49: 3.00%
A50: Hauling Distance 31-60 miles | E50: Each | F50: $51.00 | G50: 1.00% | H50: 2.00% | I50: 2.00% | J50: 2.00% | K50: 3.00% | L50: 3.00%
A52: NOTE: Tipping/Disposal fees to be billed as a direct pass through cost with no mark up

Sheet Catagory VI
A1: List Services Provided (Labor category, and Skill Class) (Items in Red are meant as examples. Add more lines as needed or attach a .pdf, must mimic this format) | B1: LABOR Emergent Not To Exceed Hourly Rate | C1: LABOR Non- Emergent Not To Exceed Hourly Rate | D1: Materials and Supplies Description | E1: Unit | F1: Cost | G1: % Rate Increase 2nd year | H1: % Rate Increase 3rd year | I1: % Rate Increase 4th year | J1: % Rate Increase 5th year | K1: % Rate Increase 6th year | L1: % Rate Increase 7th year
A2: Category VI- White Goods
A4: Region 1- States of MT, WY, ID, OR, WA, MO, KS, CO, NE, SD, ND
A5: White Goods containing freon -Removal and Disposal from Public Roads, Streets and ROWS And Hauling to Debris Management Site
A6: Hauling Distance 0-15 miles | E6: Each | F6: $90.00 | G6: 1.00% | H6: 2.00% | I6: 2.00% | J6: 2.00% | K6: 3.00% | L6: 3.00%
A7: Hauling Distance 16-30 miles | E7: Each | F7: $92.50 | G7: 1.00% | H7: 2.00% | I7: 2.00% | J7: 2.00% | K7: 3.00% | L7: 3.00%
A8: Hauling Distance 31-60 miles | E8: Each | F8: $95.00 | G8: 1.00% | H8: 2.00% | I8: 2.00% | J8: 2.00% | K8: 3.00% | L8: 3.00%
A10: White Goods not containing freon - Removal and Disposal from Public Roads, Streets and ROWS And Hauling to Debris Management Site
A11: Hauling Distance 0-15 miles | E11: Each | F11: $50.00 | G11: 1.00% | H11: 2.00% | I11: 2.00% | J11: 2.00% | K11: 3.00% | L11: 3.00%
A12: Hauling Distance 16-30 miles | E12: Each | F12: $52.50 | G12: 1.00% | H12: 2.00% | I12: 2.00% | J12: 2.00% | K12: 3.00% | L12: 3.00%
A13: Hauling Distance 31-60 miles | E13: Each | F13: $55.00 | G13: 1.00% | H13: 2.00% | I13: 2.00% | J13: 2.00% | K13: 3.00% | L13: 3.00%
A15: Region 2- States of IL, IA, MN, WI, LA, MS
A16: White Goods containing freon -Removal and Disposal from Public Roads, Streets and ROWS And Hauling to Debris Management Site
A17: Hauling Distance 0-15 miles | E17: Each | F17: $90.00 | G17: 1.00% | H17: 2.00% | I17: 2.00% | J17: 2.00% | K17: 3.00% | L17: 3.00%
A18: Hauling Distance 16-30 miles | E18: Each | F18: $92.50 | G18: 1.00% | H18: 2.00% | I18: 2.00% | J18: 2.00% | K18: 3.00% | L18: 3.00%
A19: Hauling Distance 31-60 miles | E19: Each | F19: $95.00 | G19: 1.00% | H19: 2.00% | I19: 2.00% | J19: 2.00% | K19: 3.00% | L19: 3.00%
A21: White Goods not containing freon - Removal and Disposal from Public Roads, Streets and ROWS And Hauling to Debris Management Site
A22: Hauling Distance 0-15 miles | E22: Each | F22: $50.00 | G22: 1.00% | H22: 2.00% | I22: 2.00% | J22: 2.00% | K22: 3.00% | L22: 3.00%
A23: Hauling Distance 16-30 miles | E23: Each | F23: $52.50 | G23: 1.00% | H23: 2.00% | I23: 2.00% | J23: 2.00% | K23: 3.00% | L23: 3.00%
A24: Hauling Distance 31-60 miles | E24: Each | F24: $55.00 | G24: 1.00% | H24: 2.00% | I24: 2.00% | J24: 2.00% | K24: 3.00% | L24: 3.00%
A26: Region 3- States of MI, IN, TN, KY, OH, WV
A27: White Goods containing freon -Removal and Disposal from Public Roads, Streets and ROWS And Hauling to Debris Management Site
A28: Hauling Distance 0-15 miles | E28: Each | F28: $90.00 | G28: 1.00% | H28: 2.00% | I28: 2.00% | J28: 2.00% | K28: 3.00% | L28: 3.00%
A29: Hauling Distance 16-30 miles | E29: Each | F29: $92.50 | G29: 1.00% | H29: 2.00% | I29: 2.00% | J29: 2.00% | K29: 3.00% | L29: 3.00%
A30: Hauling Distance 31-60 miles | E30: Each | F30: $95.00 | G30: 1.00% | H30: 2.00% | I30: 2.00% | J30: 2.00% | K30: 3.00% | L30: 3.00%
A32: White Goods not containing freon - Removal and Disposal from Public Roads, Streets and ROWS And Hauling to Debris Management Site
A33: Hauling Distance 0-15 miles | E33: Each | F33: $50.00 | G33: 1.00% | H33: 2.00% | I33: 2.00% | J33: 2.00% | K33: 3.00% | L33: 3.00%
A34: Hauling Distance 16-30 miles | E34: Each | F34: $52.50 | G34: 1.00% | H34: 2.00% | I34: 2.00% | J34: 2.00% | K34: 3.00% | L34: 3.00%
A35: Hauling Distance 31-60 miles | E35: Each | F35: $55.00 | G35: 1.00% | H35: 2.00% | I35: 2.00% | J35: 2.00% | K35: 3.00% | L35: 3.00%
A37: Region 4- States of ME, VT, NH, MA, CT, NY, DE, MD, DC, PA, VA, RI
A38: White Goods containing freon -Removal and Disposal from Public Roads, Streets and ROWS And Hauling to Debris Management Site
A39: Hauling Distance 0-15 miles | E39: Each | F39: =+F28+45 -> $135.00 | G39: 1.00% | H39: 2.00% | I39: 2.00% | J39: 2.00% | K39: 3.00% | L39: 3.00%
A40: Hauling Distance 16-30 miles | E40: Each | F40: =+F29+45 -> $137.50 | G40: 1.00% | H40: 2.00% | I40: 2.00% | J40: 2.00% | K40: 3.00% | L40: 3.00%
A41: Hauling Distance 31-60 miles | E41: Each | F41: $140.00 | G41: 1.00% | H41: 2.00% | I41: 2.00% | J41: 2.00% | K41: 3.00% | L41: 3.00%
A43: White Goods not containing freon - Removal and Disposal from Public Roads, Streets and ROWS And Hauling to Debris Management Site
A44: Hauling Distance 0-15 miles | E44: Each | F44: =+F33+20 -> $70.00 | G44: 1.00% | H44: 2.00% | I44: 2.00% | J44: 2.00% | K44: 3.00% | L44: 3.00%
A45: Hauling Distance 16-30 miles | E45: Each | F45: =+F34+20 -> $72.50 | G45: 1.00% | H45: 2.00% | I45: 2.00% | J45: 2.00% | K45: 3.00% | L45: 3.00%
A46: Hauling Distance 31-60 miles | E46: Each | F46: $75.00 | G46: 1.00% | H46: 2.00% | I46: 2.00% | J46: 2.00% | K46: 3.00% | L46: 3.00%
A48: Region 5 States of CA, NV, NM, AZ, UT
A49: White Goods containing freon -Removal and Disposal from Public Roads, Streets and ROWS And Hauling to Debris Management Site
A50: Hauling Distance 0-15 miles | E50: Each | F50: =+F39+25 -> $160.00 | G50: 1.00% | H50: 2.00% | I50: 2.00% | J50: 2.00% | K50: 3.00% | L50: 3.00%
A51: Hauling Distance 16-30 miles | E51: Each | F51: =+F40+25 -> $162.50 | G51: 1.00% | H51: 2.00% | I51: 2.00% | J51: 2.00% | K51: 3.00% | L51: 3.00%
A52: Hauling Distance 31-60 miles | E52: Each | F52: $165.00 | G52: 1.00% | H52: 2.00% | I52: 2.00% | J52: 2.00% | K52: 3.00% | L52: 3.00%
A54: White Goods not containing freon - Removal and Disposal from Public Roads, Streets and ROWS And Hauling to Debris Management Site
A55: Hauling Distance 0-15 miles | E55: Each | F55: =+F44+20 -> $90.00 | G55: 1.00% | H55: 2.00% | I55: 2.00% | J55: 2.00% | K55: 3.00% | L55: 3.00%
A56: Hauling Distance 16-30 miles | E56: Each | F56: =+F45+20 -> $92.50 | G56: 1.00% | H56: 2.00% | I56: 2.00% | J56: 2.00% | K56: 3.00% | L56: 3.00%
A57: Hauling Distance 31-60 miles | E57: Each | F57: $95.00 | G57: 1.00% | H57: 2.00% | I57: 2.00% | J57: 2.00% | K57: 3.00% | L57: 3.00%
A59: Region 6 - States of TX, AR, OK
A60: White Goods containing freon -Removal and Disposal from Public Roads, Streets and ROWS And Hauling to Debris Management Site
A61: Hauling Distance 0-15 miles | E61: Each | F61: $90.00 | G61: 1.00% | H61: 2.00% | I61: 2.00% | J61: 2.00% | K61: 3.00% | L61: 3.00%
A62: Hauling Distance 16-30 miles | E62: Each | F62: $92.50 | G62: 1.00% | H62: 2.00% | I62: 2.00% | J62: 2.00% | K62: 3.00% | L62: 3.00%
A63: Hauling Distance 31-60 miles | E63: Each | F63: $95.00 | G63: 1.00% | H63: 2.00% | I63: 2.00% | J63: 2.00% | K63: 3.00% | L63: 3.00%
A65: White Goods not containing freon - Removal and Disposal from Public Roads, Streets and ROWS And Hauling to Debris Management Site
A66: Hauling Distance 0-15 miles | E66: Each | F66: $50.00 | G66: 1.00% | H66: 2.00% | I66: 2.00% | J66: 2.00% | K66: 3.00% | L66: 3.00%
A67: Hauling Distance 16-30 miles | E67: Each | F67: $52.50 | G67: 1.00% | H67: 2.00% | I67: 2.00% | J67: 2.00% | K67: 3.00% | L67: 3.00%
A68: Hauling Distance 31-60 miles | E68: Each | F68: $55.00 | G68: 1.00% | H68: 2.00% | I68: 2.00% | J68: 2.00% | K68: 3.00% | L68: 3.00%
A70: Region 7- States of NC, SC, GA, AL, FL
A71: White Goods containing freon -Removal and Disposal from Public Roads, Streets and ROWS And Hauling to Debris Management Site
A72: Hauling Distance 0-15 miles | E72: Each | F72: $90.00 | G72: 1.00% | H72: 2.00% | I72: 2.00% | J72: 2.00% | K72: 3.00% | L72: 3.00%
A73: Hauling Distance 16-30 miles | E73: Each | F73: $92.50 | G73: 1.00% | H73: 2.00% | I73: 2.00% | J73: 2.00% | K73: 3.00% | L73: 3.00%
A74: Hauling Distance 31-60 miles | E74: Each | F74: $95.00 | G74: 1.00% | H74: 2.00% | I74: 2.00% | J74: 2.00% | K74: 3.00% | L74: 3.00%
A76: White Goods not containing freon - Removal and Disposal from Public Roads, Streets and ROWS And Hauling to Debris Management Site
A77: Hauling Distance 0-15 miles | E77: Each | F77: $50.00 | G77: 1.00% | H77: 2.00% | I77: 2.00% | J77: 2.00% | K77: 3.00% | L77: 3.00%
A78: Hauling Distance 16-30 miles | E78: Each | F78: $52.50 | G78: 1.00% | H78: 2.00% | I78: 2.00% | J78: 2.00% | K78: 3.00% | L78: 3.00%
A79: Hauling Distance 31-60 miles | E79: Each | F79: $55.00 | G79: 1.00% | H79: 2.00% | I79: 2.00% | J79: 2.00% | K79: 3.00% | L79: 3.00%
A81: Region 8- States of HI, AK
A82: White Goods containing freon -Removal and Disposal from Public Roads, Streets and ROWS And Hauling to Debris Management Site
A83: Hauling Distance 0-15 miles | E83: Each | F83: =+F50 -> $160.00 | G83: 1.00% | H83: 2.00% | I83: 2.00% | J83: 2.00% | K83: 3.00% | L83: 3.00%
A84: Hauling Distance 16-30 miles | E84: Each | F84: =+F51 -> $162.50 | G84: 1.00% | H84: 2.00% | I84: 2.00% | J84: 2.00% | K84: 3.00% | L84: 3.00%
A85: Hauling Distance 31-60 miles | E85: Each | F85: $165.00 | G85: 1.00% | H85: 2.00% | I85: 2.00% | J85: 2.00% | K85: 3.00% | L85: 3.00%
A87: White Goods not containing freon - Removal and Disposal from Public Roads, Streets and ROWS And Hauling to Debris Management Site
A88: Hauling Distance 0-15 miles | E88: Each | F88: $90.00 | G88: 1.00% | H88: 2.00% | I88: 2.00% | J88: 2.00% | K88: 3.00% | L88: 3.00%
A89: Hauling Distance 16-30 miles | E89: Each | F89: $92.50 | G89: 1.00% | H89: 2.00% | I89: 2.00% | J89: 2.00% | K89: 3.00% | L89: 3.00%
A90: Hauling Distance 31-60 miles | E90: Each | F90: $95.00 | G90: 1.00% | H90: 2.00% | I90: 2.00% | J90: 2.00% | K90: 3.00% | L90: 3.00%
A92: NOTE: Tipping/Disposal fees to be billed as a direct pass through cost with no mark up

Sheet Catagory VII
A1: List Services Provided (Labor category, and Skill Class) (Items in Red are meant as examples. Add more lines as needed or attach a .pdf, must mimic this format) | B1: LABOR Emergent Not To Exceed Hourly Rate | C1: LABOR Non- Emergent Not To Exceed Hourly Rate | D1: Materials and Supplies Description | E1: Unit | F1: Cost | G1: % Rate Increase 2nd year | H1: % Rate Increase 3rd year | I1: % Rate Increase 4th year | J1: % Rate Increase 5th year | K1: % Rate Increase 6th year | L1: % Rate Increase 7th year
A2: Category VII- Soil, Mud and Sand
A4: Region 1- States of MT, WY, ID, OR, WA, MO, KS, CO, NE, SD, ND
A5: Soil and Mud Removal from Public Roads, Streets and ROWS And+5:29 Hauling to a Debris Management Site
A6: Hauling Distance 0-15 miles | E6: Cubic Yard (CY) | F6: $10.98 | G6: 1.00% | H6: 2.00% | I6: 2.00% | J6: 2.00% | K6: 3.00% | L6: 3.00%
A7: Hauling Distance 16-30 miles | E7: CY | F7: $11.98 | G7: 1.00% | H7: 2.00% | I7: 2.00% | J7: 2.00% | K7: 3.00% | L7: 3.00%
A8: Hauling Distance 31-60 miles | E8: CY | F8: $14.98 | G8: 1.00% | H8: 2.00% | I8: 2.00% | J8: 2.00% | K8: 3.00% | L8: 3.00%
A10: Soil and Mud Removal from Public Roads, Streets and ROWS And Hauling to a Final Disposal Sites
A11: Hauling Distance 0-15 miles | E11: Cubic Yard (CY) | F11: =+F6+1 -> $11.98 | G11: 1.00% | H11: 2.00% | I11: 2.00% | J11: 2.00% | K11: 3.00% | L11: 3.00%
A12: Hauling Distance 16-30 miles | E12: CY | F12: =+F7+1 -> $12.98 | G12: 1.00% | H12: 2.00% | I12: 2.00% | J12: 2.00% | K12: 3.00% | L12: 3.00%
A13: Hauling Distance 31-60 miles | E13: CY | F13: $15.98 | G13: 1.00% | H13: 2.00% | I13: 2.00% | J13: 2.00% | K13: 3.00% | L13: 3.00%
A15: Sand Removal from Public Roads, Streets and ROWS And Hauling to a Debris Management Site
A16: Hauling Distance 0-15 miles | E16: Cubic Yard (CY) | F16: =+F11+4 -> $15.98 | G16: 1.00% | H16: 2.00% | I16: 2.00% | J16: 2.00% | K16: 3.00% | L16: 3.00%
A17: Hauling Distance 16-30 miles | E17: CY | F17: =+F12+4 -> $16.98 | G17: 1.00% | H17: 2.00% | I17: 2.00% | J17: 2.00% | K17: 3.00% | L17: 3.00%
A18: Hauling Distance 31-60 miles | E18: CY | F18: $19.98 | G18: 1.00% | H18: 2.00% | I18: 2.00% | J18: 2.00% | K18: 3.00% | L18: 3.00%
Q19: NOTE: Tipping/Disposal fees to be billed as a direct pass through cost with no mark up
A20: Sand Removal from Public Beaches and And Hauling to a Final Disposal Sites
A21: Hauling Distance 0-15 miles | E21: CY | F21: =+F11+5 -> $16.98 | G21: 1.00% | H21: 2.00% | I21: 2.00% | J21: 2.00% | K21: 3.00% | L21: 3.00%
A22: Hauling Distance 16-30 miles | E22: CY | F22: =+F12+5 -> $17.98 | G22: 1.00% | H22: 2.00% | I22: 2.00% | J22: 2.00% | K22: 3.00% | L22: 3.00%
A23: Hauling Distance 31-60 miles | E23: CY | F23: $20.98 | G23: 1.00% | H23: 2.00% | I23: 2.00% | J23: 2.00% | K23: 3.00% | L23: 3.00%
A25: Sifting of debris from Sand at a DMS and stockpiling sand at beaches of origin- Resulting debris to be treated as regular DMS debris and managed, reduced and disposed of as such
A26: Hauling Distance 0-15 miles | E26: CY | F26: $10.98 | G26: 1.00% | H26: 2.00% | I26: 2.00% | J26: 2.00% | K26: 3.00% | L26: 3.00%
A27: Hauling Distance 16-30 miles | E27: CY | F27: $11.98 | G27: 1.00% | H27: 2.00% | I27: 2.00% | J27: 2.00% | K27: 3.00% | L27: 3.00%
A28: Hauling Distance 31-60 miles | E28: CY | F28: $13.98 | G28: 1.00% | H28: 2.00% | I28: 2.00% | J28: 2.00% | K28: 3.00% | L28: 3.00%
A30: Region 2- States of IL, IA, MN, WI, LA, MS
A31: Soil and Mud Removal from Public Roads, Streets and ROWS And+5:29 Hauling to a Debris Management Site
A32: Hauling Distance 0-15 miles | E32: Cubic Yard (CY) | F32: $10.98 | G32: 1.00% | H32: 2.00% | I32: 2.00% | J32: 2.00% | K32: 3.00% | L32: 3.00%
A33: Hauling Distance 16-30 miles | E33: CY | F33: $11.98 | G33: 1.00% | H33: 2.00% | I33: 2.00% | J33: 2.00% | K33: 3.00% | L33: 3.00%
A34: Hauling Distance 31-60 miles | E34: CY | F34: $14.98 | G34: 1.00% | H34: 2.00% | I34: 2.00% | J34: 2.00% | K34: 3.00% | L34: 3.00%
A36: Soil and Mud Removal from Public Roads, Streets and ROWS And Hauling to a Final Disposal Sites
A37: Hauling Distance 0-15 miles | E37: Cubic Yard (CY) | F37: =+F32+1 -> $11.98 | G37: 1.00% | H37: 2.00% | I37: 2.00% | J37: 2.00% | K37: 3.00% | L37: 3.00%
A38: Hauling Distance 16-30 miles | E38: CY | F38: =+F33+1 -> $12.98 | G38: 1.00% | H38: 2.00% | I38: 2.00% | J38: 2.00% | K38: 3.00% | L38: 3.00%
A39: Hauling Distance 31-60 miles | E39: CY | F39: $15.98 | G39: 1.00% | H39: 2.00% | I39: 2.00% | J39: 2.00% | K39: 3.00% | L39: 3.00%
A41: Sand Removal from Public Roads, Streets and ROWS And Hauling to a Debris Management Site
A42: Hauling Distance 0-15 miles | E42: Cubic Yard (CY) | F42: =+F37+4 -> $15.98 | G42: 1.00% | H42: 2.00% | I42: 2.00% | J42: 2.00% | K42: 3.00% | L42: 3.00%
A43: Hauling Distance 16-30 miles | E43: CY | F43: =+F38+4 -> $16.98 | G43: 1.00% | H43: 2.00% | I43: 2.00% | J43: 2.00% | K43: 3.00% | L43: 3.00%
A44: Hauling Distance 31-60 miles | E44: CY | F44: $19.98 | G44: 1.00% | H44: 2.00% | I44: 2.00% | J44: 2.00% | K44: 3.00% | L44: 3.00%
Q45: NOTE: Tipping/Disposal fees to be billed as a direct pass through cost with no mark up
A46: Sand Removal from Public Beaches and And Hauling to a Final Disposal Sites
A47: Hauling Distance 0-15 miles | E47: CY | F47: =+F37+5 -> $16.98 | G47: 1.00% | H47: 2.00% | I47: 2.00% | J47: 2.00% | K47: 3.00% | L47: 3.00%
A48: Hauling Distance 16-30 miles | E48: CY | F48: =+F38+5 -> $17.98 | G48: 1.00% | H48: 2.00% | I48: 2.00% | J48: 2.00% | K48: 3.00% | L48: 3.00%
A49: Hauling Distance 31-60 miles | E49: CY | F49: $20.98 | G49: 1.00% | H49: 2.00% | I49: 2.00% | J49: 2.00% | K49: 3.00% | L49: 3.00%
A51: Sifting of debris from Sand at a DMS and stockpiling sand at beaches of origin- Resulting debris to be treated as regular DMS debris and managed, reduced and disposed of as such
A52: Hauling Distance 0-15 miles | E52: CY | F52: $10.98 | G52: 1.00% | H52: 2.00% | I52: 2.00% | J52: 2.00% | K52: 3.00% | L52: 3.00%
A53: Hauling Distance 16-30 miles | E53: CY | F53: $11.98 | G53: 1.00% | H53: 2.00% | I53: 2.00% | J53: 2.00% | K53: 3.00% | L53: 3.00%
A54: Hauling Distance 31-60 miles | E54: CY | F54: $13.98 | G54: 1.00% | H54: 2.00% | I54: 2.00% | J54: 2.00% | K54: 3.00% | L54: 3.00%
A56: Region 3- States of MI, IN, TN, KY, OH, WV
A57: Soil and Mud Removal from Public Roads, Streets and ROWS And+5:29 Hauling to a Debris Management Site
A58: Hauling Distance 0-15 miles | E58: Cubic Yard (CY) | F58: $10.98 | G58: 1.00% | H58: 2.00% | I58: 2.00% | J58: 2.00% | K58: 3.00% | L58: 3.00%
A59: Hauling Distance 16-30 miles | E59: CY | F59: $11.98 | G59: 1.00% | H59: 2.00% | I59: 2.00% | J59: 2.00% | K59: 3.00% | L59: 3.00%
A60: Hauling Distance 31-60 miles | E60: CY | F60: $14.98 | G60: 1.00% | H60: 2.00% | I60: 2.00% | J60: 2.00% | K60: 3.00% | L60: 3.00%
A62: Soil and Mud Removal from Public Roads, Streets and ROWS And Hauling to a Final Disposal Sites
A63: Hauling Distance 0-15 miles | E63: Cubic Yard (CY) | F63: =+F58+1 -> $11.98 | G63: 1.00% | H63: 2.00% | I63: 2.00% | J63: 2.00% | K63: 3.00% | L63: 3.00%
A64: Hauling Distance 16-30 miles | E64: CY | F64: =+F59+1 -> $12.98 | G64: 1.00% | H64: 2.00% | I64: 2.00% | J64: 2.00% | K64: 3.00% | L64: 3.00%
A65: Hauling Distance 31-60 miles | E65: CY | F65: $15.98 | G65: 1.00% | H65: 2.00% | I65: 2.00% | J65: 2.00% | K65: 3.00% | L65: 3.00%
A67: Sand Removal from Public Roads, Streets and ROWS And Hauling to a Debris Management Site
A68: Hauling Distance 0-15 miles | E68: Cubic Yard (CY) | F68: =+F63+4 -> $15.98 | G68: 1.00% | H68: 2.00% | I68: 2.00% | J68: 2.00% | K68: 3.00% | L68: 3.00%
A69: Hauling Distance 16-30 miles | E69: CY | F69: =+F64+4 -> $16.98 | G69: 1.00% | H69: 2.00% | I69: 2.00% | J69: 2.00% | K69: 3.00% | L69: 3.00%
A70: Hauling Distance 31-60 miles | E70: CY | F70: $19.98 | G70: 1.00% | H70: 2.00% | I70: 2.00% | J70: 2.00% | K70: 3.00% | L70: 3.00%
Q71: NOTE: Tipping/Disposal fees to be billed as a direct pass through cost with no mark up
A72: Sand Removal from Public Beaches and And Hauling to a Final Disposal Sites
A73: Hauling Distance 0-15 miles | E73: CY | F73: =+F63+5 -> $16.98 | G73: 1.00% | H73: 2.00% | I73: 2.00% | J73: 2.00% | K73: 3.00% | L73: 3.00%
A74: Hauling Distance 16-30 miles | E74: CY | F74: =+F64+5 -> $17.98 | G74: 1.00% | H74: 2.00% | I74: 2.00% | J74: 2.00% | K74: 3.00% | L74: 3.00%
A75: Hauling Distance 31-60 miles | E75: CY | F75: $20.98 | G75: 1.00% | H75: 2.00% | I75: 2.00% | J75: 2.00% | K75: 3.00% | L75: 3.00%
A77: Sifting of debris from Sand at a DMS and stockpiling sand at beaches of origin- Resulting debris to be treated as regular DMS debris and managed, reduced and disposed of as such
A78: Hauling Distance 0-15 miles | E78: CY | F78: $10.98 | G78: 1.00% | H78: 2.00% | I78: 2.00% | J78: 2.00% | K78: 3.00% | L78: 3.00%
A79: Hauling Distance 16-30 miles | E79: CY | F79: $11.98 | G79: 1.00% | H79: 2.00% | I79: 2.00% | J79: 2.00% | K79: 3.00% | L79: 3.00%
A80: Hauling Distance 31-60 miles | E80: CY | F80: $13.98 | G80: 1.00% | H80: 2.00% | I80: 2.00% | J80: 2.00% | K80: 3.00% | L80: 3.00%
A83: Sifting of debris from Sand at a DMS and returning sand to beaches of origin- Resulting debris to be treated as regular DMS debris and managed, reduced and disposed of as such
A84: Hauling Distance 0-15 miles | E84: CY | F84: $10.98 | G84: 1.00% | H84: 2.00% | I84: 2.00% | J84: 2.00% | K84: 3.00% | L84: 3.00%
A85: Hauling Distance 16-30 miles | E85: CY | F85: $11.98 | G85: 1.00% | H85: 2.00% | I85: 2.00% | J85: 2.00% | K85: 3.00% | L85: 3.00%
A86: Hauling Distance 31-60 miles | E86: CY | F86: $13.98 | G86: 1.00% | H86: 2.00% | I86: 2.00% | J86: 2.00% | K86: 3.00% | L86: 3.00%
A88: Region 4- States of ME, VT, NH, MA, CT, NY, DE, MD, DC, PA, VA, RI
A89: Soil and Mud Removal from Public Roads, Streets and ROWS And+5:29 Hauling to a Debris Management Site
A90: Hauling Distance 0-15 miles | E90: Cubic Yard (CY) | F90: =+F58+4 -> $14.98 | G90: 1.00% | H90: 2.00% | I90: 2.00% | J90: 2.00% | K90: 3.00% | L90: 3.00%
A91: Hauling Distance 16-30 miles | E91: CY | F91: =+F59+4 -> $15.98 | G91: 1.00% | H91: 2.00% | I91: 2.00% | J91: 2.00% | K91: 3.00% | L91: 3.00%
A92: Hauling Distance 31-60 miles | E92: CY | F92: $18.98 | G92: 1.00% | H92: 2.00% | I92: 2.00% | J92: 2.00% | K92: 3.00% | L92: 3.00%
A94: Soil and Mud Removal from Public Roads, Streets and ROWS And Hauling to a Final Disposal Sites
A95: Hauling Distance 0-15 miles | E95: Cubic Yard (CY) | F95: $15.98 | G95: 1.00% | H95: 2.00% | I95: 2.00% | J95: 2.00% | K95: 3.00% | L95: 3.00%
A96: Hauling Distance 16-30 miles | E96: CY | F96: $16.98 | G96: 1.00% | H96: 2.00% | I96: 2.00% | J96: 2.00% | K96: 3.00% | L96: 3.00%
A97: Hauling Distance 31-60 miles | E97: CY | F97: $19.98 | G97: 1.00% | H97: 2.00% | I97: 2.00% | J97: 2.00% | K97: 3.00% | L97: 3.00%
A99: Sand Removal from Public Roads, Streets and ROWS And Hauling to a Debris Management Site
A100: Hauling Distance 0-15 miles | E100: Cubic Yard (CY) | F100: $19.98 | G100: 1.00% | H100: 2.00% | I100: 2.00% | J100: 2.00% | K100: 3.00% | L100: 3.00%
A101: Hauling Distance 16-30 miles | E101: CY | F101: $20.98 | G101: 1.00% | H101: 2.00% | I101: 2.00% | J101: 2.00% | K101: 3.00% | L101: 3.00%
A102: Hauling Distance 31-60 miles | E102: CY | F102: $23.98 | G102: 1.00% | H102: 2.00% | I102: 2.00% | J102: 2.00% | K102: 3.00% | L102: 3.00%
Q103: NOTE: Tipping/Disposal fees to be billed as a direct pass through cost with no mark up
A104: Sand Removal from Public Beaches and And Hauling to a Final Disposal Sites
A105: Hauling Distance 0-15 miles | E105: CY | F105: $20.98 | G105: 1.00% | H105: 2.00% | I105: 2.00% | J105: 2.00% | K105: 3.00% | L105: 3.00%
A106: Hauling Distance 16-30 miles | E106: CY | F106: $21.98 | G106: 1.00% | H106: 2.00% | I106: 2.00% | J106: 2.00% | K106: 3.00% | L106: 3.00%
A107: Hauling Distance 31-60 miles | E107: CY | F107: $24.98 | G107: 1.00% | H107: 2.00% | I107: 2.00% | J107: 2.00% | K107: 3.00% | L107: 3.00%
A109: Sifting of debris from Sand at a DMS and stockpiling sand at beaches of origin- Resulting debris to be treated as regular DMS debris and managed, reduced and disposed of as such
A110: Hauling Distance 0-15 miles | E110: CY | F110: $14.98 | G110: 1.00% | H110: 2.00% | I110: 2.00% | J110: 2.00% | K110: 3.00% | L110: 3.00%
A111: Hauling Distance 16-30 miles | E111: CY | F111: $15.98 | G111: 1.00% | H111: 2.00% | I111: 2.00% | J111: 2.00% | K111: 3.00% | L111: 3.00%
A112: Hauling Distance 31-60 miles | E112: CY | F112: $17.98 | G112: 1.00% | H112: 2.00% | I112: 2.00% | J112: 2.00% | K112: 3.00% | L112: 3.00%
A114: Region 5 States of CA, NV, NM, AZ, UT
A115: Soil and Mud Removal from Public Roads, Streets and ROWS And+5:29 Hauling to a Debris Management Site
A116: Hauling Distance 0-15 miles | E116: Cubic Yard (CY) | F116: =+F90+4 -> $18.98 | G116: 1.00% | H116: 2.00% | I116: 2.00% | J116: 2.00% | K116: 3.00% | L116: 3.00%
A117: Hauling Distance 16-30 miles | E117: CY | F117: =+F91+4 -> $19.98 | G117: 1.00% | H117: 2.00% | I117: 2.00% | J117: 2.00% | K117: 3.00% | L117: 3.00%
A118: Hauling Distance 31-60 miles | E118: CY | F118: $22.98 | G118: 1.00% | H118: 2.00% | I118: 2.00% | J118: 2.00% | K118: 3.00% | L118: 3.00%
A120: Soil and Mud Removal from Public Roads, Streets and ROWS And Hauling to a Final Disposal Sites
A121: Hauling Distance 0-15 miles | E121: Cubic Yard (CY) | F121: $19.98 | G121: 1.00% | H121: 2.00% | I121: 2.00% | J121: 2.00% | K121: 3.00% | L121: 3.00%
A122: Hauling Distance 16-30 miles | E122: CY | F122: $20.98 | G122: 1.00% | H122: 2.00% | I122: 2.00% | J122: 2.00% | K122: 3.00% | L122: 3.00%
A123: Hauling Distance 31-60 miles | E123: CY | F123: $23.98 | G123: 1.00% | H123: 2.00% | I123: 2.00% | J123: 2.00% | K123: 3.00% | L123: 3.00%
A125: Sand Removal from Public Roads, Streets and ROWS And Hauling to a Debris Management Site
A126: Hauling Distance 0-15 miles | E126: Cubic Yard (CY) | F126: $23.98 | G126: 1.00% | H126: 2.00% | I126: 2.00% | J126: 2.00% | K126: 3.00% | L126: 3.00%
A127: Hauling Distance 16-30 miles | E127: CY | F127: $24.98 | G127: 1.00% | H127: 2.00% | I127: 2.00% | J127: 2.00% | K127: 3.00% | L127: 3.00%
A128: Hauling Distance 31-60 miles | E128: CY | F128: $27.98 | G128: 1.00% | H128: 2.00% | I128: 2.00% | J128: 2.00% | K128: 3.00% | L128: 3.00%
Q129: NOTE: Tipping/Disposal fees to be billed as a direct pass through cost with no mark up
A130: Sand Removal from Public Beaches and And Hauling to a Final Disposal Sites
A131: Hauling Distance 0-15 miles | E131: CY | F131: $24.98 | G131: 1.00% | H131: 2.00% | I131: 2.00% | J131: 2.00% | K131: 3.00% | L131: 3.00%
A132: Hauling Distance 16-30 miles | E132: CY | F132: $25.98 | G132: 1.00% | H132: 2.00% | I132: 2.00% | J132: 2.00% | K132: 3.00% | L132: 3.00%
A133: Hauling Distance 31-60 miles | E133: CY | F133: $28.98 | G133: 1.00% | H133: 2.00% | I133: 2.00% | J133: 2.00% | K133: 3.00% | L133: 3.00%
A135: Sifting of debris from Sand at a DMS and stockpiling sand at beaches of origin- Resulting debris to be treated as regular DMS debris and managed, reduced and disposed of as such
A136: Hauling Distance 0-15 miles | E136: CY | F136: $18.98 | G136: 1.00% | H136: 2.00% | I136: 2.00% | J136: 2.00% | K136: 3.00% | L136: 3.00%
A137: Hauling Distance 16-30 miles | E137: CY | F137: $19.98 | G137: 1.00% | H137: 2.00% | I137: 2.00% | J137: 2.00% | K137: 3.00% | L137: 3.00%
A138: Hauling Distance 31-60 miles | E138: CY | F138: $21.98 | G138: 1.00% | H138: 2.00% | I138: 2.00% | J138: 2.00% | K138: 3.00% | L138: 3.00%
A140: Region 6 - States of TX, AR, OK
A141: Soil and Mud Removal from Public Roads, Streets and ROWS And+5:29 Hauling to a Debris Management Site
A142: Hauling Distance 0-15 miles | E142: Cubic Yard (CY) | F142: $10.98 | G142: 1.00% | H142: 2.00% | I142: 2.00% | J142: 2.00% | K142: 3.00% | L142: 3.00%
A143: Hauling Distance 16-30 miles | E143: CY | F143: $11.98 | G143: 1.00% | H143: 2.00% | I143: 2.00% | J143: 2.00% | K143: 3.00% | L143: 3.00%
A144: Hauling Distance 31-60 miles | E144: CY | F144: $14.98 | G144: 1.00% | H144: 2.00% | I144: 2.00% | J144: 2.00% | K144: 3.00% | L144: 3.00%
A146: Soil and Mud Removal from Public Roads, Streets and ROWS And Hauling to a Final Disposal Sites
A147: Hauling Distance 0-15 miles | E147: Cubic Yard (CY) | F147: =+F142+1 -> $11.98 | G147: 1.00% | H147: 2.00% | I147: 2.00% | J147: 2.00% | K147: 3.00% | L147: 3.00%
A148: Hauling Distance 16-30 miles | E148: CY | F148: =+F143+1 -> $12.98 | G148: 1.00% | H148: 2.00% | I148: 2.00% | J148: 2.00% | K148: 3.00% | L148: 3.00%
A149: Hauling Distance 31-60 miles | E149: CY | F149: $15.98 | G149: 1.00% | H149: 2.00% | I149: 2.00% | J149: 2.00% | K149: 3.00% | L149: 3.00%
A151: Sand Removal from Public Roads, Streets and ROWS And Hauling to a Debris Management Site
A152: Hauling Distance 0-15 miles | E152: Cubic Yard (CY) | F152: =+F147+4 -> $15.98 | G152: 1.00% | H152: 2.00% | I152: 2.00% | J152: 2.00% | K152: 3.00% | L152: 3.00%
A153: Hauling Distance 16-30 miles | E153: CY | F153: =+F148+4 -> $16.98 | G153: 1.00% | H153: 2.00% | I153: 2.00% | J153: 2.00% | K153: 3.00% | L153: 3.00%
A154: Hauling Distance 31-60 miles | E154: CY | F154: $19.98 | G154: 1.00% | H154: 2.00% | I154: 2.00% | J154: 2.00% | K154: 3.00% | L154: 3.00%
A156: Sand Removal from Public Beaches and And Hauling to a Final Disposal Sites
A157: Hauling Distance 0-15 miles | E157: CY | F157: =+F147+5 -> $16.98 | G157: 1.00% | H157: 2.00% | I157: 2.00% | J157: 2.00% | K157: 3.00% | L157: 3.00%
A158: Hauling Distance 16-30 miles | E158: CY | F158: =+F148+5 -> $17.98 | G158: 1.00% | H158: 2.00% | I158: 2.00% | J158: 2.00% | K158: 3.00% | L158: 3.00%
A159: Hauling Distance 31-60 miles | E159: CY | F159: $20.98 | G159: 1.00% | H159: 2.00% | I159: 2.00% | J159: 2.00% | K159: 3.00% | L159: 3.00%
A161: Sifting of debris from Sand at a DMS and stockpiling sand at beaches of origin- Resulting debris to be treated as regular DMS debris and managed, reduced and disposed of as such
A162: Hauling Distance 0-15 miles | E162: CY | F162: $10.98 | G162: 1.00% | H162: 2.00% | I162: 2.00% | J162: 2.00% | K162: 3.00% | L162: 3.00%
A163: Hauling Distance 16-30 miles | E163: CY | F163: $11.98 | G163: 1.00% | H163: 2.00% | I163: 2.00% | J163: 2.00% | K163: 3.00% | L163: 3.00%
A164: Hauling Distance 31-60 miles | E164: CY | F164: $13.98 | G164: 1.00% | H164: 2.00% | I164: 2.00% | J164: 2.00% | K164: 3.00% | L164: 3.00%
A166: Region 7- States of NC, SC, GA, AL, FL
A167: Soil and Mud Removal from Public Roads, Streets and ROWS And+5:29 Hauling to a Debris Management Site
A168: Hauling Distance 0-15 miles | E168: Cubic Yard (CY) | F168: $10.98 | G168: 1.00% | H168: 2.00% | I168: 2.00% | J168: 2.00% | K168: 3.00% | L168: 3.00%
A169: Hauling Distance 16-30 miles | E169: CY | F169: $11.98 | G169: 1.00% | H169: 2.00% | I169: 2.00% | J169: 2.00% | K169: 3.00% | L169: 3.00%
A170: Hauling Distance 31-60 miles | E170: CY | F170: $14.98 | G170: 1.00% | H170: 2.00% | I170: 2.00% | J170: 2.00% | K170: 3.00% | L170: 3.00%
A172: Soil and Mud Removal from Public Roads, Streets and ROWS And Hauling to a Final Disposal Sites
A173: Hauling Distance 0-15 miles | E173: Cubic Yard (CY) | F173: =+F168+1 -> $11.98 | G173: 1.00% | H173: 2.00% | I173: 2.00% | J173: 2.00% | K173: 3.00% | L173: 3.00%
A174: Hauling Distance 16-30 miles | E174: CY | F174: =+F169+1 -> $12.98 | G174: 1.00% | H174: 2.00% | I174: 2.00% | J174: 2.00% | K174: 3.00% | L174: 3.00%
A175: Hauling Distance 31-60 miles | E175: CY | F175: $15.98 | G175: 1.00% | H175: 2.00% | I175: 2.00% | J175: 2.00% | K175: 3.00% | L175: 3.00%
A177: Sand Removal from Public Roads, Streets and ROWS And Hauling to a Debris Management Site
A178: Hauling Distance 0-15 miles | E178: Cubic Yard (CY) | F178: =+F173+4 -> $15.98 | G178: 1.00% | H178: 2.00% | I178: 2.00% | J178: 2.00% | K178: 3.00% | L178: 3.00%
A179: Hauling Distance 16-30 miles | E179: CY | F179: =+F174+4 -> $16.98 | G179: 1.00% | H179: 2.00% | I179: 2.00% | J179: 2.00% | K179: 3.00% | L179: 3.00%
A180: Hauling Distance 31-60 miles | E180: CY | F180: $19.98 | G180: 1.00% | H180: 2.00% | I180: 2.00% | J180: 2.00% | K180: 3.00% | L180: 3.00%
Q181: NOTE: Tipping/Disposal fees to be billed as a direct pass through cost with no mark up
A182: Sand Removal from Public Beaches and And Hauling to a Final Disposal Sites
A183: Hauling Distance 0-15 miles | E183: CY | F183: =+F173+5 -> $16.98 | G183: 1.00% | H183: 2.00% | I183: 2.00% | J183: 2.00% | K183: 3.00% | L183: 3.00%
A184: Hauling Distance 16-30 miles | E184: CY | F184: =+F174+5 -> $17.98 | G184: 1.00% | H184: 2.00% | I184: 2.00% | J184: 2.00% | K184: 3.00% | L184: 3.00%
A185: Hauling Distance 31-60 miles | E185: CY | F185: $20.98 | G185: 1.00% | H185: 2.00% | I185: 2.00% | J185: 2.00% | K185: 3.00% | L185: 3.00%
A187: Sifting of debris from Sand at a DMS and stockpiling sand at beaches of origin- Resulting debris to be treated as regular DMS debris and managed, reduced and disposed of as such
A188: Hauling Distance 0-15 miles | E188: CY | F188: $10.98 | G188: 1.00% | H188: 2.00% | I188: 2.00% | J188: 2.00% | K188: 3.00% | L188: 3.00%
A189: Hauling Distance 16-30 miles | E189: CY | F189: $11.98 | G189: 1.00% | H189: 2.00% | I189: 2.00% | J189: 2.00% | K189: 3.00% | L189: 3.00%
A190: Hauling Distance 31-60 miles | E190: CY | F190: $13.98 | G190: 1.00% | H190: 2.00% | I190: 2.00% | J190: 2.00% | K190: 3.00% | L190: 3.00%
A192: Region 8- States of HI, AK
A193: Soil and Mud Removal from Public Roads, Streets and ROWS And+5:29 Hauling to a Debris Management Site
A194: Hauling Distance 0-15 miles | E194: Cubic Yard (CY) | F194: =+F116 -> $18.98 | G194: 1.00% | H194: 2.00% | I194: 2.00% | J194: 2.00% | K194: 3.00% | L194: 3.00%
A195: Hauling Distance 16-30 miles | E195: CY | F195: =+F117 -> $19.98 | G195: 1.00% | H195: 2.00% | I195: 2.00% | J195: 2.00% | K195: 3.00% | L195: 3.00%
A196: Hauling Distance 31-60 miles | E196: CY | F196: $22.98 | G196: 1.00% | H196: 2.00% | I196: 2.00% | J196: 2.00% | K196: 3.00% | L196: 3.00%
A198: Soil and Mud Removal from Public Roads, Streets and ROWS And Hauling to a Final Disposal Sites
A199: Hauling Distance 0-15 miles | E199: Cubic Yard (CY) | F199: $19.98 | G199: 1.00% | H199: 2.00% | I199: 2.00% | J199: 2.00% | K199: 3.00% | L199: 3.00%
A200: Hauling Distance 16-30 miles | E200: CY | F200: $20.98 | G200: 1.00% | H200: 2.00% | I200: 2.00% | J200: 2.00% | K200: 3.00% | L200: 3.00%
A201: Hauling Distance 31-60 miles | E201: CY | F201: $23.98 | G201: 1.00% | H201: 2.00% | I201: 2.00% | J201: 2.00% | K201: 3.00% | L201: 3.00%
A203: Sand Removal from Public Roads, Streets and ROWS And Hauling to a Debris Management Site
A204: Hauling Distance 0-15 miles | E204: Cubic Yard (CY) | F204: $23.98 | G204: 1.00% | H204: 2.00% | I204: 2.00% | J204: 2.00% | K204: 3.00% | L204: 3.00%
A205: Hauling Distance 16-30 miles | E205: CY | F205: $24.98 | G205: 1.00% | H205: 2.00% | I205: 2.00% | J205: 2.00% | K205: 3.00% | L205: 3.00%
A206: Hauling Distance 31-60 miles | E206: CY | F206: $27.98 | G206: 1.00% | H206: 2.00% | I206: 2.00% | J206: 2.00% | K206: 3.00% | L206: 3.00%
A208: Sand Removal from Public Beaches and And Hauling to a Final Disposal Sites
A209: Hauling Distance 0-15 miles | E209: CY | F209: $24.98 | G209: 1.00% | H209: 2.00% | I209: 2.00% | J209: 2.00% | K209: 3.00% | L209: 3.00%
A210: Hauling Distance 16-30 miles | E210: CY | F210: $25.98 | G210: 1.00% | H210: 2.00% | I210: 2.00% | J210: 2.00% | K210: 3.00% | L210: 3.00%
A211: Hauling Distance 31-60 miles | E211: CY | F211: $28.98 | G211: 1.00% | H211: 2.00% | I211: 2.00% | J211: 2.00% | K211: 3.00% | L211: 3.00%
A213: Sifting of debris from Sand at a DMS and stockpiling sand at beaches of origin- Resulting debris to be treated as regular DMS debris and managed, reduced and disposed of as such
A214: Hauling Distance 0-15 miles | E214: CY | F214: $18.98 | G214: 1.00% | H214: 2.00% | I214: 2.00% | J214: 2.00% | K214: 3.00% | L214: 3.00%
A215: Hauling Distance 16-30 miles | E215: CY | F215: $19.98 | G215: 1.00% | H215: 2.00% | I215: 2.00% | J215: 2.00% | K215: 3.00% | L215: 3.00%
A216: Hauling Distance 31-60 miles | E216: CY | F216: $21.98 | G216: 1.00% | H216: 2.00% | I216: 2.00% | J216: 2.00% | K216: 3.00% | L216: 3.00%
A218: NOTE: Tipping/Disposal fees to be billed as a direct pass through cost with no mark up

Sheet Catagory VIII
A1: List Services Provided (Labor category, and Skill Class) (Items in Red are meant as examples. Add more lines as needed or attach a .pdf, must mimic this format) | B1: LABOR Emergent Not To Exceed Hourly Rate | C1: LABOR Non- Emergent Not To Exceed Hourly Rate | D1: Materials and Supplies Description | E1: Unit | F1: Cost | G1: % Rate Increase 2nd year | H1: % Rate Increase 3rd year | I1: % Rate Increase 4th year | J1: % Rate Increase 5th year | K1: % Rate Increase 6th year | L1: % Rate Increase 7th year
A2: Category VIII- Vehicles and Vessels
A4: Region 1- States of MT, WY, ID, OR, WA, MO, KS, CO, NE, SD, ND
A5: Sunken Vessel Removal | E5: Unit | F5: Unit Price
A6: Marine Based salvage operations:
A7: Recreational vessels up to 24' in length
A8: 1. Flat & V-Hulled Vessels | E8: Per Linear Foot | F8: $125.00 | G8: 1.00% | H8: 2.00% | I8: 2.00% | J8: 2.00% | K8: 3.00% | L8: 3.00%
A9: 2. Keeled Vessels | E9: Per Linear Foot | F9: $150.00 | G9: 1.00% | H9: 2.00% | I9: 2.00% | J9: 2.00% | K9: 3.00% | L9: 3.00%
A10: Recreational vessels 25' up to 36' in length
A11: 1. Flat & V-Hulled Vessels | E11: Per Linear Foot | F11: =+F8+40 -> $165.00 | G11: 1.00% | H11: 2.00% | I11: 2.00% | J11: 2.00% | K11: 3.00% | L11: 3.00%
A12: 2. Keeled Vessels | E12: Per Linear Foot | F12: =+F9+40 -> $190.00 | G12: 1.00% | H12: 2.00% | I12: 2.00% | J12: 2.00% | K12: 3.00% | L12: 3.00%
A13: Recreational vessels 36' up to 48' in length
A14: 1. Flat & V-Hulled Vessels | E14: Per Linear Foot | F14: =+F11+50 -> $215.00 | G14: 1.00% | H14: 2.00% | I14: 2.00% | J14: 2.00% | K14: 3.00% | L14: 3.00%
A15: 2. Keeled Vessels | E15: Per Linear Foot | F15: =+F12+50 -> $240.00 | G15: 1.00% | H15: 2.00% | I15: 2.00% | J15: 2.00% | K15: 3.00% | L15: 3.00%
A16: Recreational vessels above 48' in length
A17: 1. Flat & V-Hulled Vessels | E17: Per Linear Foot | F17: =+F14+20 -> $235.00 | G17: 1.00% | H17: 2.00% | I17: 2.00% | J17: 2.00% | K17: 3.00% | L17: 3.00%
A18: 2. Keeled Vessels | E18: Per Linear Foot | F18: =+F15+20 -> $260.00 | G18: 1.00% | H18: 2.00% | I18: 2.00% | J18: 2.00% | K18: 3.00% | L18: 3.00%
A19: Land based salvage operations:
A20: Recreational vessels up to 24' in length
A21: 1. Flat & V-Hulled Vessels | E21: Per Linear Foot | F21: =+F8-25 -> $100.00 | G21: 1.00% | H21: 2.00% | I21: 2.00% | J21: 2.00% | K21: 3.00% | L21: 3.00%
A22: 2. Keeled Vessels | E22: Per Linear Foot | F22: =+F9-25 -> $125.00 | G22: 1.00% | H22: 2.00% | I22: 2.00% | J22: 2.00% | K22: 3.00% | L22: 3.00%
A23: Recreational vessels 25' up to 36' in length
A24: 1. Flat & V-Hulled Vessels | E24: Per Linear Foot | F24: $140.00 | G24: 1.00% | H24: 2.00% | I24: 2.00% | J24: 2.00% | K24: 3.00% | L24: 3.00%
A25: 2. Keeled Vessels | E25: Per Linear Foot | F25: $165.00 | G25: 1.00% | H25: 2.00% | I25: 2.00% | J25: 2.00% | K25: 3.00% | L25: 3.00%
A26: Recreational vessels 36' up to 48' in length
A27: 1. Flat & V-Hulled Vessels | E27: Per Linear Foot | F27: $190.00 | G27: 1.00% | H27: 2.00% | I27: 2.00% | J27: 2.00% | K27: 3.00% | L27: 3.00%
A28: 2. Keeled Vessels | E28: Per Linear Foot | F28: $215.00 | G28: 1.00% | H28: 2.00% | I28: 2.00% | J28: 2.00% | K28: 3.00% | L28: 3.00%
A29: Recreational vessels above 48' in length
A30: 1. Flat & V-Hulled Vessels | E30: Per Linear Foot | F30: $210.00 | G30: 1.00% | H30: 2.00% | I30: 2.00% | J30: 2.00% | K30: 3.00% | L30: 3.00%
A31: 2. Keeled Vessels | E31: Per Linear Foot | F31: $235.00 | G31: 1.00% | H31: 2.00% | I31: 2.00% | J31: 2.00% | K31: 3.00% | L31: 3.00%
A33: Derelict vehicle and vessel removal (from land)
A34: Transfer/Tow of typical passenger car | E34: Each | F34: $250.00 | G34: 1.00% | H34: 2.00% | I34: 2.00% | J34: 2.00% | K34: 3.00% | L34: 3.00%
A35: Transfer/Tow and handling of Recreational vessels up to 24' in length
A36: Flat & V-Hulled Vessels | E36: Per Linear Foot | F36: $75.00 | G36: 1.00% | H36: 2.00% | I36: 2.00% | J36: 2.00% | K36: 3.00% | L36: 3.00%
A37: Keeled Vessels | E37: Per Linear Foot | F37: $90.00 | G37: 1.00% | H37: 2.00% | I37: 2.00% | J37: 2.00% | K37: 3.00% | L37: 3.00%
A38: Transfer/Tow and handling of Recreational vessels 25' up to 36' in length
A39: Flat & V-Hulled Vessels | E39: Per Linear Foot | F39: =+F36+25 -> $100.00 | G39: 1.00% | H39: 2.00% | I39: 2.00% | J39: 2.00% | K39: 3.00% | L39: 3.00%
A40: Keeled Vessels | E40: Per Linear Foot | F40: =+F37+25 -> $115.00 | G40: 1.00% | H40: 2.00% | I40: 2.00% | J40: 2.00% | K40: 3.00% | L40: 3.00%
A41: Transfer/Tow and handling of Recreational vessels 36' up to 48' in length
A42: Flat & V-Hulled Vessels | E42: Per Linear Foot | F42: $125.00 | G42: 1.00% | H42: 2.00% | I42: 2.00% | J42: 2.00% | K42: 3.00% | L42: 3.00%
A43: Keeled Vessels | E43: Per Linear Foot | F43: $140.00 | G43: 1.00% | H43: 2.00% | I43: 2.00% | J43: 2.00% | K43: 3.00% | L43: 3.00%
A44: Transfer/Tow and handling of Recreational vessels above 48' in length
A45: Flat & V-Hulled Vessels | E45: Per Linear Foot | F45: $150.00 | G45: 1.00% | H45: 2.00% | I45: 2.00% | J45: 2.00% | K45: 3.00% | L45: 3.00%
A46: Keeled Vessels | E46: Per Linear Foot | F46: $165.00 | G46: 1.00% | H46: 2.00% | I46: 2.00% | J46: 2.00% | K46: 3.00% | L46: 3.00%
A48: Operation of secure aggregation site for vehicles and vessels: | E48: Per Day | F48: $1,950.00 | G48: 1.00% | H48: 2.00% | I48: 2.00% | J48: 2.00% | K48: 3.00% | L48: 3.00%
A49: Storage of Vehicles and Vessels | E49: Per Linear Foot | F49: $3.50 | G49: 1.00% | H49: 2.00% | I49: 2.00% | J49: 2.00% | K49: 3.00% | L49: 3.00%
A50: Remediation of Vehicles and Vessels | E50: Each | F50: $1,250.00 | G50: 1.00% | H50: 2.00% | I50: 2.00% | J50: 2.00% | K50: 3.00% | L50: 3.00%
A51: Disposal fo Vehicles and Vessels | E51: Each | F51: $650.00 | G51: 1.00% | H51: 2.00% | I51: 2.00% | J51: 2.00% | K51: 3.00% | L51: 3.00%
A53: Region 2- States of IL, IA, MN, WI, LA, MS
A54: Sunken Vessel Removal | E54: Unit | F54: Unit Price
A55: Marine Based salvage operations:
A56: Recreational vessels up to 24' in length
A57: 1. Flat & V-Hulled Vessels | E57: Per Linear Foot | F57: $125.00 | G57: 1.00% | H57: 2.00% | I57: 2.00% | J57: 2.00% | K57: 3.00% | L57: 3.00%
A58: 2. Keeled Vessels | E58: Per Linear Foot | F58: $150.00 | G58: 1.00% | H58: 2.00% | I58: 2.00% | J58: 2.00% | K58: 3.00% | L58: 3.00%
A59: Recreational vessels 25' up to 36' in length
A60: 1. Flat & V-Hulled Vessels | E60: Per Linear Foot | F60: =+F57+40 -> $165.00 | G60: 1.00% | H60: 2.00% | I60: 2.00% | J60: 2.00% | K60: 3.00% | L60: 3.00%
A61: 2. Keeled Vessels | E61: Per Linear Foot | F61: =+F58+40 -> $190.00 | G61: 1.00% | H61: 2.00% | I61: 2.00% | J61: 2.00% | K61: 3.00% | L61: 3.00%
A62: Recreational vessels 36' up to 48' in length
A63: 1. Flat & V-Hulled Vessels | E63: Per Linear Foot | F63: =+F60+50 -> $215.00 | G63: 1.00% | H63: 2.00% | I63: 2.00% | J63: 2.00% | K63: 3.00% | L63: 3.00%
A64: 2. Keeled Vessels | E64: Per Linear Foot | F64: =+F61+50 -> $240.00 | G64: 1.00% | H64: 2.00% | I64: 2.00% | J64: 2.00% | K64: 3.00% | L64: 3.00%
A65: Recreational vessels above 48' in length
A66: 1. Flat & V-Hulled Vessels | E66: Per Linear Foot | F66: =+F63+20 -> $235.00 | G66: 1.00% | H66: 2.00% | I66: 2.00% | J66: 2.00% | K66: 3.00% | L66: 3.00%
A67: 2. Keeled Vessels | E67: Per Linear Foot | F67: =+F64+20 -> $260.00 | G67: 1.00% | H67: 2.00% | I67: 2.00% | J67: 2.00% | K67: 3.00% | L67: 3.00%
A68: Land based salvage operations:
A69: Recreational vessels up to 24' in length
A70: 1. Flat & V-Hulled Vessels | E70: Per Linear Foot | F70: =+F57-25 -> $100.00 | G70: 1.00% | H70: 2.00% | I70: 2.00% | J70: 2.00% | K70: 3.00% | L70: 3.00%
A71: 2. Keeled Vessels | E71: Per Linear Foot | F71: =+F58-25 -> $125.00 | G71: 1.00% | H71: 2.00% | I71: 2.00% | J71: 2.00% | K71: 3.00% | L71: 3.00%
A72: Recreational vessels 25' up to 36' in length
A73: 1. Flat & V-Hulled Vessels | E73: Per Linear Foot | F73: $140.00 | G73: 1.00% | H73: 2.00% | I73: 2.00% | J73: 2.00% | K73: 3.00% | L73: 3.00%
A74: 2. Keeled Vessels | E74: Per Linear Foot | F74: $165.00 | G74: 1.00% | H74: 2.00% | I74: 2.00% | J74: 2.00% | K74: 3.00% | L74: 3.00%
A75: Recreational vessels 36' up to 48' in length
A76: 1. Flat & V-Hulled Vessels | E76: Per Linear Foot | F76: $190.00 | G76: 1.00% | H76: 2.00% | I76: 2.00% | J76: 2.00% | K76: 3.00% | L76: 3.00%
A77: 2. Keeled Vessels | E77: Per Linear Foot | F77: $215.00 | G77: 1.00% | H77: 2.00% | I77: 2.00% | J77: 2.00% | K77: 3.00% | L77: 3.00%
A78: Recreational vessels above 48' in length
A79: 1. Flat & V-Hulled Vessels | E79: Per Linear Foot | F79: $210.00 | G79: 1.00% | H79: 2.00% | I79: 2.00% | J79: 2.00% | K79: 3.00% | L79: 3.00%
A80: 2. Keeled Vessels | E80: Per Linear Foot | F80: $235.00 | G80: 1.00% | H80: 2.00% | I80: 2.00% | J80: 2.00% | K80: 3.00% | L80: 3.00%
A82: Derelict vehicle and vessel removal (from land)
A83: Transfer/Tow of typical passenger car | E83: Each | F83: $250.00 | G83: 1.00% | H83: 2.00% | I83: 2.00% | J83: 2.00% | K83: 3.00% | L83: 3.00%
A84: Transfer/Tow and handling of Recreational vessels up to 24' in length
A85: Flat & V-Hulled Vessels | E85: Per Linear Foot | F85: $75.00 | G85: 1.00% | H85: 2.00% | I85: 2.00% | J85: 2.00% | K85: 3.00% | L85: 3.00%
A86: Keeled Vessels | E86: Per Linear Foot | F86: $90.00 | G86: 1.00% | H86: 2.00% | I86: 2.00% | J86: 2.00% | K86: 3.00% | L86: 3.00%
A87: Transfer/Tow and handling of Recreational vessels 25' up to 36' in length
A88: Flat & V-Hulled Vessels | E88: Per Linear Foot | F88: =+F85+25 -> $100.00 | G88: 1.00% | H88: 2.00% | I88: 2.00% | J88: 2.00% | K88: 3.00% | L88: 3.00%
A89: Keeled Vessels | E89: Per Linear Foot | F89: =+F86+25 -> $115.00 | G89: 1.00% | H89: 2.00% | I89: 2.00% | J89: 2.00% | K89: 3.00% | L89: 3.00%
A90: Transfer/Tow and handling of Recreational vessels 36' up to 48' in length
A91: Flat & V-Hulled Vessels | E91: Per Linear Foot | F91: $125.00 | G91: 1.00% | H91: 2.00% | I91: 2.00% | J91: 2.00% | K91: 3.00% | L91: 3.00%
A92: Keeled Vessels | E92: Per Linear Foot | F92: $140.00 | G92: 1.00% | H92: 2.00% | I92: 2.00% | J92: 2.00% | K92: 3.00% | L92: 3.00%
A93: Transfer/Tow and handling of Recreational vessels above 48' in length
A94: Flat & V-Hulled Vessels | E94: Per Linear Foot | F94: $150.00 | G94: 1.00% | H94: 2.00% | I94: 2.00% | J94: 2.00% | K94: 3.00% | L94: 3.00%
A95: Keeled Vessels | E95: Per Linear Foot | F95: $165.00 | G95: 1.00% | H95: 2.00% | I95: 2.00% | J95: 2.00% | K95: 3.00% | L95: 3.00%
A97: Operation of secure aggregation site for vehicles and vessels: | E97: Per Day | F97: $1,950.00 | G97: 1.00% | H97: 2.00% | I97: 2.00% | J97: 2.00% | K97: 3.00% | L97: 3.00%
A98: Storage of Vehicles and Vessels | E98: Per Linear Foot | F98: $3.50 | G98: 1.00% | H98: 2.00% | I98: 2.00% | J98: 2.00% | K98: 3.00% | L98: 3.00%
A99: Remediation of Vehicles and Vessels | E99: Each | F99: $1,250.00 | G99: 1.00% | H99: 2.00% | I99: 2.00% | J99: 2.00% | K99: 3.00% | L99: 3.00%
A100: Disposal fo Vehicles and Vessels | E100: Each | F100: $650.00 | G100: 1.00% | H100: 2.00% | I100: 2.00% | J100: 2.00% | K100: 3.00% | L100: 3.00%
A102: Region 3- States of MI, IN, TN, KY, OH, WV
A103: Sunken Vessel Removal | E103: Unit | F103: Unit Price
A104: Marine Based salvage operations:
A105: Recreational vessels up to 24' in length
A106: 1. Flat & V-Hulled Vessels | E106: Per Linear Foot | F106: $125.00 | G106: 1.00% | H106: 2.00% | I106: 2.00% | J106: 2.00% | K106: 3.00% | L106: 3.00%
A107: 2. Keeled Vessels | E107: Per Linear Foot | F107: $150.00 | G107: 1.00% | H107: 2.00% | I107: 2.00% | J107: 2.00% | K107: 3.00% | L107: 3.00%
A108: Recreational vessels 25' up to 36' in length
A109: 1. Flat & V-Hulled Vessels | E109: Per Linear Foot | F109: =+F106+40 -> $165.00 | G109: 1.00% | H109: 2.00% | I109: 2.00% | J109: 2.00% | K109: 3.00% | L109: 3.00%
A110: 2. Keeled Vessels | E110: Per Linear Foot | F110: =+F107+40 -> $190.00 | G110: 1.00% | H110: 2.00% | I110: 2.00% | J110: 2.00% | K110: 3.00% | L110: 3.00%
A111: Recreational vessels 36' up to 48' in length
A112: 1. Flat & V-Hulled Vessels | E112: Per Linear Foot | F112: =+F109+50 -> $215.00 | G112: 1.00% | H112: 2.00% | I112: 2.00% | J112: 2.00% | K112: 3.00% | L112: 3.00%
A113: 2. Keeled Vessels | E113: Per Linear Foot | F113: =+F110+50 -> $240.00 | G113: 1.00% | H113: 2.00% | I113: 2.00% | J113: 2.00% | K113: 3.00% | L113: 3.00%
A114: Recreational vessels above 48' in length
A115: 1. Flat & V-Hulled Vessels | E115: Per Linear Foot | F115: =+F112+20 -> $235.00 | G115: 1.00% | H115: 2.00% | I115: 2.00% | J115: 2.00% | K115: 3.00% | L115: 3.00%
A116: 2. Keeled Vessels | E116: Per Linear Foot | F116: =+F113+20 -> $260.00 | G116: 1.00% | H116: 2.00% | I116: 2.00% | J116: 2.00% | K116: 3.00% | L116: 3.00%
A117: Land based salvage operations:
A118: Recreational vessels up to 24' in length
A119: 1. Flat & V-Hulled Vessels | E119: Per Linear Foot | F119: =+F106-25 -> $100.00 | G119: 1.00% | H119: 2.00% | I119: 2.00% | J119: 2.00% | K119: 3.00% | L119: 3.00%
A120: 2. Keeled Vessels | E120: Per Linear Foot | F120: =+F107-25 -> $125.00 | G120: 1.00% | H120: 2.00% | I120: 2.00% | J120: 2.00% | K120: 3.00% | L120: 3.00%
A121: Recreational vessels 25' up to 36' in length
A122: 1. Flat & V-Hulled Vessels | E122: Per Linear Foot | F122: $140.00 | G122: 1.00% | H122: 2.00% | I122: 2.00% | J122: 2.00% | K122: 3.00% | L122: 3.00%
A123: 2. Keeled Vessels | E123: Per Linear Foot | F123: $165.00 | G123: 1.00% | H123: 2.00% | I123: 2.00% | J123: 2.00% | K123: 3.00% | L123: 3.00%
A124: Recreational vessels 36' up to 48' in length
A125: 1. Flat & V-Hulled Vessels | E125: Per Linear Foot | F125: $190.00 | G125: 1.00% | H125: 2.00% | I125: 2.00% | J125: 2.00% | K125: 3.00% | L125: 3.00%
A126: 2. Keeled Vessels | E126: Per Linear Foot | F126: $215.00 | G126: 1.00% | H126: 2.00% | I126: 2.00% | J126: 2.00% | K126: 3.00% | L126: 3.00%
A127: Recreational vessels above 48' in length
A128: 1. Flat & V-Hulled Vessels | E128: Per Linear Foot | F128: $210.00 | G128: 1.00% | H128: 2.00% | I128: 2.00% | J128: 2.00% | K128: 3.00% | L128: 3.00%
A129: 2. Keeled Vessels | E129: Per Linear Foot | F129: $235.00 | G129: 1.00% | H129: 2.00% | I129: 2.00% | J129: 2.00% | K129: 3.00% | L129: 3.00%
A131: Derelict vehicle and vessel removal (from land)
A132: Transfer/Tow of typical passenger car | E132: Each | F132: $250.00 | G132: 1.00% | H132: 2.00% | I132: 2.00% | J132: 2.00% | K132: 3.00% | L132: 3.00%
A133: Transfer/Tow and handling of Recreational vessels up to 24' in length
A134: Flat & V-Hulled Vessels | E134: Per Linear Foot | F134: $75.00 | G134: 1.00% | H134: 2.00% | I134: 2.00% | J134: 2.00% | K134: 3.00% | L134: 3.00%
A135: Keeled Vessels | E135: Per Linear Foot | F135: $90.00 | G135: 1.00% | H135: 2.00% | I135: 2.00% | J135: 2.00% | K135: 3.00% | L135: 3.00%
A136: Transfer/Tow and handling of Recreational vessels 25' up to 36' in length
A137: Flat & V-Hulled Vessels | E137: Per Linear Foot | F137: =+F134+25 -> $100.00 | G137: 1.00% | H137: 2.00% | I137: 2.00% | J137: 2.00% | K137: 3.00% | L137: 3.00%
A138: Keeled Vessels | E138: Per Linear Foot | F138: =+F135+25 -> $115.00 | G138: 1.00% | H138: 2.00% | I138: 2.00% | J138: 2.00% | K138: 3.00% | L138: 3.00%
A139: Transfer/Tow and handling of Recreational vessels 36' up to 48' in length
A140: Flat & V-Hulled Vessels | E140: Per Linear Foot | F140: $125.00 | G140: 1.00% | H140: 2.00% | I140: 2.00% | J140: 2.00% | K140: 3.00% | L140: 3.00%
A141: Keeled Vessels | E141: Per Linear Foot | F141: $140.00 | G141: 1.00% | H141: 2.00% | I141: 2.00% | J141: 2.00% | K141: 3.00% | L141: 3.00%
A142: Transfer/Tow and handling of Recreational vessels above 48' in length
A143: Flat & V-Hulled Vessels | E143: Per Linear Foot | F143: $150.00 | G143: 1.00% | H143: 2.00% | I143: 2.00% | J143: 2.00% | K143: 3.00% | L143: 3.00%
A144: Keeled Vessels | E144: Per Linear Foot | F144: $165.00 | G144: 1.00% | H144: 2.00% | I144: 2.00% | J144: 2.00% | K144: 3.00% | L144: 3.00%
A146: Operation of secure aggregation site for vehicles and vessels: | E146: Per Day | F146: $1,950.00 | G146: 1.00% | H146: 2.00% | I146: 2.00% | J146: 2.00% | K146: 3.00% | L146: 3.00%
A147: Storage of Vehicles and Vessels | E147: Per Linear Foot | F147: $3.50 | G147: 1.00% | H147: 2.00% | I147: 2.00% | J147: 2.00% | K147: 3.00% | L147: 3.00%
A148: Remediation of Vehicles and Vessels | E148: Each | F148: $1,250.00 | G148: 1.00% | H148: 2.00% | I148: 2.00% | J148: 2.00% | K148: 3.00% | L148: 3.00%
A149: Disposal fo Vehicles and Vessels | E149: Each | F149: $650.00 | G149: 1.00% | H149: 2.00% | I149: 2.00% | J149: 2.00% | K149: 3.00% | L149: 3.00%
A151: Region 4- States of ME, VT, NH, MA, CT, NY, DE, MD, DC, PA, VA, RI
A152: Sunken Vessel Removal | E152: Unit | F152: Unit Price
A153: Marine Based salvage operations:
A154: Recreational vessels up to 24' in length
A155: 1. Flat & V-Hulled Vessels | E155: Per Linear Foot | F155: $155.00 | G155: 1.00% | H155: 2.00% | I155: 2.00% | J155: 2.00% | K155: 3.00% | L155: 3.00%
A156: 2. Keeled Vessels | E156: Per Linear Foot | F156: $180.00 | G156: 1.00% | H156: 2.00% | I156: 2.00% | J156: 2.00% | K156: 3.00% | L156: 3.00%
A157: Recreational vessels 25' up to 36' in length
A158: 1. Flat & V-Hulled Vessels | E158: Per Linear Foot | F158: $195.00 | G158: 1.00% | H158: 2.00% | I158: 2.00% | J158: 2.00% | K158: 3.00% | L158: 3.00%
A159: 2. Keeled Vessels | E159: Per Linear Foot | F159: $220.00 | G159: 1.00% | H159: 2.00% | I159: 2.00% | J159: 2.00% | K159: 3.00% | L159: 3.00%
A160: Recreational vessels 36' up to 48' in length
A161: 1. Flat & V-Hulled Vessels | E161: Per Linear Foot | F161: $245.00 | G161: 1.00% | H161: 2.00% | I161: 2.00% | J161: 2.00% | K161: 3.00% | L161: 3.00%
A162: 2. Keeled Vessels | E162: Per Linear Foot | F162: $270.00 | G162: 1.00% | H162: 2.00% | I162: 2.00% | J162: 2.00% | K162: 3.00% | L162: 3.00%
A163: Recreational vessels above 48' in length
A164: 1. Flat & V-Hulled Vessels | E164: Per Linear Foot | F164: $265.00 | G164: 1.00% | H164: 2.00% | I164: 2.00% | J164: 2.00% | K164: 3.00% | L164: 3.00%
A165: 2. Keeled Vessels | E165: Per Linear Foot | F165: $290.00 | G165: 1.00% | H165: 2.00% | I165: 2.00% | J165: 2.00% | K165: 3.00% | L165: 3.00%
A166: Land based salvage operations:
A167: Recreational vessels up to 24' in length
A168: 1. Flat & V-Hulled Vessels | E168: Per Linear Foot | F168: $130.00 | G168: 1.00% | H168: 2.00% | I168: 2.00% | J168: 2.00% | K168: 3.00% | L168: 3.00%
A169: 2. Keeled Vessels | E169: Per Linear Foot | F169: $155.00 | G169: 1.00% | H169: 2.00% | I169: 2.00% | J169: 2.00% | K169: 3.00% | L169: 3.00%
A170: Recreational vessels 25' up to 36' in length
A171: 1. Flat & V-Hulled Vessels | E171: Per Linear Foot | F171: $170.00 | G171: 1.00% | H171: 2.00% | I171: 2.00% | J171: 2.00% | K171: 3.00% | L171: 3.00%
A172: 2. Keeled Vessels | E172: Per Linear Foot | F172: $195.00 | G172: 1.00% | H172: 2.00% | I172: 2.00% | J172: 2.00% | K172: 3.00% | L172: 3.00%
A173: Recreational vessels 36' up to 48' in length
A174: 1. Flat & V-Hulled Vessels | E174: Per Linear Foot | F174: $220.00 | G174: 1.00% | H174: 2.00% | I174: 2.00% | J174: 2.00% | K174: 3.00% | L174: 3.00%
A175: 2. Keeled Vessels | E175: Per Linear Foot | F175: $245.00 | G175: 1.00% | H175: 2.00% | I175: 2.00% | J175: 2.00% | K175: 3.00% | L175: 3.00%
A176: Recreational vessels above 48' in length
A177: 1. Flat & V-Hulled Vessels | E177: Per Linear Foot | F177: $240.00 | G177: 1.00% | H177: 2.00% | I177: 2.00% | J177: 2.00% | K177: 3.00% | L177: 3.00%
A178: 2. Keeled Vessels | E178: Per Linear Foot | F178: $265.00 | G178: 1.00% | H178: 2.00% | I178: 2.00% | J178: 2.00% | K178: 3.00% | L178: 3.00%
A180: Derelict vehicle and vessel removal (from land)
A181: Transfer/Tow of typical passenger car | E181: Each | F181: $350.00 | G181: 1.00% | H181: 2.00% | I181: 2.00% | J181: 2.00% | K181: 3.00% | L181: 3.00%
A182: Transfer/Tow and handling of Recreational vessels up to 24' in length
A183: Flat & V-Hulled Vessels | E183: Per Linear Foot | F183: $105.00 | G183: 1.00% | H183: 2.00% | I183: 2.00% | J183: 2.00% | K183: 3.00% | L183: 3.00%
A184: Keeled Vessels | E184: Per Linear Foot | F184: $120.00 | G184: 1.00% | H184: 2.00% | I184: 2.00% | J184: 2.00% | K184: 3.00% | L184: 3.00%
A185: Transfer/Tow and handling of Recreational vessels 25' up to 36' in length
A186: Flat & V-Hulled Vessels | E186: Per Linear Foot | F186: $130.00 | G186: 1.00% | H186: 2.00% | I186: 2.00% | J186: 2.00% | K186: 3.00% | L186: 3.00%
A187: Keeled Vessels | E187: Per Linear Foot | F187: $145.00 | G187: 1.00% | H187: 2.00% | I187: 2.00% | J187: 2.00% | K187: 3.00% | L187: 3.00%
A188: Transfer/Tow and handling of Recreational vessels 36' up to 48' in length
A189: Flat & V-Hulled Vessels | E189: Per Linear Foot | F189: $155.00 | G189: 1.00% | H189: 2.00% | I189: 2.00% | J189: 2.00% | K189: 3.00% | L189: 3.00%
A190: Keeled Vessels | E190: Per Linear Foot | F190: $170.00 | G190: 1.00% | H190: 2.00% | I190: 2.00% | J190: 2.00% | K190: 3.00% | L190: 3.00%
A191: Transfer/Tow and handling of Recreational vessels above 48' in length
A192: Flat & V-Hulled Vessels | E192: Per Linear Foot | F192: $180.00 | G192: 1.00% | H192: 2.00% | I192: 2.00% | J192: 2.00% | K192: 3.00% | L192: 3.00%
A193: Keeled Vessels | E193: Per Linear Foot | F193: $195.00 | G193: 1.00% | H193: 2.00% | I193: 2.00% | J193: 2.00% | K193: 3.00% | L193: 3.00%
A195: Operation of secure aggregation site for vehicles and vessels: | E195: Per Day | F195: $2,650.00 | G195: 1.00% | H195: 2.00% | I195: 2.00% | J195: 2.00% | K195: 3.00% | L195: 3.00%
A196: Storage of Vehicles and Vessels | E196: Per Linear Foot | F196: $5.50 | G196: 1.00% | H196: 2.00% | I196: 2.00% | J196: 2.00% | K196: 3.00% | L196: 3.00%
A197: Remediation of Vehicles and Vessels | E197: Each | F197: $1,950.00 | G197: 1.00% | H197: 2.00% | I197: 2.00% | J197: 2.00% | K197: 3.00% | L197: 3.00%
A198: Disposal fo Vehicles and Vessels | E198: Each | F198: $950.00 | G198: 1.00% | H198: 2.00% | I198: 2.00% | J198: 2.00% | K198: 3.00% | L198: 3.00%
A200: Region 5 States of CA, NV, NM, AZ, UT
A201: Sunken Vessel Removal | E201: Unit | F201: Unit Price
A202: Marine Based salvage operations:
A203: Recreational vessels up to 24' in length
A204: 1. Flat & V-Hulled Vessels | E204: Per Linear Foot | F204: =+F155+25 -> $180.00 | G204: 1.00% | H204: 2.00% | I204: 2.00% | J204: 2.00% | K204: 3.00% | L204: 3.00%
A205: 2. Keeled Vessels | E205: Per Linear Foot | F205: =+F156+25 -> $205.00 | G205: 1.00% | H205: 2.00% | I205: 2.00% | J205: 2.00% | K205: 3.00% | L205: 3.00%
A206: Recreational vessels 25' up to 36' in length
A207: 1. Flat & V-Hulled Vessels | E207: Per Linear Foot | F207: $220.00 | G207: 1.00% | H207: 2.00% | I207: 2.00% | J207: 2.00% | K207: 3.00% | L207: 3.00%
A208: 2. Keeled Vessels | E208: Per Linear Foot | F208: $245.00 | G208: 1.00% | H208: 2.00% | I208: 2.00% | J208: 2.00% | K208: 3.00% | L208: 3.00%
A209: Recreational vessels 36' up to 48' in length
A210: 1. Flat & V-Hulled Vessels | E210: Per Linear Foot | F210: $270.00 | G210: 1.00% | H210: 2.00% | I210: 2.00% | J210: 2.00% | K210: 3.00% | L210: 3.00%
A211: 2. Keeled Vessels | E211: Per Linear Foot | F211: $295.00 | G211: 1.00% | H211: 2.00% | I211: 2.00% | J211: 2.00% | K211: 3.00% | L211: 3.00%
A212: Recreational vessels above 48' in length
A213: 1. Flat & V-Hulled Vessels | E213: Per Linear Foot | F213: $290.00 | G213: 1.00% | H213: 2.00% | I213: 2.00% | J213: 2.00% | K213: 3.00% | L213: 3.00%
... 170 more rows

Sheet Catagory XIV
A1: List Services Provided (Labor category, and Skill Class) (Items in Red are meant as examples. Add more lines as needed or attach a .pdf, must mimic this format) | B1: LABOR Emergent Not To Exceed Hourly Rate | C1: LABOR Non- Emergent Not To Exceed Hourly Rate | D1: Materials and Supplies Description | E1: Unit | F1: Cost | G1: % Rate Increase 2nd year | H1: % Rate Increase 3rd year | I1: % Rate Increase 4th year | J1: % Rate Increase 5th year | K1: % Rate Increase 6th year | L1: % Rate Increase 7th year
A2: Category XIV- Petruscent Debris
A4: Region 1- States of MT, WY, ID, OR, WA, MO, KS, CO, NE, SD, ND
A5: Removal and Dispoisal of Petruscent Debris
A6: Hauling Distance 0-15 miles | E6: Pound | F6: $12.50 | G6: 1.00% | H6: 2.00% | I6: 2.00% | J6: 2.00% | K6: 3.00% | L6: 3.00%
A7: Hauling Distance 16-30 miles | E7: Pound | F7: $13.50 | G7: 1.00% | H7: 2.00% | I7: 2.00% | J7: 2.00% | K7: 3.00% | L7: 3.00%
A8: Hauling Distance 31-60 miles | E8: Pound | F8: $16.50 | G8: 1.00% | H8: 2.00% | I8: 2.00% | J8: 2.00% | K8: 3.00% | L8: 3.00%
A10: Region 2- States of IL, IA, MN, WI, LA, MS
A11: Removal and Dispoisal of Petruscent Debris
A12: Hauling Distance 0-15 miles | E12: Pound | F12: =+F6 -> $12.50 | G12: 1.00% | H12: 2.00% | I12: 2.00% | J12: 2.00% | K12: 3.00% | L12: 3.00%
A13: Hauling Distance 16-30 miles | E13: Pound | F13: =+F7 -> $13.50 | G13: 1.00% | H13: 2.00% | I13: 2.00% | J13: 2.00% | K13: 3.00% | L13: 3.00%
A14: Hauling Distance 31-60 miles | E14: Pound | F14: $16.50 | G14: 1.00% | H14: 2.00% | I14: 2.00% | J14: 2.00% | K14: 3.00% | L14: 3.00%
A16: Region 3- States of MI, IN, TN, KY, OH, WV
A17: Removal and Dispoisal of Petruscent Debris
A18: Hauling Distance 0-15 miles | E18: Pound | F18: =+F12 -> $12.50 | G18: 1.00% | H18: 2.00% | I18: 2.00% | J18: 2.00% | K18: 3.00% | L18: 3.00%
A19: Hauling Distance 16-30 miles | E19: Pound | F19: =+F13 -> $13.50 | G19: 1.00% | H19: 2.00% | I19: 2.00% | J19: 2.00% | K19: 3.00% | L19: 3.00%
A20: Hauling Distance 31-60 miles | E20: Pound | F20: $16.50 | G20: 1.00% | H20: 2.00% | I20: 2.00% | J20: 2.00% | K20: 3.00% | L20: 3.00%
A22: Region 4- States of ME, VT, NH, MA, CT, NY, DE, MD, DC, PA, VA, RI
A23: Removal and Dispoisal of Petruscent Debris
A24: Hauling Distance 0-15 miles | E24: Pound | F24: =+F18+3 -> $15.50 | G24: 1.00% | H24: 2.00% | I24: 2.00% | J24: 2.00% | K24: 3.00% | L24: 3.00%
A25: Hauling Distance 16-30 miles | E25: Pound | F25: =+F19+3 -> $16.50 | G25: 1.00% | H25: 2.00% | I25: 2.00% | J25: 2.00% | K25: 3.00% | L25: 3.00%
A26: Hauling Distance 31-60 miles | E26: Pound | F26: $19.50 | G26: 1.00% | H26: 2.00% | I26: 2.00% | J26: 2.00% | K26: 3.00% | L26: 3.00%
A28: Region 5 States of CA, NV, NM, AZ, UT
A29: Removal and Dispoisal of Petruscent Debris
A30: Hauling Distance 0-15 miles | E30: Pound | F30: =+F24+3 -> $18.50 | G30: 1.00% | H30: 2.00% | I30: 2.00% | J30: 2.00% | K30: 3.00% | L30: 3.00%
A31: Hauling Distance 16-30 miles | E31: Pound | F31: =+F25+3 -> $19.50 | G31: 1.00% | H31: 2.00% | I31: 2.00% | J31: 2.00% | K31: 3.00% | L31: 3.00%
A32: Hauling Distance 31-60 miles | E32: Pound | F32: $22.50 | G32: 1.00% | H32: 2.00% | I32: 2.00% | J32: 2.00% | K32: 3.00% | L32: 3.00%
A34: Region 6 - States of TX, AR, OK
A35: Removal and Dispoisal of Petruscent Debris
A36: Hauling Distance 0-15 miles | E36: Pound | F36: =+F18 -> $12.50 | G36: 1.00% | H36: 2.00% | I36: 2.00% | J36: 2.00% | K36: 3.00% | L36: 3.00%
A37: Hauling Distance 16-30 miles | E37: Pound | F37: =+F19 -> $13.50 | G37: 1.00% | H37: 2.00% | I37: 2.00% | J37: 2.00% | K37: 3.00% | L37: 3.00%
A38: Hauling Distance 31-60 miles | E38: Pound | F38: $16.50 | G38: 1.00% | H38: 2.00% | I38: 2.00% | J38: 2.00% | K38: 3.00% | L38: 3.00%
A40: Region 7- States of NC, SC, GA, AL, FL
A41: Removal and Dispoisal of Petruscent Debris
A42: Hauling Distance 0-15 miles | E42: Pound | F42: =+F36 -> $12.50 | G42: 1.00% | H42: 2.00% | I42: 2.00% | J42: 2.00% | K42: 3.00% | L42: 3.00%
A43: Hauling Distance 16-30 miles | E43: Pound | F43: =+F37 -> $13.50 | G43: 1.00% | H43: 2.00% | I43: 2.00% | J43: 2.00% | K43: 3.00% | L43: 3.00%
A44: Hauling Distance 31-60 miles | E44: Pound | F44: $16.50 | G44: 1.00% | H44: 2.00% | I44: 2.00% | J44: 2.00% | K44: 3.00% | L44: 3.00%
A46: Region 8- States of HI, AK
A47: Removal and Dispoisal of Petruscent Debris
A48: Hauling Distance 0-15 miles | E48: Pound | F48: =+F30 -> $18.50 | G48: 1.00% | H48: 2.00% | I48: 2.00% | J48: 2.00% | K48: 3.00% | L48: 3.00%
A49: Hauling Distance 16-30 miles | E49: Pound | F49: =+F31 -> $19.50 | G49: 1.00% | H49: 2.00% | I49: 2.00% | J49: 2.00% | K49: 3.00% | L49: 3.00%
A50: Hauling Distance 31-60 miles | E50: Pound | F50: $22.50 | G50: 1.00% | H50: 2.00% | I50: 2.00% | J50: 2.00% | K50: 3.00% | L50: 3.00%
A53: NOTE: Tipping/Disposal fees to be billed as a direct pass through cost with no mark up

Sheet Category X
A1: List Services Provided (Labor category, and Skill Class) (Items in Red are meant as examples. Add more lines as needed or attach a .pdf, must mimic this format) | B1: LABOR Emergent Not To Exceed Hourly Rate | C1: LABOR Non- Emergent Not To Exceed Hourly Rate | D1: Materials and Supplies Description | E1: Unit | F1: Cost | G1: % Rate Increase 2nd year | H1: % Rate Increase 3rd year | I1: % Rate Increase 4th year | J1: % Rate Increase 5th year | K1: % Rate Increase 6th year | L1: % Rate Increase 7th year
A2: Category X- Infectious Waste Removal and Disposal
A4: Region 1- States of MT, WY, ID, OR, WA, MO, KS, CO, NE, SD, ND
A5: Infectious Waste Removal from Public Roads, Streets and ROWS And Hauling to Final Disposal
A6: Liquids
A7: Hauling Distance 0-15 miles | E7: Gallon | F7: $29.95 | G7: 1.00% | H7: 2.00% | I7: 2.00% | J7: 2.00% | K7: 3.00% | L7: 3.00%
A8: Hauling Distance 16-30 miles | E8: Gallon | F8: $30.95 | G8: 1.00% | H8: 2.00% | I8: 2.00% | J8: 2.00% | K8: 3.00% | L8: 3.00%
A9: Hauling Distance 31-60 miles | E9: Gallon | F9: $33.95 | G9: 1.00% | H9: 2.00% | I9: 2.00% | J9: 2.00% | K9: 3.00% | L9: 3.00%
A11: Infectious Waste Removal from Public Roads, Streets and ROWS And Hauling to Final Disposal
A12: Solids
A13: Hauling Distance 0-15 miles | E13: Pound | F13: $26.95 | G13: 1.00% | H13: 2.00% | I13: 2.00% | J13: 2.00% | K13: 3.00% | L13: 3.00%
A14: Hauling Distance 16-30 miles | E14: Pound | F14: $27.95 | G14: 1.00% | H14: 2.00% | I14: 2.00% | J14: 2.00% | K14: 3.00% | L14: 3.00%
A15: Hauling Distance 31-60 miles | E15: Pound | F15: $30.95 | G15: 1.00% | H15: 2.00% | I15: 2.00% | J15: 2.00% | K15: 3.00% | L15: 3.00%
A17: Region 2- States of IL, IA, MN, WI, LA, MS
A18: Infectious Waste Removal from Public Roads, Streets and ROWS And Hauling to Final Disposal
A19: Liquids
A20: Hauling Distance 0-15 miles | E20: Gallon | F20: =+F7 -> $29.95 | G20: 1.00% | H20: 2.00% | I20: 2.00% | J20: 2.00% | K20: 3.00% | L20: 3.00%
A21: Hauling Distance 16-30 miles | E21: Gallon | F21: =+F8 -> $30.95 | G21: 1.00% | H21: 2.00% | I21: 2.00% | J21: 2.00% | K21: 3.00% | L21: 3.00%
A22: Hauling Distance 31-60 miles | E22: Gallon | F22: =+F9 -> $33.95 | G22: 1.00% | H22: 2.00% | I22: 2.00% | J22: 2.00% | K22: 3.00% | L22: 3.00%
A24: Infectious Waste Removal from Public Roads, Streets and ROWS And Hauling to Final Disposal
A25: Solids
A26: Hauling Distance 0-15 miles | E26: Pound | F26: =+F13 -> $26.95 | G26: 1.00% | H26: 2.00% | I26: 2.00% | J26: 2.00% | K26: 3.00% | L26: 3.00%
A27: Hauling Distance 16-30 miles | E27: Pound | F27: =+F14 -> $27.95 | G27: 1.00% | H27: 2.00% | I27: 2.00% | J27: 2.00% | K27: 3.00% | L27: 3.00%
A28: Hauling Distance 31-60 miles | E28: Pound | F28: =+F15 -> $30.95 | G28: 1.00% | H28: 2.00% | I28: 2.00% | J28: 2.00% | K28: 3.00% | L28: 3.00%
A30: Region 3- States of MI, IN, TN, KY, OH, WV
A31: Infectious Waste Removal from Public Roads, Streets and ROWS And Hauling to Final Disposal
A32: Liquids
A33: Hauling Distance 0-15 miles | E33: Gallon | F33: =+F20 -> $29.95 | G33: 1.00% | H33: 2.00% | I33: 2.00% | J33: 2.00% | K33: 3.00% | L33: 3.00%
A34: Hauling Distance 16-30 miles | E34: Gallon | F34: =+F21 -> $30.95 | G34: 1.00% | H34: 2.00% | I34: 2.00% | J34: 2.00% | K34: 3.00% | L34: 3.00%
A35: Hauling Distance 31-60 miles | E35: Gallon | F35: $33.95 | G35: 1.00% | H35: 2.00% | I35: 2.00% | J35: 2.00% | K35: 3.00% | L35: 3.00%
A37: Infectious Waste Removal from Public Roads, Streets and ROWS And Hauling to Final Disposal
A38: Solids
A39: Hauling Distance 0-15 miles | E39: Pound | F39: $26.95 | G39: 1.00% | H39: 2.00% | I39: 2.00% | J39: 2.00% | K39: 3.00% | L39: 3.00%
A40: Hauling Distance 16-30 miles | E40: Pound | F40: $27.95 | G40: 1.00% | H40: 2.00% | I40: 2.00% | J40: 2.00% | K40: 3.00% | L40: 3.00%
A41: Hauling Distance 31-60 miles | E41: Pound | F41: $30.95 | G41: 1.00% | H41: 2.00% | I41: 2.00% | J41: 2.00% | K41: 3.00% | L41: 3.00%
A43: Region 4- States of ME, VT, NH, MA, CT, NY, DE, MD, DC, PA, VA, RI
A44: Infectious Waste Removal from Public Roads, Streets and ROWS And Hauling to Final Disposal
A45: Liquids
A46: Hauling Distance 0-15 miles | E46: Gallon | F46: =+F33+5 -> $34.95 | G46: 1.00% | H46: 2.00% | I46: 2.00% | J46: 2.00% | K46: 3.00% | L46: 3.00%
A47: Hauling Distance 16-30 miles | E47: Gallon | F47: =+F34+5 -> $35.95 | G47: 1.00% | H47: 2.00% | I47: 2.00% | J47: 2.00% | K47: 3.00% | L47: 3.00%
A48: Hauling Distance 31-60 miles | E48: Gallon | F48: $38.95 | G48: 1.00% | H48: 2.00% | I48: 2.00% | J48: 2.00% | K48: 3.00% | L48: 3.00%
A50: Infectious Waste Removal from Public Roads, Streets and ROWS And Hauling to Final Disposal
A51: Solids
A52: Hauling Distance 0-15 miles | E52: Pound | F52: $31.95 | G52: 1.00% | H52: 2.00% | I52: 2.00% | J52: 2.00% | K52: 3.00% | L52: 3.00%
A53: Hauling Distance 16-30 miles | E53: Pound | F53: $32.95 | G53: 1.00% | H53: 2.00% | I53: 2.00% | J53: 2.00% | K53: 3.00% | L53: 3.00%
A54: Hauling Distance 31-60 miles | E54: Pound | F54: $35.95 | G54: 1.00% | H54: 2.00% | I54: 2.00% | J54: 2.00% | K54: 3.00% | L54: 3.00%
A56: Region 5 States of CA, NV, NM, AZ, UT
A57: Infectious Waste Removal from Public Roads, Streets and ROWS And Hauling to Final Disposal
A58: Liquids
A59: Hauling Distance 0-15 miles | E59: Gallon | F59: =+F46+3 -> $37.95 | G59: 1.00% | H59: 2.00% | I59: 2.00% | J59: 2.00% | K59: 3.00% | L59: 3.00%
A60: Hauling Distance 16-30 miles | E60: Gallon | F60: =+F47+3 -> $38.95 | G60: 1.00% | H60: 2.00% | I60: 2.00% | J60: 2.00% | K60: 3.00% | L60: 3.00%
A61: Hauling Distance 31-60 miles | E61: Gallon | F61: $41.95 | G61: 1.00% | H61: 2.00% | I61: 2.00% | J61: 2.00% | K61: 3.00% | L61: 3.00%
A63: Infectious Waste Removal from Public Roads, Streets and ROWS And Hauling to Final Disposal
A64: Solids
A65: Hauling Distance 0-15 miles | E65: Pound | F65: $34.95 | G65: 1.00% | H65: 2.00% | I65: 2.00% | J65: 2.00% | K65: 3.00% | L65: 3.00%
A66: Hauling Distance 16-30 miles | E66: Pound | F66: $35.95 | G66: 1.00% | H66: 2.00% | I66: 2.00% | J66: 2.00% | K66: 3.00% | L66: 3.00%
A67: Hauling Distance 31-60 miles | E67: Pound | F67: $38.95 | G67: 1.00% | H67: 2.00% | I67: 2.00% | J67: 2.00% | K67: 3.00% | L67: 3.00%
A69: Region 6 - States of TX, AR, OK
A70: Infectious Waste Removal from Public Roads, Streets and ROWS And Hauling to Final Disposal
A71: Liquids
A72: Hauling Distance 0-15 miles | E72: Gallon | F72: =+F33 -> $29.95 | G72: 1.00% | H72: 2.00% | I72: 2.00% | J72: 2.00% | K72: 3.00% | L72: 3.00%
A73: Hauling Distance 16-30 miles | E73: Gallon | F73: =+F34 -> $30.95 | G73: 1.00% | H73: 2.00% | I73: 2.00% | J73: 2.00% | K73: 3.00% | L73: 3.00%
A74: Hauling Distance 31-60 miles | E74: Gallon | F74: $33.95 | G74: 1.00% | H74: 2.00% | I74: 2.00% | J74: 2.00% | K74: 3.00% | L74: 3.00%
A76: Infectious Waste Removal from Public Roads, Streets and ROWS And Hauling to Final Disposal
A77: Solids
A78: Hauling Distance 0-15 miles | E78: Pound | F78: $26.95 | G78: 1.00% | H78: 2.00% | I78: 2.00% | J78: 2.00% | K78: 3.00% | L78: 3.00%
A79: Hauling Distance 16-30 miles | E79: Pound | F79: $27.95 | G79: 1.00% | H79: 2.00% | I79: 2.00% | J79: 2.00% | K79: 3.00% | L79: 3.00%
A80: Hauling Distance 31-60 miles | E80: Pound | F80: $30.95 | G80: 1.00% | H80: 2.00% | I80: 2.00% | J80: 2.00% | K80: 3.00% | L80: 3.00%
A82: Region 7- States of NC, SC, GA, AL, FL
A83: Infectious Waste Removal from Public Roads, Streets and ROWS And Hauling to Final Disposal
A84: Liquids
A85: Hauling Distance 0-15 miles | E85: Gallon | F85: =+F72 -> $29.95 | G85: 1.00% | H85: 2.00% | I85: 2.00% | J85: 2.00% | K85: 3.00% | L85: 3.00%
A86: Hauling Distance 16-30 miles | E86: Gallon | F86: =+F73 -> $30.95 | G86: 1.00% | H86: 2.00% | I86: 2.00% | J86: 2.00% | K86: 3.00% | L86: 3.00%
A87: Hauling Distance 31-60 miles | E87: Gallon | F87: $33.95 | G87: 1.00% | H87: 2.00% | I87: 2.00% | J87: 2.00% | K87: 3.00% | L87: 3.00%
A89: Infectious Waste Removal from Public Roads, Streets and ROWS And Hauling to Final Disposal
A90: Solids
A91: Hauling Distance 0-15 miles | E91: Pound | F91: $26.95 | G91: 1.00% | H91: 2.00% | I91: 2.00% | J91: 2.00% | K91: 3.00% | L91: 3.00%
A92: Hauling Distance 16-30 miles | E92: Pound | F92: $27.95 | G92: 1.00% | H92: 2.00% | I92: 2.00% | J92: 2.00% | K92: 3.00% | L92: 3.00%
A93: Hauling Distance 31-60 miles | E93: Pound | F93: $30.95 | G93: 1.00% | H93: 2.00% | I93: 2.00% | J93: 2.00% | K93: 3.00% | L93: 3.00%
A95: Region 8- States of HI, AK
A96: Infectious Waste Removal from Public Roads, Streets and ROWS And Hauling to Final Disposal
A97: Liquids
A98: Hauling Distance 0-15 miles | B98: Gallon | C98: $29.95 | E98: Gallon | F98: =+F59 -> $37.95 | G98: 1.00% | H98: 2.00% | I98: 2.00% | J98: 2.00% | K98: 3.00% | L98: 3.00%
A99: Hauling Distance 16-30 miles | B99: Gallon | C99: $30.95 | E99: Gallon | F99: =+F60 -> $38.95 | G99: 1.00% | H99: 2.00% | I99: 2.00% | J99: 2.00% | K99: 3.00% | L99: 3.00%
A100: Hauling Distance 31-60 miles | B100: Gallon | C100: $33.95 | E100: Gallon | F100: $41.95 | G100: 1.00% | H100: 2.00% | I100: 2.00% | J100: 2.00% | K100: 3.00% | L100: 3.00%
A102: Infectious Waste Removal from Public Roads, Streets and ROWS And Hauling to Final Disposal
A103: Solids
A104: Hauling Distance 0-15 miles | B104: Pound | C104: =+C98 -> $29.95 | E104: Pound | F104: $34.95 | G104: 1.00% | H104: 2.00% | I104: 2.00% | J104: 2.00% | K104: 3.00% | L104: 3.00%
A105: Hauling Distance 16-30 miles | B105: Pound | C105: =+C99 -> $30.95 | E105: Pound | F105: $35.95 | G105: 1.00% | H105: 2.00% | I105: 2.00% | J105: 2.00% | K105: 3.00% | L105: 3.00%
A106: Hauling Distance 31-60 miles | B106: Pound | C106: $33.95 | E106: Pound | F106: $38.95 | G106: 1.00% | H106: 2.00% | I106: 2.00% | J106: 2.00% | K106: 3.00% | L106: 3.00%
A108: NOTE: Tipping/Disposal fees to be billed as a direct pass through cost with no mark up

Sheet Catagory XI
A1: Category XI-Chemical, Bio, Radioactive and Nuclear Contaminated Waste
A2: Include all Regions:
A3: Region 1 - States of MT, WY, ID, OR, WA, MO, KS, CO, NE, SD, ND
A4: Region 2- States ofIL, IA, MN, WI, LA, MS
A5: Region 3- States of MI, IN, TN, KY, OH, WV
A6: Region 4- States of ME, VT, NH, MA, CT, NY, DE, MD, DC, PA, VA, RI
A7: Region 5 - States of CA, NV, NM, AZ, UT
A8: Region 6 - States of TX, AR, OK
A9: Region 7- States of NC, SC, GA, AL, FL
A10: Region 8 - States of HI, AK
A11: Rates to be negotiated as needed.
A12: NOTE: Tipping/Disposal fees to be billed as a direct pass through cost with no mark up
A13: Description:
A14: Pricing for Chemical, Biological, Radiological, and Nuclear (CBRN) contaminated waste is difficult to establish in advance due to the sensitive nature of the
A15: work and limited licensing with specialized companies. Accordingly, all CBRN-related waste handling, transport, and disposal will be negotiated at the time of
A16: event.
A17: At the time of a disaster, DRC will engage a properly licensed and qualified company to provide pricing and perform the required services.

Sheet Catagory XII
A1: List Services Provided (Labor category, and Skill Class) (Items in Red are meant as examples. Add more lines as needed or attach a .pdf, must mimic this format) | B1: LABOR Emergent Not To Exceed Hourly Rate | C1: LABOR Non- Emergent Not To Exceed Hourly Rate | D1: Materials and Supplies Description | E1: Unit | F1: Cost | G1: % Rate Increase 2nd year | H1: % Rate Increase 3rd year | I1: % Rate Increase 4th year | J1: % Rate Increase 5th year | K1: % Rate Increase 6th year | L1: % Rate Increase 7th year
A2: Category XII-Additional Services
A3: PRIVATE PROPERTY DEBRIS REMOVAL
A4: Region 1- States of MT, WY, ID, OR, WA, MO, KS, CO, NE, SD, ND
A5: Vegetative Debris Private Property Debris Removal (PPDR)
A6: Vegetative Debris Removal from Private Property And Hauling to Debris Management Site (Vegetative)
A7: Hauling Distance 0-15 miles | E7: Cubic Yard (CY) | F7: $11.82 | G7: 1.00% | H7: 2.00% | I7: 2.00% | J7: 2.00% | K7: 3.00% | L7: 3.00%
A8: Hauling Distance 16-30 miles | E8: CY | F8: $12.42 | G8: 1.00% | H8: 2.00% | I8: 2.00% | J8: 2.00% | K8: 3.00% | L8: 3.00%
A9: Hauling Distance 31-60 miles | E9: CY | F9: $14.98 | G9: 1.00% | H9: 2.00% | I9: 2.00% | J9: 2.00% | K9: 3.00% | L9: 3.00%
A11: Vegetative Debris Removal from Private Property And Hauling to a Final Disposal Sites
A12: Hauling Distance 0-15 miles | E12: Cubic Yard (CY) | F12: =+F7+1 -> $12.82 | G12: 1.00% | H12: 2.00% | I12: 2.00% | J12: 2.00% | K12: 3.00% | L12: 3.00%
A13: Hauling Distance 16-30 miles | E13: CY | F13: =+F8+1 -> $13.42 | G13: 1.00% | H13: 2.00% | I13: 2.00% | J13: 2.00% | K13: 3.00% | L13: 3.00%
A14: Hauling Distance 31-60 miles | E14: CY | F14: =+F9+1 -> $15.98 | G14: 1.00% | H14: 2.00% | I14: 2.00% | J14: 2.00% | K14: 3.00% | L14: 3.00%
A16: Vegetative Debris Management and Reduction at Debris Management Site
A17: Site Management | E17: CY | F17: $1.86 | G17: 1.00% | H17: 2.00% | I17: 2.00% | J17: 2.00% | K17: 3.00% | L17: 3.00%
A18: Mechanical (chipping or grinding) | E18: CY | F18: $4.24 | G18: 1.00% | H18: 2.00% | I18: 2.00% | J18: 2.00% | K18: 3.00% | L18: 3.00%
A19: Air Curtain Incineration | E19: CY | F19: $3.24 | G19: 1.00% | H19: 2.00% | I19: 2.00% | J19: 2.00% | K19: 3.00% | L19: 3.00%
A20: Open Burning | E20: CY | F20: $2.28 | G20: 1.00% | H20: 2.00% | I20: 2.00% | J20: 2.00% | K20: 3.00% | L20: 3.00%
A21: Compaction | E21: CY | F21: $1.32 | G21: 1.00% | H21: 2.00% | I21: 2.00% | J21: 2.00% | K21: 3.00% | L21: 3.00%
A23: Final Disposal of Reduced Chips
A24: Hauling Distance 0-15 miles | E24: CY | F24: $4.42 | G24: 1.00% | H24: 2.00% | I24: 2.00% | J24: 2.00% | K24: 3.00% | L24: 3.00%
A25: Hauling Distance 16-30 miles | E25: CY | F25: $5.98 | G25: 1.00% | H25: 2.00% | I25: 2.00% | J25: 2.00% | K25: 3.00% | L25: 3.00%
A26: Hauling Distance 31-60 miles | E26: CY | F26: $7.98 | G26: 1.00% | H26: 2.00% | I26: 2.00% | J26: 2.00% | K26: 3.00% | L26: 3.00%
A28: Testing of Ash and Disposal at Landfill
A29: Hauling Distance 0-15 miles | E29: CY | F29: $5.92 | G29: 1.00% | H29: 2.00% | I29: 2.00% | J29: 2.00% | K29: 3.00% | L29: 3.00%
A30: Hauling Distance 16-30 miles | E30: CY | F30: $7.42 | G30: 1.00% | H30: 2.00% | I30: 2.00% | J30: 2.00% | K30: 3.00% | L30: 3.00%
A31: Hauling Distance 31-60 miles | E31: CY | F31: $9.42 | G31: 1.00% | H31: 2.00% | I31: 2.00% | J31: 2.00% | K31: 3.00% | L31: 3.00%
A33: Leaning Trees and Hanging Limbs- Resulting debris to be placed on ROW and treated as regular vegetative debris
A34: Trees 0-6" in Diameter | E34: Each Tree | F34: $175.00 | G34: 1.00% | H34: 2.00% | I34: 2.00% | J34: 2.00% | K34: 3.00% | L34: 3.00%
A35: Trees 6.1to 12" in Diameter | E35: Each Tree | F35: $295.00 | G35: 1.00% | H35: 2.00% | I35: 2.00% | J35: 2.00% | K35: 3.00% | L35: 3.00%
A36: Trees 12.1 to 24" in Diameter | E36: Each Tree | F36: $395.00 | G36: 1.00% | H36: 2.00% | I36: 2.00% | J36: 2.00% | K36: 3.00% | L36: 3.00%
A37: Trees 24.1 to 36" in Diameter | E37: Each Tree | F37: $550.00 | G37: 1.00% | H37: 2.00% | I37: 2.00% | J37: 2.00% | K37: 3.00% | L37: 3.00%
A38: Trees 36.1 to 48" in Diameter | E38: Each Tree | F38: $750.00 | G38: 1.00% | H38: 2.00% | I38: 2.00% | J38: 2.00% | K38: 3.00% | L38: 3.00%
A39: Trees 48.1 to 72" in Diameter | E39: Each Tree | F39: $850.00 | G39: 1.00% | H39: 2.00% | I39: 2.00% | J39: 2.00% | K39: 3.00% | L39: 3.00%
A40: Trees >72" in Diameter | E40: Each Tree | F40: $1,050.00 | G40: 1.00% | H40: 2.00% | I40: 2.00% | J40: 2.00% | K40: 3.00% | L40: 3.00%
A41: Hanging Limbs | E41: Each Tree | F41: $192.50 | G41: 1.00% | H41: 2.00% | I41: 2.00% | J41: 2.00% | K41: 3.00% | L41: 3.00%
A43: Removal and Disposal of Stumps, including backfilling of stump hole
A44: Stumps < 24" | E44: Cubic Yard | F44: $26.86 | G44: 1.00% | H44: 2.00% | I44: 2.00% | J44: 2.00% | K44: 3.00% | L44: 3.00%
A45: Stumps 24-36" | E45: Each Stump | F45: $450.00 | G45: 1.00% | H45: 2.00% | I45: 2.00% | J45: 2.00% | K45: 3.00% | L45: 3.00%
A46: Stumps 36-48" | E46: Each Stump | F46: $650.00 | G46: 1.00% | H46: 2.00% | I46: 2.00% | J46: 2.00% | K46: 3.00% | L46: 3.00%
A47: Stumps 48-72" | E47: Each Stump | F47: $850.00 | G47: 1.00% | H47: 2.00% | I47: 2.00% | J47: 2.00% | K47: 3.00% | L47: 3.00%
A48: Stumps >72" | E48: Each Stump | F48: $1,050.00 | G48: 1.00% | H48: 2.00% | I48: 2.00% | J48: 2.00% | K48: 3.00% | L48: 3.00%
A50: Region 2- States ofIL, IA, MN, WI, LA, MS
A51: Vegetative Debris Private Property Debris Removal (PPDR)
A52: Vegetative Debris Removal from Private Property And Hauling to Debris Management Site (Vegetative)
A53: Hauling Distance 0-15 miles | E53: Cubic Yard (CY) | F53: $11.82 | G53: 1.00% | H53: 2.00% | I53: 2.00% | J53: 2.00% | K53: 3.00% | L53: 3.00%
A54: Hauling Distance 16-30 miles | E54: CY | F54: $12.42 | G54: 1.00% | H54: 2.00% | I54: 2.00% | J54: 2.00% | K54: 3.00% | L54: 3.00%
A55: Hauling Distance 31-60 miles | E55: CY | F55: $14.98 | G55: 1.00% | H55: 2.00% | I55: 2.00% | J55: 2.00% | K55: 3.00% | L55: 3.00%
A57: Vegetative Debris Removal from Private Property And Hauling to a Final Disposal Sites
A58: Hauling Distance 0-15 miles | E58: Cubic Yard (CY) | F58: =+F53+1 -> $12.82 | G58: 1.00% | H58: 2.00% | I58: 2.00% | J58: 2.00% | K58: 3.00% | L58: 3.00%
A59: Hauling Distance 16-30 miles | E59: CY | F59: =+F54+1 -> $13.42 | G59: 1.00% | H59: 2.00% | I59: 2.00% | J59: 2.00% | K59: 3.00% | L59: 3.00%
A60: Hauling Distance 31-60 miles | E60: CY | F60: =+F55+1 -> $15.98 | G60: 1.00% | H60: 2.00% | I60: 2.00% | J60: 2.00% | K60: 3.00% | L60: 3.00%
A62: Vegetative Debris Management and Reduction at Debris Management Site
A63: Site Management | E63: CY | F63: $1.86 | G63: 1.00% | H63: 2.00% | I63: 2.00% | J63: 2.00% | K63: 3.00% | L63: 3.00%
A64: Mechanical (chipping or grinding) | E64: CY | F64: $4.24 | G64: 1.00% | H64: 2.00% | I64: 2.00% | J64: 2.00% | K64: 3.00% | L64: 3.00%
A65: Air Curtain Incineration | E65: CY | F65: $3.24 | G65: 1.00% | H65: 2.00% | I65: 2.00% | J65: 2.00% | K65: 3.00% | L65: 3.00%
A66: Open Burning | E66: CY | F66: $2.28 | G66: 1.00% | H66: 2.00% | I66: 2.00% | J66: 2.00% | K66: 3.00% | L66: 3.00%
A67: Compaction | E67: CY | F67: $1.32 | G67: 1.00% | H67: 2.00% | I67: 2.00% | J67: 2.00% | K67: 3.00% | L67: 3.00%
A69: Final Disposal of Reduced Chips
A70: Hauling Distance 0-15 miles | E70: CY | F70: $4.42 | G70: 1.00% | H70: 2.00% | I70: 2.00% | J70: 2.00% | K70: 3.00% | L70: 3.00%
A71: Hauling Distance 16-30 miles | E71: CY | F71: $5.98 | G71: 1.00% | H71: 2.00% | I71: 2.00% | J71: 2.00% | K71: 3.00% | L71: 3.00%
A72: Hauling Distance 31-60 miles | E72: CY | F72: $7.98 | G72: 1.00% | H72: 2.00% | I72: 2.00% | J72: 2.00% | K72: 3.00% | L72: 3.00%
A74: Testing of Ash and Disposal at Landfill
A75: Hauling Distance 0-15 miles | E75: CY | F75: $5.92 | G75: 1.00% | H75: 2.00% | I75: 2.00% | J75: 2.00% | K75: 3.00% | L75: 3.00%
A76: Hauling Distance 16-30 miles | E76: CY | F76: $7.42 | G76: 1.00% | H76: 2.00% | I76: 2.00% | J76: 2.00% | K76: 3.00% | L76: 3.00%
A77: Hauling Distance 31-60 miles | E77: CY | F77: $9.42 | G77: 1.00% | H77: 2.00% | I77: 2.00% | J77: 2.00% | K77: 3.00% | L77: 3.00%
A79: Leaning Trees and Hanging Limbs- Resulting debris to be placed on ROW and treated as regular vegetative debris
A80: Trees 0-6" in Diameter | E80: Each Tree | F80: $175.00 | G80: 1.00% | H80: 2.00% | I80: 2.00% | J80: 2.00% | K80: 3.00% | L80: 3.00%
A81: Trees 6.1to 12" in Diameter | E81: Each Tree | F81: $295.00 | G81: 1.00% | H81: 2.00% | I81: 2.00% | J81: 2.00% | K81: 3.00% | L81: 3.00%
A82: Trees 12.1 to 24" in Diameter | E82: Each Tree | F82: $395.00 | G82: 1.00% | H82: 2.00% | I82: 2.00% | J82: 2.00% | K82: 3.00% | L82: 3.00%
A83: Trees 24.1 to 36" in Diameter | E83: Each Tree | F83: $550.00 | G83: 1.00% | H83: 2.00% | I83: 2.00% | J83: 2.00% | K83: 3.00% | L83: 3.00%
A84: Trees 36.1 to 48" in Diameter | E84: Each Tree | F84: $750.00 | G84: 1.00% | H84: 2.00% | I84: 2.00% | J84: 2.00% | K84: 3.00% | L84: 3.00%
A85: Trees 48.1 to 72" in Diameter | E85: Each Tree | F85: $850.00 | G85: 1.00% | H85: 2.00% | I85: 2.00% | J85: 2.00% | K85: 3.00% | L85: 3.00%
A86: Trees >72" in Diameter | E86: Each Tree | F86: $1,050.00 | G86: 1.00% | H86: 2.00% | I86: 2.00% | J86: 2.00% | K86: 3.00% | L86: 3.00%
A87: Hanging Limbs | E87: Each Tree | F87: $192.50 | G87: 1.00% | H87: 2.00% | I87: 2.00% | J87: 2.00% | K87: 3.00% | L87: 3.00%
A89: Removal and Disposal of Stumps, including backfilling of stump hole | G89: 1.00% | H89: 2.00% | I89: 2.00% | J89: 2.00% | K89: 3.00% | L89: 3.00%
A90: Stumps < 24" | E90: Cubic Yard | F90: $26.86 | G90: 1.00% | H90: 2.00% | I90: 2.00% | J90: 2.00% | K90: 3.00% | L90: 3.00%
A91: Stumps 24-36" | E91: Each Stump | F91: $250.00 | G91: 1.00% | H91: 2.00% | I91: 2.00% | J91: 2.00% | K91: 3.00% | L91: 3.00%
A92: Stumps 36-48" | E92: Each Stump | F92: $450.00 | G92: 1.00% | H92: 2.00% | I92: 2.00% | J92: 2.00% | K92: 3.00% | L92: 3.00%
A93: Stumps 48-72" | E93: Each Stump | F93: $650.00 | G93: 1.00% | H93: 2.00% | I93: 2.00% | J93: 2.00% | K93: 3.00% | L93: 3.00%
A94: Stumps >72" | E94: Each Stump | F94: $850.00 | G94: 1.00% | H94: 2.00% | I94: 2.00% | J94: 2.00% | K94: 3.00% | L94: 3.00%
A96: Region 3- States of MI, IN, TN, KY, OH, WV
A97: Vegetative Debris Private Property Debris Removal (PPDR)
A98: Vegetative Debris Removal from Private Property And Hauling to Debris Management Site (Vegetative)
A99: Hauling Distance 0-15 miles | E99: Cubic Yard (CY) | F99: $11.82 | G99: 1.00% | H99: 2.00% | I99: 2.00% | J99: 2.00% | K99: 3.00% | L99: 3.00%
A100: Hauling Distance 16-30 miles | E100: CY | F100: $12.42 | G100: 1.00% | H100: 2.00% | I100: 2.00% | J100: 2.00% | K100: 3.00% | L100: 3.00%
A101: Hauling Distance 31-60 miles | E101: CY | F101: $14.98 | G101: 1.00% | H101: 2.00% | I101: 2.00% | J101: 2.00% | K101: 3.00% | L101: 3.00%
A103: Vegetative Debris Removal from Private Property And Hauling to a Final Disposal Sites
A104: Hauling Distance 0-15 miles | E104: Cubic Yard (CY) | F104: =+F99+1 -> $12.82 | G104: 1.00% | H104: 2.00% | I104: 2.00% | J104: 2.00% | K104: 3.00% | L104: 3.00%
A105: Hauling Distance 16-30 miles | E105: CY | F105: =+F100+1 -> $13.42 | G105: 1.00% | H105: 2.00% | I105: 2.00% | J105: 2.00% | K105: 3.00% | L105: 3.00%
A106: Hauling Distance 31-60 miles | E106: CY | F106: =+F101+1 -> $15.98 | G106: 1.00% | H106: 2.00% | I106: 2.00% | J106: 2.00% | K106: 3.00% | L106: 3.00%
A108: Vegetative Debris Management and Reduction at Debris Management Site
A109: Site Management | E109: CY | F109: $1.86 | G109: 1.00% | H109: 2.00% | I109: 2.00% | J109: 2.00% | K109: 3.00% | L109: 3.00%
A110: Mechanical (chipping or grinding) | E110: CY | F110: $4.24 | G110: 1.00% | H110: 2.00% | I110: 2.00% | J110: 2.00% | K110: 3.00% | L110: 3.00%
A111: Air Curtain Incineration | E111: CY | F111: $3.24 | G111: 1.00% | H111: 2.00% | I111: 2.00% | J111: 2.00% | K111: 3.00% | L111: 3.00%
A112: Open Burning | E112: CY | F112: $2.28 | G112: 1.00% | H112: 2.00% | I112: 2.00% | J112: 2.00% | K112: 3.00% | L112: 3.00%
A113: Compaction | E113: CY | F113: $1.32 | G113: 1.00% | H113: 2.00% | I113: 2.00% | J113: 2.00% | K113: 3.00% | L113: 3.00%
A115: Final Disposal of Reduced Chips
A116: Hauling Distance 0-15 miles | E116: CY | F116: $4.42 | G116: 1.00% | H116: 2.00% | I116: 2.00% | J116: 2.00% | K116: 3.00% | L116: 3.00%
A117: Hauling Distance 16-30 miles | E117: CY | F117: $5.98 | G117: 1.00% | H117: 2.00% | I117: 2.00% | J117: 2.00% | K117: 3.00% | L117: 3.00%
A118: Hauling Distance 31-60 miles | E118: CY | F118: $7.98 | G118: 1.00% | H118: 2.00% | I118: 2.00% | J118: 2.00% | K118: 3.00% | L118: 3.00%
A120: Testing of Ash and Disposal at Landfill
A121: Hauling Distance 0-15 miles | E121: CY | F121: $5.92 | G121: 1.00% | H121: 2.00% | I121: 2.00% | J121: 2.00% | K121: 3.00% | L121: 3.00%
A122: Hauling Distance 16-30 miles | E122: CY | F122: $7.42 | G122: 1.00% | H122: 2.00% | I122: 2.00% | J122: 2.00% | K122: 3.00% | L122: 3.00%
A123: Hauling Distance 31-60 miles | E123: CY | F123: $9.42 | G123: 1.00% | H123: 2.00% | I123: 2.00% | J123: 2.00% | K123: 3.00% | L123: 3.00%
A125: Leaning Trees and Hanging Limbs- Resulting debris to be placed on ROW and treated as regular vegetative debris
A126: Trees 0-6" in Diameter | E126: Each Tree | F126: $175.00 | G126: 1.00% | H126: 2.00% | I126: 2.00% | J126: 2.00% | K126: 3.00% | L126: 3.00%
A127: Trees 6.1to 12" in Diameter | E127: Each Tree | F127: $295.00 | G127: 1.00% | H127: 2.00% | I127: 2.00% | J127: 2.00% | K127: 3.00% | L127: 3.00%
A128: Trees 12.1 to 24" in Diameter | E128: Each Tree | F128: $395.00 | G128: 1.00% | H128: 2.00% | I128: 2.00% | J128: 2.00% | K128: 3.00% | L128: 3.00%
A129: Trees 24.1 to 36" in Diameter | E129: Each Tree | F129: $550.00 | G129: 1.00% | H129: 2.00% | I129: 2.00% | J129: 2.00% | K129: 3.00% | L129: 3.00%
A130: Trees 36.1 to 48" in Diameter | E130: Each Tree | F130: $750.00 | G130: 1.00% | H130: 2.00% | I130: 2.00% | J130: 2.00% | K130: 3.00% | L130: 3.00%
A131: Trees 48.1 to 72" in Diameter | E131: Each Tree | F131: $850.00 | G131: 1.00% | H131: 2.00% | I131: 2.00% | J131: 2.00% | K131: 3.00% | L131: 3.00%
A132: Trees >72" in Diameter | E132: Each Tree | F132: $1,050.00 | G132: 1.00% | H132: 2.00% | I132: 2.00% | J132: 2.00% | K132: 3.00% | L132: 3.00%
A133: Hanging Limbs | E133: Each Tree | F133: $192.50 | G133: 1.00% | H133: 2.00% | I133: 2.00% | J133: 2.00% | K133: 3.00% | L133: 3.00%
A135: Removal and Disposal of Stumps, including backfilling of stump hole
A136: Stumps < 24" | E136: Cubic Yard | F136: $26.86 | G136: 1.00% | H136: 2.00% | I136: 2.00% | J136: 2.00% | K136: 3.00% | L136: 3.00%
A137: Stumps 24-36" | E137: Each Stump | F137: $250.00 | G137: 1.00% | H137: 2.00% | I137: 2.00% | J137: 2.00% | K137: 3.00% | L137: 3.00%
A138: Stumps 36-48" | E138: Each Stump | F138: $450.00 | G138: 1.00% | H138: 2.00% | I138: 2.00% | J138: 2.00% | K138: 3.00% | L138: 3.00%
A139: Stumps 48-72" | E139: Each Stump | F139: $650.00 | G139: 1.00% | H139: 2.00% | I139: 2.00% | J139: 2.00% | K139: 3.00% | L139: 3.00%
A140: Stumps >72" | E140: Each Stump | F140: $850.00 | G140: 1.00% | H140: 2.00% | I140: 2.00% | J140: 2.00% | K140: 3.00% | L140: 3.00%
A142: Region 4- States of ME, VT, NH, MA, CT, NY, DE, MD, DC, PA, VA, RI
A143: Vegetative Debris Private Property Debris Removal (PPDR)
A144: Vegetative Debris Removal from Private Property And Hauling to Debris Management Site (Vegetative)
A145: Hauling Distance 0-15 miles | E145: Cubic Yard (CY) | F145: $16.82 | G145: 1.00% | H145: 2.00% | I145: 2.00% | J145: 2.00% | K145: 3.00% | L145: 3.00%
A146: Hauling Distance 16-30 miles | E146: CY | F146: $17.42 | G146: 1.00% | H146: 2.00% | I146: 2.00% | J146: 2.00% | K146: 3.00% | L146: 3.00%
A147: Hauling Distance 31-60 miles | E147: CY | F147: $19.98 | G147: 1.00% | H147: 2.00% | I147: 2.00% | J147: 2.00% | K147: 3.00% | L147: 3.00%
A149: Vegetative Debris Removal from Private Property And Hauling to a Final Disposal Sites
A150: Hauling Distance 0-15 miles | E150: Cubic Yard (CY) | F150: =+F145+3 -> $19.82 | G150: 1.00% | H150: 2.00% | I150: 2.00% | J150: 2.00% | K150: 3.00% | L150: 3.00%
A151: Hauling Distance 16-30 miles | E151: CY | F151: =+F146+3 -> $20.42 | G151: 1.00% | H151: 2.00% | I151: 2.00% | J151: 2.00% | K151: 3.00% | L151: 3.00%
A152: Hauling Distance 31-60 miles | E152: CY | F152: $22.98 | G152: 1.00% | H152: 2.00% | I152: 2.00% | J152: 2.00% | K152: 3.00% | L152: 3.00%
A154: Vegetative Debris Management and Reduction at Debris Management Site
A155: Site Management | E155: CY | F155: $3.66 | G155: 1.00% | H155: 2.00% | I155: 2.00% | J155: 2.00% | K155: 3.00% | L155: 3.00%
A156: Mechanical (chipping or grinding) | E156: CY | F156: $5.98 | G156: 1.00% | H156: 2.00% | I156: 2.00% | J156: 2.00% | K156: 3.00% | L156: 3.00%
A157: Air Curtain Incineration | E157: CY | F157: $4.98 | G157: 1.00% | H157: 2.00% | I157: 2.00% | J157: 2.00% | K157: 3.00% | L157: 3.00%
A158: Open Burning | E158: CY | F158: $3.98 | G158: 1.00% | H158: 2.00% | I158: 2.00% | J158: 2.00% | K158: 3.00% | L158: 3.00%
A159: Compaction | E159: CY | F159: $3.42 | G159: 1.00% | H159: 2.00% | I159: 2.00% | J159: 2.00% | K159: 3.00% | L159: 3.00%
A161: Final Disposal of Reduced Chips
A162: Hauling Distance 0-15 miles | E162: CY | F162: $6.62 | G162: 1.00% | H162: 2.00% | I162: 2.00% | J162: 2.00% | K162: 3.00% | L162: 3.00%
A163: Hauling Distance 16-30 miles | E163: CY | F163: $8.22 | G163: 1.00% | H163: 2.00% | I163: 2.00% | J163: 2.00% | K163: 3.00% | L163: 3.00%
A164: Hauling Distance 31-60 miles | E164: CY | F164: $10.22 | G164: 1.00% | H164: 2.00% | I164: 2.00% | J164: 2.00% | K164: 3.00% | L164: 3.00%
A166: Testing of Ash and Disposal at Landfill
A167: Hauling Distance 0-15 miles | E167: CY | F167: $8.72 | G167: 1.00% | H167: 2.00% | I167: 2.00% | J167: 2.00% | K167: 3.00% | L167: 3.00%
A168: Hauling Distance 16-30 miles | E168: CY | F168: $10.22 | G168: 1.00% | H168: 2.00% | I168: 2.00% | J168: 2.00% | K168: 3.00% | L168: 3.00%
A169: Hauling Distance 31-60 miles | E169: CY | F169: $13.22 | G169: 1.00% | H169: 2.00% | I169: 2.00% | J169: 2.00% | K169: 3.00% | L169: 3.00%
A171: Leaning Trees and Hanging Limbs- Resulting debris to be placed on ROW and treated as regular vegetative debris
A172: Trees 0-6" in Diameter | E172: Each Tree | F172: $275.00 | G172: 1.00% | H172: 2.00% | I172: 2.00% | J172: 2.00% | K172: 3.00% | L172: 3.00%
A173: Trees 6.1to 12" in Diameter | E173: Each Tree | F173: $450.00 | G173: 1.00% | H173: 2.00% | I173: 2.00% | J173: 2.00% | K173: 3.00% | L173: 3.00%
A174: Trees 12.1 to 24" in Diameter | E174: Each Tree | F174: $550.00 | G174: 1.00% | H174: 2.00% | I174: 2.00% | J174: 2.00% | K174: 3.00% | L174: 3.00%
A175: Trees 24.1 to 36" in Diameter | E175: Each Tree | F175: $750.00 | G175: 1.00% | H175: 2.00% | I175: 2.00% | J175: 2.00% | K175: 3.00% | L175: 3.00%
A176: Trees 36.1 to 48" in Diameter | E176: Each Tree | F176: $950.00 | G176: 1.00% | H176: 2.00% | I176: 2.00% | J176: 2.00% | K176: 3.00% | L176: 3.00%
A177: Trees 48.1 to 72" in Diameter | E177: Each Tree | F177: $1,150.00 | G177: 1.00% | H177: 2.00% | I177: 2.00% | J177: 2.00% | K177: 3.00% | L177: 3.00%
A178: Trees >72" in Diameter | E178: Each Tree | F178: $1,350.00 | G178: 1.00% | H178: 2.00% | I178: 2.00% | J178: 2.00% | K178: 3.00% | L178: 3.00%
A179: Hanging Limbs | E179: Each Tree | F179: $262.50 | G179: 1.00% | H179: 2.00% | I179: 2.00% | J179: 2.00% | K179: 3.00% | L179: 3.00%
A181: Removal and Disposal of Stumps, including backfilling of stump hole
A182: Stumps < 24" | E182: Cubic Yard | F182: $48.86 | G182: 1.00% | H182: 2.00% | I182: 2.00% | J182: 2.00% | K182: 3.00% | L182: 3.00%
A183: Stumps 24-36" | E183: Each Stump | F183: $650.00 | G183: 1.00% | H183: 2.00% | I183: 2.00% | J183: 2.00% | K183: 3.00% | L183: 3.00%
A184: Stumps 36-48" | E184: Each Stump | F184: $850.00 | G184: 1.00% | H184: 2.00% | I184: 2.00% | J184: 2.00% | K184: 3.00% | L184: 3.00%
A185: Stumps 48-72" | E185: Each Stump | F185: $1,050.00 | G185: 1.00% | H185: 2.00% | I185: 2.00% | J185: 2.00% | K185: 3.00% | L185: 3.00%
A186: Stumps >72" | E186: Each Stump | F186: $1,250.00 | G186: 1.00% | H186: 2.00% | I186: 2.00% | J186: 2.00% | K186: 3.00% | L186: 3.00%
A188: Region 5 States of CA, NV, NM, AZ, UT
A189: Vegetative Debris Private Property Debris Removal (PPDR)
A190: Vegetative Debris Removal from Private Property And Hauling to Debris Management Site (Vegetative)
A191: Hauling Distance 0-15 miles | E191: Cubic Yard (CY) | F191: $23.82 | G191: 1.00% | H191: 2.00% | I191: 2.00% | J191: 2.00% | K191: 3.00% | L191: 3.00%
A192: Hauling Distance 16-30 miles | E192: CY | F192: $24.42 | G192: 1.00% | H192: 2.00% | I192: 2.00% | J192: 2.00% | K192: 3.00% | L192: 3.00%
A193: Hauling Distance 31-60 miles | E193: CY | F193: $26.98 | G193: 1.00% | H193: 2.00% | I193: 2.00% | J193: 2.00% | K193: 3.00% | L193: 3.00%
A195: Vegetative Debris Removal from Private Property And Hauling to a Final Disposal Sites
A196: Hauling Distance 0-15 miles | E196: Cubic Yard (CY) | F196: $24.82 | G196: 1.00% | H196: 2.00% | I196: 2.00% | J196: 2.00% | K196: 3.00% | L196: 3.00%
A197: Hauling Distance 16-30 miles | E197: CY | F197: $25.42 | G197: 1.00% | H197: 2.00% | I197: 2.00% | J197: 2.00% | K197: 3.00% | L197: 3.00%
A198: Hauling Distance 31-60 miles | E198: CY | F198: $27.98 | G198: 1.00% | H198: 2.00% | I198: 2.00% | J198: 2.00% | K198: 3.00% | L198: 3.00%
A200: Vegetative Debris Management and Reduction at Debris Management Site
A201: Site Management | E201: CY | F201: $5.66 | G201: 1.00% | H201: 2.00% | I201: 2.00% | J201: 2.00% | K201: 3.00% | L201: 3.00%
A202: Mechanical (chipping or grinding) | E202: CY | F202: $7.98 | G202: 1.00% | H202: 2.00% | I202: 2.00% | J202: 2.00% | K202: 3.00% | L202: 3.00%
A203: Air Curtain Incineration | E203: CY | F203: $6.98 | G203: 1.00% | H203: 2.00% | I203: 2.00% | J203: 2.00% | K203: 3.00% | L203: 3.00%
A204: Open Burning | E204: CY | F204: $5.98 | G204: 1.00% | H204: 2.00% | I204: 2.00% | J204: 2.00% | K204: 3.00% | L204: 3.00%
A205: Compaction | E205: CY | F205: $5.42 | G205: 1.00% | H205: 2.00% | I205: 2.00% | J205: 2.00% | K205: 3.00% | L205: 3.00%
A207: Final Disposal of Reduced Chips
A208: Hauling Distance 0-15 miles | E208: CY | F208: $11.62 | G208: 1.00% | H208: 2.00% | I208: 2.00% | J208: 2.00% | K208: 3.00% | L208: 3.00%
A209: Hauling Distance 16-30 miles | E209: CY | F209: $13.22 | G209: 1.00% | H209: 2.00% | I209: 2.00% | J209: 2.00% | K209: 3.00% | L209: 3.00%
A210: Hauling Distance 31-60 miles | E210: CY | F210: $16.22 | G210: 1.00% | H210: 2.00% | I210: 2.00% | J210: 2.00% | K210: 3.00% | L210: 3.00%
A212: Testing of Ash and Disposal at Landfill
A213: Hauling Distance 0-15 miles | E213: CY | F213: $13.72 | G213: 1.00% | H213: 2.00% | I213: 2.00% | J213: 2.00% | K213: 3.00% | L213: 3.00%
A214: Hauling Distance 16-30 miles | E214: CY | F214: $14.72 | G214: 1.00% | H214: 2.00% | I214: 2.00% | J214: 2.00% | K214: 3.00% | L214: 3.00%
A215: Hauling Distance 31-60 miles | E215: CY | F215: $17.72 | G215: 1.00% | H215: 2.00% | I215: 2.00% | J215: 2.00% | K215: 3.00% | L215: 3.00%
A217: Leaning Trees and Hanging Limbs- Resulting debris to be placed on ROW and treated as regular vegetative debris
A218: Trees 0-6" in Diameter | E218: Each Tree | F218: $595.00 | G218: 1.00% | H218: 2.00% | I218: 2.00% | J218: 2.00% | K218: 3.00% | L218: 3.00%
A219: Trees 6.1to 12" in Diameter | E219: Each Tree | F219: $395.00 | G219: 1.00% | H219: 2.00% | I219: 2.00% | J219: 2.00% | K219: 3.00% | L219: 3.00%
A220: Trees 12.1 to 24" in Diameter | E220: Each Tree | F220: $495.00 | G220: 1.00% | H220: 2.00% | I220: 2.00% | J220: 2.00% | K220: 3.00% | L220: 3.00%
A221: Trees 24.1 to 36" in Diameter | E221: Each Tree | F221: $650.00 | G221: 1.00% | H221: 2.00% | I221: 2.00% | J221: 2.00% | K221: 3.00% | L221: 3.00%
A222: Trees 36.1 to 48" in Diameter | E222: Each Tree | F222: $850.00 | G222: 1.00% | H222: 2.00% | I222: 2.00% | J222: 2.00% | K222: 3.00% | L222: 3.00%
A223: Trees 48.1 to 72" in Diameter | E223: Each Tree | F223: $950.00 | G223: 1.00% | H223: 2.00% | I223: 2.00% | J223: 2.00% | K223: 3.00% | L223: 3.00%
A224: Trees >72" in Diameter | E224: Each Tree | F224: $1,150.00 | G224: 1.00% | H224: 2.00% | I224: 2.00% | J224: 2.00% | K224: 3.00% | L224: 3.00%
A225: Hanging Limbs | E225: Each Tree | F225: $292.50 | G225: 1.00% | H225: 2.00% | I225: 2.00% | J225: 2.00% | K225: 3.00% | L225: 3.00%
A227: Removal and Disposal of Stumps, including backfilling of stump hole
A228: Stumps < 24" | E228: Cubic Yard | F228: $44.86 | G228: 1.00% | H228: 2.00% | I228: 2.00% | J228: 2.00% | K228: 3.00% | L228: 3.00%
A229: Stumps 24-36" | E229: Each Stump | F229: $750.00 | G229: 1.00% | H229: 2.00% | I229: 2.00% | J229: 2.00% | K229: 3.00% | L229: 3.00%
A230: Stumps 36-48" | E230: Each Stump | F230: $950.00 | G230: 1.00% | H230: 2.00% | I230: 2.00% | J230: 2.00% | K230: 3.00% | L230: 3.00%
A231: Stumps 48-72" | E231: Each Stump | F231: $1,150.00 | G231: 1.00% | H231: 2.00% | I231: 2.00% | J231: 2.00% | K231: 3.00% | L231: 3.00%
A232: Stumps >72" | E232: Each Stump | F232: $1,450.00 | G232: 1.00% | H232: 2.00% | I232: 2.00% | J232: 2.00% | K232: 3.00% | L232: 3.00%
A234: Region 6 - States of TX, AR, OK
A235: Vegetative Debris Private Property Debris Removal (PPDR)
... 667 more rows
